Workbook

Sheet Field of Play
B1: 1 | C1: 2 | D1: 3 | E1: 4 | F1: 5 | G1: 6 | H1: 7 | I1: 8 | J1: 9 | K1: 10 | L1: 11 | M1: R | N1: H | O1: E
A2: ='Game Info'!B2 -> Indians | M2: =SUM(B2:L2) -> 0 | N2: ='Game Info'!B7 -> 0 | O2: ='Game Info'!B9 -> 0
A3: ='Game Info'!B1 -> BlueJays | M3: =SUM(B3:L3) -> 0 | N3: ='Game Info'!B8 -> 0 | O3: ='Game Info'!B10 -> 0
Q4: THE MATCH UP
K5: Away | L5: 1 | M5: ='Game Info'!O2 -> CF | N5: ='Game Info'!P2 -> M Brantley | O5: =IF('Game Info'!Q2="","",'Game Info'!Q2) -> * | Q5: Baseline Batting Average: | T5: ='Settings & Expansion'!D1 -> 0.261
K6: =A2 -> Indians | L6: 2 | M6: ='Game Info'!O3 -> SS | N6: ='Game Info'!P3 -> A Cabrera | O6: =IF('Game Info'!Q3="","",'Game Info'!Q3) ->  | Q6: ='Game Info'!C23&" Contact Rating:" -> M Brantley Contact Rating: | S6: : | T6: ='Game Info'!D23 -> 42
L7: 3 | M7: ='Game Info'!O4 -> RF | N7: ='Game Info'!P4 -> S Choo | O7: =IF('Game Info'!Q4="","",'Game Info'!Q4) ->  | Q7: ='Game Info'!C13&" Effectiveness:" -> S Marcum Effectiveness: | S7: : | T7: ='Game Info'!D13 -> 68
L8: 4 | M8: ='Game Info'!O5 -> LF | N8: ='Game Info'!P5 -> S Duncan | O8: =IF('Game Info'!Q5="","",'Game Info'!Q5) ->  | Q8: =IF(M32="Normal Depth","Infield at Normal Depth","Infield In") -> Infield at Normal Depth | S8: : | T8: =IF(M32="Normal Depth",0,50) -> 0 | U8: =IF(OR(T9<0.21,T9>0.35),"*","") -> 
L9: 5 | M9: ='Game Info'!O6 -> C | N9: ='Game Info'!P6 -> C Santana | O9: =IF('Game Info'!Q6="","",'Game Info'!Q6) ->  | Q9: Batter's Adjusted Average: | T9: =(IF(T5*1000+2*(T6-T7)<210,210,IF(T5*1000+2*(T6-T7)>350,IF(T6<101,350,T5*1000+2*(T6-T7)),T5*1000+2*(T6-T7))))/1000+T8/1000 -> 0.21
L10: 6 | M10: ='Game Info'!O7 -> DH | N10: ='Game Info'!P7 -> T Hafner | O10: =IF('Game Info'!Q7="","",'Game Info'!Q7) -> 
L11: 7 | M11: ='Game Info'!O8 -> 1B | N11: ='Game Info'!P8 -> M LaPorta | O11: =IF('Game Info'!Q8="","",'Game Info'!Q8) ->  | Q11: =IF(T9<0.21,"*minimum batting average of .210",IF(T9>0.35,"*maximum batting average of .350 unless the batter is a .350+ hitter","")) -> 
L12: 8 | M12: ='Game Info'!O9 -> 2B | N12: ='Game Info'!P9 -> L Valbuena | O12: =IF('Game Info'!Q9="","",'Game Info'!Q9) -> 
L13: 9 | M13: ='Game Info'!O10 -> 3B | N13: ='Game Info'!P10 -> J Nix | O13: =IF('Game Info'!Q10="","",'Game Info'!Q10) -> 
M15: Pitching | N15: ='Game Info'!P12 -> J Westbrook | O15: ='Game Info'!T12 -> 47 | Q15: ON THE BASES
Q16: ="First Base: "&IF('Game Info'!C24=""," Empty"," "&'Game Info'!C24) -> First Base: Empty | S16: =IF('Game Info'!C24="","","Speed: "&'Game Info'!F24) -> 
K17: Home | L17: 1 | M17: ='Game Info'!F2 -> LF | N17: ='Game Info'!G2 -> F Lewis | O17: =IF('Game Info'!H2="","",'Game Info'!H2) -> * | Q17: ="Second Base: "&IF('Game Info'!C25="","Empty",'Game Info'!C25) -> Second Base: Empty | S17: =IF('Game Info'!C25="","","Speed: "&'Game Info'!F25) -> 
K18: =A3 -> BlueJays | L18: 2 | M18: ='Game Info'!F3 -> SS | N18: ='Game Info'!G3 -> A Gonzalez | O18: =IF('Game Info'!H3="","",'Game Info'!H3) ->  | Q18: ="Third Base: "&IF('Game Info'!C26=""," Empty"," "&'Game Info'!C26) -> Third Base: Empty | S18: =IF('Game Info'!C26="","","Speed: "&'Game Info'!F26) -> 
L19: 3 | M19: ='Game Info'!F4 -> RF | N19: ='Game Info'!G4 -> J Bautista | O19: =IF('Game Info'!H4="","",'Game Info'!H4) -> 
E20: Landis | L20: 4 | M20: ='Game Info'!F5 -> CF | N20: ='Game Info'!G5 -> V Wells | O20: =IF('Game Info'!H5="","",'Game Info'!H5) -> 
E21: 148 | L21: 5 | M21: ='Game Info'!F6 -> DH | N21: ='Game Info'!G6 -> A Lind
L22: 6 | M22: ='Game Info'!F7 -> C | N22: ='Game Info'!G7 -> J Buck | O22: =IF('Game Info'!H7="","",'Game Info'!H7) -> 
L23: 7 | M23: ='Game Info'!F8 -> 1B | N23: ='Game Info'!G8 -> L Overbay | O23: =IF('Game Info'!H8="","",'Game Info'!H8) -> 
L24: 8 | M24: ='Game Info'!F9 -> 3B | N24: ='Game Info'!G9 -> E Encarnacion | O24: =IF('Game Info'!H9="","",'Game Info'!H9) -> 
L25: 9 | M25: ='Game Info'!F10 -> 2B | N25: ='Game Info'!G10 -> J McDonald | O25: =IF('Game Info'!H10="","",'Game Info'!H10) -> 
M27: Pitching | N27: ='Game Info'!G12 -> S Marcum | O27: ='Game Info'!K12 -> 68
L29: Outs | M29: ='Game Info'!B4 -> 0
L30: Inning | M30: ='Game Info'!B6 -> 1 | N30: ='Game Info'!C6 -> Top
M32: Normal Depth

Sheet Game Info
A1: Home Team | B1: BlueJays | C1: Fielding | I1: Contact | J1: Power | K1: Speed | L1: Def/Arm | M1: Bunt | R1: Contact | S1: Power | T1: Speed | U1: Def/Arm | V1: Bunt
A2: Away Team | B2: Indians | C2: =IF(C1="Batting","Fielding","Batting") -> Batting | E2: Home Lineup | F2: =INDIRECT(B1&"!N1") -> LF | G2: =INDIRECT(B1&"!O1") -> F Lewis | H2: * | I2: =VLOOKUP(G2,INDIRECT($B$1&"!A1:F100"),3,FALSE) -> 51 | J2: =VLOOKUP(G2,INDIRECT($B$1&"!A1:F100"),4,FALSE) -> 53 | K2: =IFERROR(VLOOKUP(G2,INDIRECT($B$1&"!A11:F100"),5,FALSE),20) -> 60 | L2: =IFERROR(VLOOKUP(G2,INDIRECT($B$1&"!A1:F100"),6,FALSE),0) -> 65 | M2: =IF(VLOOKUP(G2,INDIRECT($B$1&"!A1:G100"),7,FALSE)=0,50,VLOOKUP(G2,INDIRECT($B$1&"!A1:G100"),7,FALSE)) -> 60 | N2: Away Lineup | O2: =INDIRECT(B2&"!N1") -> CF | P2: =INDIRECT(B2&"!O1") -> M Brantley | Q2: * | R2: =IFERROR(VLOOKUP(P2,INDIRECT($B$2&"!A1:F100"),3,FALSE),20) -> 42 | S2: =IFERROR(VLOOKUP(P2,INDIRECT($B$2&"!A1:F100"),4,FALSE),20) -> 35 | T2: =IFERROR(VLOOKUP(P2,INDIRECT($B$2&"!A1:F100"),5,FALSE),20) -> 85 | U2: =IFERROR(VLOOKUP(P2,INDIRECT($B$2&"!A1:F100"),6,FALSE),0) -> 70 | V2: =IF(VLOOKUP(P2,INDIRECT($B$2&"!A1:G100"),7,FALSE)=0,50,VLOOKUP(P2,INDIRECT($B$2&"!A1:G100"),7,FALSE)) -> 65
F3: =INDIRECT(B1&"!N2") -> SS | G3: =INDIRECT(B1&"!O2") -> A Gonzalez | I3: =VLOOKUP(G3,INDIRECT($B$1&"!A1:F100"),3,FALSE) -> 49 | J3: =VLOOKUP(G3,INDIRECT($B$1&"!A1:F100"),4,FALSE) -> 69 | K3: 70 | L3: 20 | M3: 60 | O3: =INDIRECT(B2&"!N2") -> SS | P3: =INDIRECT(B2&"!O2") -> A Cabrera | R3: 58 | S3: 39 | T3: 75 | U3: =IFERROR(VLOOKUP(P3,INDIRECT($B$2&"!A1:F100"),6,FALSE),0) -> 20 | V3: 80
A4: Outs | B4: 0 | F4: =INDIRECT(B1&"!N3") -> RF | G4: =INDIRECT(B1&"!O3") -> J Bautista | I4: 49 | J4: 93 | K4: 60 | L4: 75 | M4: 25 | O4: =INDIRECT(B2&"!N3") -> RF | P4: =INDIRECT(B2&"!O3") -> S Choo | R4: 72 | S4: 67 | T4: 80 | U4: =IFERROR(VLOOKUP(P4,INDIRECT($B$2&"!A1:F100"),6,FALSE),0) -> 90 | V4: 35
F5: =INDIRECT(B1&"!N4") -> CF | G5: =INDIRECT(B1&"!O4") -> V Wells | I5: 57 | J5: 73 | K5: 75 | L5: 80 | M5: 35 | O5: =INDIRECT(B2&"!N4") -> LF | P5: =INDIRECT(B2&"!O4") -> S Duncan | R5: 33 | S5: 54 | T5: 45 | U5: =IFERROR(VLOOKUP(P5,INDIRECT($B$2&"!A1:F100"),6,FALSE),0) -> 55 | V5: 50
A6: Inning | B6: 1 | C6: =IF(C1="Fielding","Top","Bottom") -> Top | F6: =INDIRECT(B1&"!N5") -> DH | G6: =INDIRECT(B1&"!O5") -> A Lind | I6: 37 | J6: 55 | K6: 40 | L6: 20 | M6: 40 | O6: =INDIRECT(B2&"!N5") -> C | P6: =INDIRECT(B2&"!O5") -> C Santana | R6: 49 | S6: 63 | T6: 30 | U6: =IFERROR(VLOOKUP(P6,INDIRECT($B$2&"!A1:F100"),6,FALSE),0) -> 80 | V6: 60
A7: Away Hits | B7: 0 | F7: =INDIRECT(B1&"!N6") -> C | G7: =INDIRECT(B1&"!O6") -> J Buck | I7: 61 | J7: 68 | K7: 40 | L7: 60 | M7: 55 | O7: =INDIRECT(B2&"!N6") -> DH | P7: =INDIRECT(B2&"!O6") -> T Hafner | R7: 60 | S7: 60 | T7: 25 | U7: =IFERROR(VLOOKUP(P7,INDIRECT($B$2&"!A1:F100"),6,FALSE),0) -> 10 | V7: 10
A8: Home Hits | B8: 0 | F8: =INDIRECT(B1&"!N7") -> 1B | G8: =INDIRECT(B1&"!O7") -> L Overbay | I8: 40 | J8: 57 | K8: 45 | L8: 20 | M8: 40 | O8: =INDIRECT(B2&"!N7") -> 1B | P8: =INDIRECT(B2&"!O7") -> M LaPorta | R8: 28 | S8: 42 | T8: 30 | U8: 20 | V8: 20
A9: Away Errors | B9: 0 | F9: =INDIRECT(B1&"!N8") -> 3B | G9: =INDIRECT(B1&"!O8") -> E Encarnacion | I9: 40 | J9: 66 | K9: 70 | L9: 20 | M9: 60 | O9: =INDIRECT(B2&"!N8") -> 2B | P9: =INDIRECT(B2&"!O8") -> L Valbuena | R9: 12 | S9: 22 | T9: 75 | U9: 20 | V9: 70
A10: Home Errors | B10: 0 | F10: =INDIRECT(B1&"!N9") -> 2B | G10: =INDIRECT(B1&"!O9") -> J McDonald | I10: =IF(F10="P",20,IFERROR(VLOOKUP(G10,INDIRECT($B$1&"!A1:F100"),3,FALSE),20)) -> 44 | J10: =IF(F10="P",10,VLOOKUP(G10,INDIRECT($B$1&"!A1:F100"),4,FALSE)) -> 61 | K10: =IF(F10="P",25,IFERROR(VLOOKUP(G10,INDIRECT($B$1&"!A1:F100"),5,FALSE),20)) -> 75 | L10: =IFERROR(VLOOKUP(G10,INDIRECT($B$1&"!A18:F100"),6,FALSE),0) -> 20 | M10: =IF(F10="P",60,IF(VLOOKUP(G10,INDIRECT($B$1&"!A1:G100"),7,FALSE)=0,50,VLOOKUP(G10,INDIRECT($B$1&"!A1:G100"),7,FALSE))) -> 70 | O10: =INDIRECT(B2&"!N9") -> 3B | P10: =INDIRECT(B2&"!O9") -> J Nix | R10: =IF(O10="P",20,IFERROR(VLOOKUP(P10,INDIRECT($B$2&"!A1:F100"),3,FALSE),20)) -> 35 | S10: =IF(O10="P",10,IFERROR(VLOOKUP(P10,INDIRECT($B$2&"!A20:F100"),4,FALSE),20)) -> 54 | T10: =IF(O10="P",25,IFERROR(VLOOKUP(P10,INDIRECT($B$2&"!A18:F100"),5,FALSE),20)) -> 65 | U10: =IFERROR(VLOOKUP(P10,INDIRECT($B$2&"!A20:F100"),6,FALSE),0) -> 20 | V10: =IF(O10="P",60,IF(VLOOKUP(P10,INDIRECT($B$2&"!A1:G100"),7,FALSE)=0,50,VLOOKUP(P10,INDIRECT($B$2&"!A1:G100"),7,FALSE))) -> 55
A11: Infield In? | B11: N | C11: =IF(B11="N",1.3,0.4) -> 1.3 | I11: Effectiveness | J11: Stamina | K11: Total | R11: Effectiveness | S11: Stamina | T11: Total
F12: =INDIRECT(B1&"!N11") -> P | G12: =INDIRECT(B1&"!O11") -> S Marcum | I12: =IFERROR(VLOOKUP(G12,INDIRECT($B$1&"!A1:F100"),3,FALSE),10) -> 68 | J12: =IFERROR(VLOOKUP(G12,INDIRECT($B$1&"!A1:F100"),4,FALSE),3) -> 1 | K12: =IF(F12<>"P",0,IF(J12=1,IF(H13>24,IF(I12>50,50-(H13-24),I12-(H13-24)),I12),IF(J12=2,IF(H13>6,IF(I12>50,50-2*(H13-6),I12-2*(H13-6)),I12),IF(J12=3,IF(H13>3,IF(I12>50,50-3*(H13-3),I12-3*(H13-3)),I12),50)))) -> 68 | O12: =INDIRECT(B2&"!N11") -> P | P12: =INDIRECT(B2&"!O11") -> J Westbrook | R12: =IFERROR(VLOOKUP(P12,INDIRECT($B$2&"!A1:F100"),3,FALSE),10) -> 47 | S12: =IFERROR(VLOOKUP(P12,INDIRECT($B$2&"!A1:F100"),4,FALSE),3) -> 1 | T12: =IF(O12<>"P",0,IF(S12=1,IF(Q13>24,IF(R12>50,50-(Q13-24),R12-(Q13-24)),R12),IF(S12=2,IF(Q13>6,IF(R12>50,50-2*(Q13-6),R12-2*(Q13-6)),R12),IF(S12=3,IF(Q13>3,IF(R12>50,50-3*(Q13-3),R12-3*(Q13-3)),R12),50)))) -> 47
A13: Fielding | B13: P | C13: =IF($C$1="Batting",INDIRECT(B2&"!O11"),INDIRECT(B1&"!O11")) -> S Marcum | D13: =IF(C1="Fielding",VLOOKUP(C13,G12:K12,5,FALSE),VLOOKUP(C13,P12:T12,5,FALSE)) -> 68 | G13: Batters Faced | P13: Batters Faced
B14: C | C14: =IF($C$1="Batting",VLOOKUP(B14,$O$2:$P$12,2,FALSE),VLOOKUP(B14,$F$2:$G$12,2,FALSE)) -> J Buck | D14: =IF(C1="Fielding",VLOOKUP(C14,G2:L10,6,FALSE),VLOOKUP(C14,P2:U10,6,FALSE)) -> 60 | F14: Mound visit? | O14: Mound visit?
B15: 1B | C15: L Overbay
B16: 2B | C16: J McDonald
B17: 3B | C17: E Encarnacion
B18: SS | C18: A Gonzalez
B19: LF | C19: F Lewis | D19: =IF(C1="Fielding",VLOOKUP(C19,G2:L10,6,FALSE),VLOOKUP(C19,P2:U10,6,FALSE)) -> 65 | E19: =C19&" ("&D19&")" -> F Lewis (65)
B20: CF | C20: V Wells | D20: =IF(C1="Fielding",VLOOKUP(C20,G2:L10,6,FALSE),VLOOKUP(C20,P2:U10,6,FALSE)) -> 80 | E20: =C20&" ("&D20&")" -> V Wells (80)
B21: RF | C21: J Bautista | D21: =IF(C1="Fielding",VLOOKUP(C21,G2:L10,6,FALSE),VLOOKUP(C21,P2:U10,6,FALSE)) -> 75 | E21: J Bautista (75)
D22: Contact | E22: Power | F22: Speed | G22: Bunt | H22: Speed +/-
A23: 0 | B23: At bat | C23: =IF(C1="Fielding",INDEX(P:P,MATCH("*",Q:Q,0)),INDEX(G:G,MATCH("*",H:H,0))) -> M Brantley | D23: =IFERROR(VLOOKUP(C23,G2:K10,3,FALSE),0)+IFERROR(VLOOKUP(C23,P2:T10,3,FALSE),0) -> 42 | E23: =IFERROR(VLOOKUP(C23,G2:K10,4,FALSE),0)+IFERROR(VLOOKUP(C23,P2:T10,4,FALSE),0) -> 35 | F23: =IFERROR(VLOOKUP(C23,G2:K10,5,FALSE),0)+IFERROR(VLOOKUP(C23,P2:T10,5,FALSE),0) -> 85 | G23: =IFERROR(VLOOKUP(C23,G2:M10,7,FALSE),0)+IFERROR(VLOOKUP(C23,P2:V10,7,FALSE),0) -> 65 | H23: =F23-50 -> 35
A24: 1 | B24: 1st base | D24: =IFERROR(VLOOKUP(C24,G2:K10,3,FALSE),0)+IFERROR(VLOOKUP(C24,P2:T10,3,FALSE),0) -> 0 | E24: =IFERROR(VLOOKUP(C24,G2:K10,4,FALSE),0)+IFERROR(VLOOKUP(C24,P2:T10,4,FALSE),0) -> 0 | F24: =IFERROR(VLOOKUP(C24,G2:K10,5,FALSE),0)+IFERROR(VLOOKUP(C24,P2:T10,5,FALSE),0) -> 0 | G24: =IFERROR(VLOOKUP(C24,G2:M10,7,FALSE),0)+IFERROR(VLOOKUP(C24,P2:V10,7,FALSE),0) -> 0 | H24: =F24-50 -> -50
A25: 2 | B25: 2nd base | D25: =IFERROR(VLOOKUP(C25,G2:K10,3,FALSE),0)+IFERROR(VLOOKUP(C25,P2:T10,3,FALSE),0) -> 0 | E25: =IFERROR(VLOOKUP(C25,G2:K10,4,FALSE),0)+IFERROR(VLOOKUP(C25,P2:T10,4,FALSE),0) -> 0 | F25: =IFERROR(VLOOKUP(C25,G2:K10,5,FALSE),0)+IFERROR(VLOOKUP(C25,P2:T10,5,FALSE),0) -> 0 | G25: =IFERROR(VLOOKUP(C25,G2:M10,7,FALSE),0)+IFERROR(VLOOKUP(C25,P2:V10,7,FALSE),0) -> 0 | H25: =F25-50 -> -50
A26: 3 | B26: 3rd base | D26: =IFERROR(VLOOKUP(C26,G2:K10,3,FALSE),0)+IFERROR(VLOOKUP(C26,P2:T10,3,FALSE),0) -> 0 | E26: =IFERROR(VLOOKUP(C26,G2:K10,4,FALSE),0)+IFERROR(VLOOKUP(C26,P2:T10,4,FALSE),0) -> 0 | F26: =IFERROR(VLOOKUP(C26,G2:K10,5,FALSE),0)+IFERROR(VLOOKUP(C26,P2:T10,5,FALSE),0) -> 0 | G26: =IFERROR(VLOOKUP(C26,G2:M10,7,FALSE),0)+IFERROR(VLOOKUP(C26,P2:V10,7,FALSE),0) -> 0 | H26: -50
C28: =COUNTA(C23:C26) -> 1
A30: Hit direction | B30: left-center field | C30: =IF(B30="left field",C19,IF(B30="left-center field",C20,IF(B30="center field",C20,IF(B30="right-center field",C21,IF(B30="right field",C21,""))))) -> V Wells | D30: =VLOOKUP(C30,C13:D21,2,FALSE) -> 80 | E30: 19
A32: Score difference | C32: =ABS('Field of Play'!M2-'Field of Play'!M3) -> 0
A34: Out Player | B34: pitcher
A37: Clear bases marker in B38
B38: 1
A39: Inning Over
A41: Grounder scoring chances: | C41: 42
A43: Winning | B43: Athletics | C43: Athletics
A44: Losing | B44: Indians | C44: Indians
A46: Scoring P

Sheet Settings & Expansion
A1: Baseline batting average: | D1: 0.261
A3: GAME PLAY
A6: Welcome to Will Morrison's Excel Baseball. This page is designed to help with any game play questions that may come up.
A7: I recommend using Excel's search function if there is something specific you are looking for.
A9: When the game starts, you will be prompted to select the teams that are playing. After you do so, you will need to select the
A10: starting pitchers. If you are continuing a game in progress, just click the "Continue Game" button and the window will close.
A12: The main button you will be using is the "SWING!" button. This will prompt the pitcher to deliver the pitch and the event to
A13: occur. The other gameplay buttons on the "Field of Play" tab are "Mound Visit", "Toggle Infield Depth" and "Game Options".
A15: Mound Visit - This button allows the manager a chance to come settle down the pitcher. Just as in real baseball, sometimes
B16: this is beneficial and sometimes it is detrimental. Based on 50/50 odds, the pitcher will either react like he has
B17: pitched to fewer batters or more batters.
A19: Toggle Infield Depth - This button draws the infield in or moves them back. If the infield is in, the defensive team will have a
B20: better chance of gunning down a runner trying to score on a groundout. However, the batter's batting average will
B21: increase by 50 points. The infield depth is reset to normal after each play.
A23: Game Options - This button will lead to a number of managerial options:
B24: Steal A Base
B25: Sacrifice Bunt
B26: Issue an Intentional Walk
B27: Throw at the Batter
B28: Pinch Hit or Defensive Substitution
B29: Call to the Bullpen
B30: Start a New Game
B31: Link to www.mlb.com
B33: To return to the game, click on the picture icon in the middle of the window.
A35: The "Field of Play" tab (where the game is played) also has two other buttons. The first is About The Designer, which is just a
B36: short bio about me and how to get a hold of me with any questions or comments. The second is the Boss Button,
B37: which will close all the tabs except a new one called "Production" and has some data and a couple graphs that look
B38: look it could be business-related. There is a button on that page all the way at the bottom that will take you back to
B39: the game.
A41: Everything on the Game Info tab should not be adjusted during the game. If changes are made and then saved, the game will
B42: not run correctly, so make sure you do not move things around. It can be helpful to look at that page though and look
B43: at player ratings.
A45: NUMBER RATING EXPLANATION
A48: If you would like to adjust ratings for a player, you may do so at any time but it has to be in the right place. Each team has its own
B49: tab and that is where the changes need to be made. To the right of each player, there are numbers listed for various
B50: facets of the game. Here is how each of these numbers affect the game:
B52: PITCHERS
B53: 1) Effectiveness - This measures how good a pitcher is by comparing their WHIP to the league average. Pitchers
C54: start with an effectiveness rating of 50. A WHIP of 0.80 is the high mark, earning 100 points. A WHIP of
C55: 1.80 is the low mark, which would be an effectiveness rating of 0. Any WHIP can be converted to a raw
C56: score by using the formula y = -90.909x + 172.7272.
B57: 2) Stamina - This is more of a classification system than a true numerical ranking. 1 is for starting pitchers, 2 is for
C58: middle relievers and 3 is for short relievers. Starters tire more slowly, middle relievers more quickly and
C59: short relievers normally tire after one inning.
B61: HITTERS
B62: 1) Contact - This number is derived from comparing a player's batting average to the league average of .261. A
C63: batting average of exactly .261 earns a contact score of 50 and an average of .350 earns a 100 rating.
C64: Any batting average can be converted to a raw score by the formula y = 561.7977x - 96.6292.
C65: It will not change the players' ratings but you can adjust the standard in-game batting average at the top
C66: of this page. So if a batter and a pitcher have matching contact and effectiveness ratings, they will hit
C67: the average at the top of the page. The default setting is .261. If a hitter has a contact score higher than
C68: the pitcher's effectiveness score by 10 points, then the hitter will hit .261 + .010 = .271 against that
C69: particular pitcher.
B70: 2) Power - When the game generates a home run, a batter must also pass the power test. The probability of hitting a
C71: home run increases the higher power rating they have. This number is calculated by taking their slugging
C72: percentage and comparing it to an approximate league average of .400. A slugging percentage of .400
C73: earns the player a power rating of 50 and a slugging percentage of .650 earns them a 100. Any slugging
C74: percentage can be converted to a raw score by the formula y = 200x - 30. The game randomly generates
C75: a number between 0 and 100 and if the hitter's power score is higher than that number, then the batter
C76: will hit a home run if the random number before had determined a deep drive. If they do not pass the
C77: power test, the batter will hit a double.
B78: 3) Speed - This number affects stolen bases and baserunning plays like scoring from second base on a single.
C79: This number is harder to quantify as good baserunners are not always the fastest. Consider 50 average
C80: with 0 being Cecil Fielder and 100 being Rickey Henderson.
B81: 4) Arm - The arm rating really only affects outfielders and catchers. Infielders do not have arm ratings as infield range
C82: is taken into account into the hit probabilities. I am hoping to fix this in later versions if I ever get around
C83: to it. Just like speed, this is harder to quantify so it is kind of a judgment call. Roberto Clemente would be
C84: 100 and Johnny Damon would be a 20. Similarly, Johnny Bench would be a 100 and Mike Piazza would
C85: a 20 or so. All players who are not catchers or outfielders should be listed as 20 so if they are put in those
C86: positions, they will perform poorly. Don't set it equal to 0, no outfielder is completely inept.
B87: 5) Bunt - This number is setting the percentage of time they can sacrifice successfully. Bunt execution percentage is
C88: a stat I have never seen so use yout best judgment here as well.
A90: EXPANSION
A93: This workbook is not currently set up for the addition of other teams. Adding other teams would require manual changes in the
A94: code. If you want to take a crack at adding new teams, go for it, just remember that the workbook is very particular about what
A95: data is going in what cells. One number in the wrong place can cause the game to crash. I am planning on adding other teams
A96: as new season gets played. I am also interested in putting together a workbook of the greatest teams in baseball history. If
A97: there are modifications you would like to see or if you want to provide me a list of teams you would like to have in a workbook,
A98: please email me at will.e.morrison@gmail.com.

Sheet Angels
A1: PITCHERS | C1: WHIP | D1: Stamina | E1: 1 | F1: SS | G1: E Aybar | I1: 1 | J1: J Weaver | M1: 1 | N1: SS | O1: E Aybar
A2: J Weaver | C2: 75 | D2: 1 | E2: 2 | F2: RF | G2: B Abreu | I2: 2 | J2: E Santana | M2: 2 | N2: RF | O2: B Abreu
A3: E Santana | C3: 53 | D3: 1 | E3: 3 | F3: CF | G3: T Hunter | I3: 3 | J3: J Piniero | M3: 3 | N3: CF | O3: T Hunter
A4: J Piniero | C4: 60 | D4: 1 | E4: 4 | F4: 1B | G4: K Morales | I4: 4 | J4: S Kazmir | M4: 4 | N4: 1B | O4: K Morales
A5: S Kazmir | C5: 29 | D5: 1 | E5: 5 | F5: DH | G5: H Matsui | M5: 5 | N5: DH | O5: H Matsui
A6: B Fuentes | C6: 64 | D6: 3 | E6: 6 | F6: LF | G6: J Rivera | M6: 6 | N6: LF | O6: J Rivera
A7: F Rodney | C7: 32 | D7: 3 | E7: 7 | F7: 3B | G7: H Kendrick | M7: 7 | N7: 3B | O7: H Kendrick
A8: K Jepsen | C8: 45 | D8: 2 | E8: 8 | F8: C | G8: M Napoli | M8: 8 | N8: C | O8: M Napoli
A9: F Rodriguez | C9: 34 | D9: 3 | E9: 9 | F9: 2B | G9: A Callaspo | M9: 9 | N9: 2B | O9: A Callaspo
A10: S Shields | C10: 17 | D10: 3
A11: T Bell | C11: 27 | D11: 2 | N11: P | O11: J Weaver
A12: M Palmer | C12: 16 | D12: 2
A13: CATCHERS | C13: AVG | D13: Slug% | E13: Speed | F13: Def/Arm | G13: Bunt | P13: IP | Q13: H | R13: R | S13: K | T13: ERA | W13: BB
A14: M Napoli | C14: 37 | D14: 64 | E14: 40 | F14: 50 | G14: 50 | N14: Starter | O14: J Weaver | T14: =IFERROR(IF(O14="","",R14*9/P14),"INF") -> INF
A15: J Mathis | C15: 13 | D15: 26 | E15: 50 | F15: 70 | G15: 40
A16: INFIELDERS
A17: H Kendrick | C17: 60 | D17: 51 | E17: 80 | F17: 20 | G17: 75
A18: K Morales | C18: 66 | D18: 67 | E18: 60 | F18: 20 | G18: 35
A19: A Callaspo | C19: 43 | D19: 33 | E19: 92 | F19: 20 | G19: 80
A20: E Aybar | C20: 46 | D20: 36 | E20: 75 | F20: 20 | G20: 70
A21: K Frandsen | C21: 44 | D21: 34 | E21: 60 | F21: 20 | G21: 55 | T21: =IF(O21="","",R21*9/P21) -> 
A22: M Izturis | C22: 44 | D22: 43 | E22: 65 | F22: 20 | G22: 70
A23: OUTFIELDERS
A24: J Rivera | C24: 45 | D24: 52 | E24: 30 | F24: 50 | G24: 20
A25: B Abreu | C25: 47 | D25: 57 | E25: 60 | F25: 80 | G25: 65
A26: T Hunter | C26: 61 | D26: 63 | E26: 80 | F26: 85 | G26: 60
A27: H Matsui | C27: 57 | D27: 62 | E27: 75 | F27: 30 | G27: 25
A28: P Bourjos | C28: 18 | D28: 46 | E28: 40 | F28: 55 | G28: 80
A29: R Willits | C29: 48 | D29: 30 | E29: 80 | F29: 70 | G29: 80
C43: AB | D43: H | E43: RBI | F43: Run | G43: HR | H43: 3B | I43: 2B | J43: SB
A44: PITCHERS | C44: 0 | D44: 0 | E44: 0 | F44: 0 | G44: 0 | H44: 0 | I44: 0 | J44: 0
A45: J Weaver | B45: 1 | C45: 0 | D45: 0 | E45: 0 | F45: 0 | G45: 0 | H45: 0 | I45: 0 | J45: 0
A46: E Santana | C46: 0 | D46: 0 | E46: 0 | F46: 0 | G46: 0 | H46: 0 | I46: 0 | J46: 0
A47: J Piniero | C47: 0 | D47: 0 | E47: 0 | F47: 0 | G47: 0 | H47: 0 | I47: 0 | J47: 0
A48: S Kazmir | C48: 0 | D48: 0 | E48: 0 | F48: 0 | G48: 0 | H48: 0 | I48: 0 | J48: 0
A49: B Fuentes | C49: 0 | D49: 0 | E49: 0 | F49: 0 | G49: 0 | H49: 0 | I49: 0 | J49: 0
A50: F Rodney | C50: 0 | D50: 0 | E50: 0 | F50: 0 | G50: 0 | H50: 0 | I50: 0 | J50: 0
A51: K Jepsen | C51: 0 | D51: 0 | E51: 0 | F51: 0 | G51: 0 | H51: 0 | I51: 0 | J51: 0
A52: F Rodriguez | C52: 0 | D52: 0 | E52: 0 | F52: 0 | G52: 0 | H52: 0 | I52: 0 | J52: 0
A53: S Shields | C53: 0 | D53: 0 | E53: 0 | F53: 0 | G53: 0 | H53: 0 | I53: 0 | J53: 0
A54: T Bell | C54: 0 | D54: 0 | E54: 0 | F54: 0 | G54: 0 | H54: 0 | I54: 0 | J54: 0
A55: M Palmer | C55: 0 | D55: 0 | E55: 0 | F55: 0 | G55: 0 | H55: 0 | I55: 0 | J55: 0
A56: CATCHERS | C56: 0 | D56: 0 | E56: 0 | F56: 0 | G56: 0 | H56: 0 | I56: 0 | J56: 0
A57: M Napoli | B57: 1 | C57: 0 | D57: 0 | E57: 0 | F57: 0 | G57: 0 | H57: 0 | I57: 0 | J57: 0
A58: J Mathis | C58: 0 | D58: 0 | E58: 0 | F58: 0 | G58: 0 | H58: 0 | I58: 0 | J58: 0
A59: INFIELDERS | C59: 0 | D59: 0 | E59: 0 | F59: 0 | G59: 0 | H59: 0 | I59: 0 | J59: 0
A60: H Kendrick | B60: 1 | C60: 0 | D60: 0 | E60: 0 | F60: 0 | G60: 0 | H60: 0 | I60: 0 | J60: 0
A61: K Morales | B61: 1 | C61: 0 | D61: 0 | E61: 0 | F61: 0 | G61: 0 | H61: 0 | I61: 0 | J61: 0
A62: A Callaspo | B62: 1 | C62: 0 | D62: 0 | E62: 0 | F62: 0 | G62: 0 | H62: 0 | I62: 0 | J62: 0
A63: E Aybar | B63: 1 | C63: 0 | D63: 0 | E63: 0 | F63: 0 | G63: 0 | H63: 0 | I63: 0 | J63: 0
A64: K Frandsen | C64: 0 | D64: 0 | E64: 0 | F64: 0 | G64: 0 | H64: 0 | I64: 0 | J64: 0
A65: M Izturis | C65: 0 | D65: 0 | E65: 0 | F65: 0 | G65: 0 | H65: 0 | I65: 0 | J65: 0
A66: OUTFIELDERS | C66: 0 | D66: 0 | E66: 0 | F66: 0 | G66: 0 | H66: 0 | I66: 0 | J66: 0
A67: J Rivera | B67: 1 | C67: 0 | D67: 0 | E67: 0 | F67: 0 | G67: 0 | H67: 0 | I67: 0 | J67: 0
A68: B Abreu | B68: 1 | C68: 0 | D68: 0 | E68: 0 | F68: 0 | G68: 0 | H68: 0 | I68: 0 | J68: 0
A69: T Hunter | B69: 1 | C69: 0 | D69: 0 | E69: 0 | F69: 0 | G69: 0 | H69: 0 | I69: 0 | J69: 0
A70: H Matsui | B70: 1 | C70: 0 | D70: 0 | E70: 0 | F70: 0 | G70: 0 | H70: 0 | I70: 0 | J70: 0
A71: P Bourjos | C71: 0 | D71: 0 | E71: 0 | F71: 0 | G71: 0 | H71: 0 | I71: 0 | J71: 0
A72: R Willits | C72: 0 | D72: 0 | E72: 0 | F72: 0 | G72: 0 | H72: 0 | I72: 0 | J72: 0
B73: 99 | C73: 0 | D73: 0 | E73: 0 | F73: 0 | G73: 0 | H73: 0 | I73: 0 | J73: 0

Sheet Astros
A1: PITCHERS | C1: Effectiveness | D1: Stamina | E1: 1 | F1: CF | G1: M Bourn | I1: 1 | J1: R Oswalt | M1: 1 | N1: CF | O1: M Bourn
A2: R Oswalt | C2: 72 | D2: 1 | E2: 2 | F2: 2B | G2: J Keppinger | I2: 2 | J2: B Myers | M2: 2 | N2: 2B | O2: J Keppinger
A3: B Myers | C3: 60 | D3: 1 | E3: 3 | F3: RF | G3: H Pence | I3: 3 | J3: W Rodriguez | M3: 3 | N3: RF | O3: H Pence
A4: W Rodriguez | C4: 56 | D4: 1 | E4: 4 | F4: 1B | G4: L Berkman | I4: 4 | J4: B Norris | M4: 4 | N4: 1B | O4: L Berkman
A5: B Norris | C5: 38 | D5: 1 | E5: 5 | F5: LF | G5: C Lee | M5: 5 | N5: LF | O5: C Lee
A6: M Lindstrom | C6: 23 | D6: 3 | E6: 6 | F6: 3B | G6: C Johnson | M6: 6 | N6: 3B | O6: C Johnson
A7: B Lyon | C7: 57 | D7: 3 | E7: 7 | F7: C | G7: H Quintero | M7: 7 | N7: C | O7: H Quintero
A8: W Lopez | C8: 76 | D8: 3 | E8: 8 | F8: SS | G8: T Manzella | M8: 8 | N8: SS | O8: T Manzella
A9: J Fulchino | C9: 29 | D9: 3 | E9: 9 | F9: P | G9: R Oswalt | M9: 9 | N9: P | O9: R Oswalt | OP9: D Brocail
A10: T Byrdak | C10: 32 | D10: 2
A11: N Figueroa | C11: 52 | D11: 2 | N11: P | O11: R Oswalt
A12: J Happ | C12: 53 | D12: 2 | T12: =IF(O12="","",(9*R12)/P12) -> 
A13: CATCHERS | C13: AVG | D13: Slug% | E13: Speed | F13: Def/Arm | G13: Bunt | P13: IP | Q13: H | R13: R | S13: K | T13: ERA | W13: BB
A14: H Quintero | C14: 35 | D14: 33 | E14: 40 | F14: 75 | G14: 60 | N14: Starter | O14: R Oswalt | T14: =IFERROR(IF(O14="","",R14*9/P14),"INF") -> INF | Y14: 0 | Z14: 0
A15: J Castro | C15: 19 | D15: 27 | E15: 20 | F15: 65 | G15: 55 | Y15: 0 | Z15: 0
A16: INFIELDERS | Y16: 0 | Z16: 0
A17: L Berkman | C17: 41 | D17: 57 | E17: 30 | F17: 50 | G17: 20
A18: J Keppinger | C18: 65 | D18: 49 | E18: 60 | F18: 20 | G18: 65
A19: G Blum | C19: 53 | D19: 41 | E19: 60 | F19: 50 | G19: 65
A20: T Manzella | C20: 30 | D20: 23 | E20: 75 | F20: 20 | G20: 70
A21: C Johnson | C21: 76 | D21: 66 | E21: 65 | F21: 20 | G21: 80 | T21: =IF(O21="","",R21*9/P21) -> 
A22: P Feliz | C22: 28 | D22: 32 | E22: 75 | F22: 20 | G22: 75
A23: A Sanchez | C23: 61 | D23: 40 | E23: 60 | F23: 20 | G23: 60
A24: OUTFIELDERS
A25: C Lee | C25: 42 | D25: 53 | E25: 65 | F25: 60 | G25: 40
A26: M Bourn | C26: 52 | D26: 39 | E26: 95 | F26: 50 | G26: 80
A27: H Pence | C27: 62 | D27: 62 | E27: 70 | F27: 60 | G27: 75
A28: J Michaels | C28: 46 | D28: 64 | E28: 30 | F28: 55 | G28: 20
A29: J Bourgeois | C29: 27 | D29: 24 | E29: 75 | F29: 60 | G29: 65
C43: AB | D43: H | E43: RBI | F43: Run | G43: HR | H43: 3B | I43: 2B | J43: SB
A44: PITCHERS | C44: 0 | D44: 0 | E44: 0 | F44: 0 | G44: 0 | H44: 0 | I44: 0 | J44: 0
A45: R Oswalt | B45: 1 | C45: 0 | D45: 0 | E45: 0 | F45: 0 | G45: 0 | H45: 0 | I45: 0 | J45: 0
A46: B Myers | C46: 0 | D46: 0 | E46: 0 | F46: 0 | G46: 0 | H46: 0 | I46: 0 | J46: 0
A47: W Rodriguez | C47: 0 | D47: 0 | E47: 0 | F47: 0 | G47: 0 | H47: 0 | I47: 0 | J47: 0
A48: B Norris | C48: 0 | D48: 0 | E48: 0 | F48: 0 | G48: 0 | H48: 0 | I48: 0 | J48: 0
A49: M Lindstrom | C49: 0 | D49: 0 | E49: 0 | F49: 0 | G49: 0 | H49: 0 | I49: 0 | J49: 0
A50: B Lyon | C50: 0 | D50: 0 | E50: 0 | F50: 0 | G50: 0 | H50: 0 | I50: 0 | J50: 0
A51: W Lopez | C51: 0 | D51: 0 | E51: 0 | F51: 0 | G51: 0 | H51: 0 | I51: 0 | J51: 0
A52: J Fulchino | C52: 0 | D52: 0 | E52: 0 | F52: 0 | G52: 0 | H52: 0 | I52: 0 | J52: 0
A53: T Byrdak | C53: 0 | D53: 0 | E53: 0 | F53: 0 | G53: 0 | H53: 0 | I53: 0 | J53: 0
A54: N Figueroa | C54: 0 | D54: 0 | E54: 0 | F54: 0 | G54: 0 | H54: 0 | I54: 0 | J54: 0
A55: J Happ | C55: 0 | D55: 0 | E55: 0 | F55: 0 | G55: 0 | H55: 0 | I55: 0 | J55: 0
A56: CATCHERS | C56: 0 | D56: 0 | E56: 0 | F56: 0 | G56: 0 | H56: 0 | I56: 0 | J56: 0
A57: H Quintero | B57: 1 | C57: 0 | D57: 0 | E57: 0 | F57: 0 | G57: 0 | H57: 0 | I57: 0 | J57: 0
A58: J Castro | C58: 0 | D58: 0 | E58: 0 | F58: 0 | G58: 0 | H58: 0 | I58: 0 | J58: 0
A59: INFIELDERS | C59: 0 | D59: 0 | E59: 0 | F59: 0 | G59: 0 | H59: 0 | I59: 0 | J59: 0
A60: L Berkman | B60: 1 | C60: 0 | D60: 0 | E60: 0 | F60: 0 | G60: 0 | H60: 0 | I60: 0 | J60: 0
A61: J Keppinger | B61: 1 | C61: 0 | D61: 0 | E61: 0 | F61: 0 | G61: 0 | H61: 0 | I61: 0 | J61: 0
A62: G Blum | C62: 0 | D62: 0 | E62: 0 | F62: 0 | G62: 0 | H62: 0 | I62: 0 | J62: 0
A63: T Manzella | B63: 1 | C63: 0 | D63: 0 | E63: 0 | F63: 0 | G63: 0 | H63: 0 | I63: 0 | J63: 0
A64: C Johnson | B64: 1 | C64: 0 | D64: 0 | E64: 0 | F64: 0 | G64: 0 | H64: 0 | I64: 0 | J64: 0
A65: P Feliz | C65: 0 | D65: 0 | E65: 0 | F65: 0 | G65: 0 | H65: 0 | I65: 0 | J65: 0
A66: A Sanchez | C66: 0 | D66: 0 | E66: 0 | F66: 0 | G66: 0 | H66: 0 | I66: 0 | J66: 0
A67: OUTFIELDERS | C67: 0 | D67: 0 | E67: 0 | F67: 0 | G67: 0 | H67: 0 | I67: 0 | J67: 0
A68: C Lee | B68: 1 | C68: 0 | D68: 0 | E68: 0 | F68: 0 | G68: 0 | H68: 0 | I68: 0 | J68: 0
A69: M Bourn | B69: 1 | C69: 0 | D69: 0 | E69: 0 | F69: 0 | G69: 0 | H69: 0 | I69: 0 | J69: 0
A70: H Pence | B70: 1 | C70: 0 | D70: 0 | E70: 0 | F70: 0 | G70: 0 | H70: 0 | I70: 0 | J70: 0
A71: J Michaels | C71: 0 | D71: 0 | E71: 0 | F71: 0 | G71: 0 | H71: 0 | I71: 0 | J71: 0
A72: J Bourgeois | C72: 0 | D72: 0 | E72: 0 | F72: 0 | G72: 0 | H72: 0 | I72: 0 | J72: 0
B73: 99 | C73: 0 | D73: 0 | E73: 0 | F73: 0 | G73: 0 | H73: 0 | I73: 0 | J73: 0

Sheet Athletics
A1: PITCHERS | C1: Effectiveness | D1: Stamina | E1: 1 | F1: CF | G1: R Davis | I1: 1 | J1: G Gonzalez | M1: 1 | N1: CF | O1: R Davis
A2: G Gonzalez | C2: 54 | D2: 1 | E2: 2 | F2: 1B | G2: D Barton | I2: 2 | J2: T Cahill | M2: 2 | N2: 1B | O2: D Barton
A3: T Cahill | C3: 72 | D3: 1 | E3: 3 | F3: C | G3: K Suzuki | I3: 3 | J3: D Braden | M3: 3 | N3: C | O3: K Suzuki
A4: D Braden | C4: 68 | D4: 1 | E4: 4 | F4: 3B | G4: K Kouzmanoff | I4: 4 | J4: B Anderson | M4: 4 | N4: 3B | O4: K Kouzmanoff
A5: B Anderson | C5: 64 | D5: 1 | E5: 5 | F5: DH | G5: J Cust | M5: 5 | N5: DH | O5: J Cust
A6: A Bailey | C6: 86 | D6: 3 | E6: 6 | F6: RF | G6: R Sweeney | M6: 6 | N6: RF | O6: R Sweeney
A7: C Breslow | C7: 73 | D7: 3 | E7: 7 | F7: 2B | G7: M Ellis | M7: 7 | N7: 2B | O7: M Ellis
A8: B Ziegler | C8: 50 | D8: 3 | E8: 8 | F8: LF | G8: C Crisp | M8: 8 | N8: LF | O8: C Crisp
A9: J Blevins | C9: 38 | D9: 3 | E9: 9 | F9: SS | G9: C Pennington | M9: 9 | N9: SS | O9: C Pennington
A10: M Wuertz | C10: 44 | D10: 2
A11: B Sheets | C11: 46 | D11: 2 | N11: P | O11: A Bailey
A12: V Mazzaro | C12: 41 | D12: 2
A13: CATCHERS | C13: Contact | D13: Power | E13: Speed | F13: Def/Arm | G13: Bunt | P13: IP | Q13: H | R13: R | S13: K | T13: ERA | W13: BB
A14: K Suzuki | C14: 39 | D14: 43 | E14: 75 | F14: 70 | G14: 60 | N14: Starter | O14: G Gonzalez | P14: =ROUND(7,2) -> 7 | Q14: 8 | R14: 3 | S14: 6 | T14: =ROUND(3.85714285714286,2) -> 3.86 | U14: W | W14: 2
A15: L Powell | C15: 24 | D15: 31 | E15: 45 | F15: 65 | G15: 50 | O15: B Ziegler | P15: =ROUND(1,2) -> 1 | Q15: 0 | R15: 0 | S15: 1 | T15: =ROUND(0,2) -> 0 | W15: 0
A16: INFIELDERS | O16: A Bailey | P16: =ROUND(1,2) -> 1 | Q16: 0 | R16: 0 | S16: 1 | T16: =ROUND(0,2) -> 0 | W16: 0
A17: D Barton | C17: 57 | D17: 43 | E17: 40 | F17: 20 | G17: 40 | T17: =IFERROR(IF(O17="","",R17*9/P17),"INF") -> 
A18: E Chavez | C18: 35 | D18: 37 | E18: 40 | F18: 20 | G18: 35 | T18: =IFERROR(IF(O18="","",R18*9/P18),"INF") -> 
A19: M Ellis | C19: 67 | D19: 46 | E19: 70 | F19: 20 | G19: 75 | T19: =IFERROR(IF(O19="","",R19*9/P19),"INF") -> 
A20: C Pennington | C20: 44 | D20: 44 | E20: 60 | F20: 20 | G20: 55 | T20: =IFERROR(IF(O20="","",R20*9/P20),"INF") -> 
A21: K Kouzmanoff | C21: 42 | D21: 49 | E21: 30 | F21: 20 | G21: 40 | T21: =IF(O21="","",R21*9/P21) -> 
A22: J Cust | C22: 56 | D22: 58 | E22: 55 | F22: 50 | G22: 35
A23: A Rosales | C23: 56 | D23: 50 | E23: 60 | F23: 20 | G23: 60
A24: OUTFIELDERS
A25: G Gross | C25: 38 | D25: 32 | E25: 65 | F25: 65 | G25: 40
A26: R Davis | C26: 63 | D26: 45 | E26: 85 | F26: 85 | G26: 75
A27: R Sweeney | C27: 69 | D27: 47 | E27: 70 | F27: 90 | G27: 50
A28: C Crisp | C28: 60 | D28: 58 | E28: 65 | F28: 55 | G28: 75
A29: C Jackson | C29: 31 | D29: 33 | E29: 55 | F29: 65 | G29: 45
C43: AB | D43: H | E43: RBI | F43: Run | G43: HR | H43: 3B | I43: 2B | J43: SB
A44: PITCHERS | C44: 0 | D44: 0 | E44: 0 | F44: 0 | G44: 0 | H44: 0 | I44: 0 | J44: 0
A45: G Gonzalez | B45: 1 | C45: 0 | D45: 0 | E45: 0 | F45: 0 | G45: 0 | H45: 0 | I45: 0 | J45: 0
A46: T Cahill | C46: 0 | D46: 0 | E46: 0 | F46: 0 | G46: 0 | H46: 0 | I46: 0 | J46: 0
A47: D Braden | C47: 0 | D47: 0 | E47: 0 | F47: 0 | G47: 0 | H47: 0 | I47: 0 | J47: 0
A48: B Anderson | C48: 0 | D48: 0 | E48: 0 | F48: 0 | G48: 0 | H48: 0 | I48: 0 | J48: 0
A49: A Bailey | B49: 1 | C49: 0 | D49: 0 | E49: 0 | F49: 0 | G49: 0 | H49: 0 | I49: 0 | J49: 0
A50: C Breslow | C50: 0 | D50: 0 | E50: 0 | F50: 0 | G50: 0 | H50: 0 | I50: 0 | J50: 0
A51: B Ziegler | B51: 1 | C51: 0 | D51: 0 | E51: 0 | F51: 0 | G51: 0 | H51: 0 | I51: 0 | J51: 0
A52: J Blevins | C52: 0 | D52: 0 | E52: 0 | F52: 0 | G52: 0 | H52: 0 | I52: 0 | J52: 0
A53: M Wuertz | C53: 0 | D53: 0 | E53: 0 | F53: 0 | G53: 0 | H53: 0 | I53: 0 | J53: 0
A54: B Sheets | C54: 0 | D54: 0 | E54: 0 | F54: 0 | G54: 0 | H54: 0 | I54: 0 | J54: 0
A55: V Mazzaro | C55: 0 | D55: 0 | E55: 0 | F55: 0 | G55: 0 | H55: 0 | I55: 0 | J55: 0
A56: CATCHERS | C56: 0 | D56: 0 | E56: 0 | F56: 0 | G56: 0 | H56: 0 | I56: 0 | J56: 0
A57: K Suzuki | B57: 1 | C57: 5 | D57: 2 | E57: 0 | F57: 0 | G57: 0 | H57: 0 | I57: 0 | J57: 0
A58: L Powell | C58: 0 | D58: 0 | E58: 0 | F58: 0 | G58: 0 | H58: 0 | I58: 0 | J58: 0
A59: INFIELDERS | C59: 0 | D59: 0 | E59: 0 | F59: 0 | G59: 0 | H59: 0 | I59: 0 | J59: 0
A60: D Barton | B60: 1 | C60: 5 | D60: 4 | E60: 3 | F60: 1 | G60: 1 | H60: 0 | I60: 1 | J60: 0
A61: E Chavez | C61: 0 | D61: 0 | E61: 0 | F61: 0 | G61: 0 | H61: 0 | I61: 0 | J61: 0
A62: M Ellis | B62: 1 | C62: 5 | D62: 2 | E62: 2 | F62: 1 | G62: 1 | H62: 0 | I62: 0 | J62: 0
A63: C Pennington | B63: 1 | C63: 4 | D63: 2 | E63: 0 | F63: 1 | G63: 0 | H63: 0 | I63: 1 | J63: 0
A64: K Kouzmanoff | B64: 1 | C64: 5 | D64: 0 | E64: 0 | F64: 0 | G64: 0 | H64: 0 | I64: 0 | J64: 0
A65: J Cust | B65: 1 | C65: 5 | D65: 3 | E65: 1 | F65: 1 | G65: 1 | H65: 0 | I65: 1 | J65: 0
A66: A Rosales | C66: 0 | D66: 0 | E66: 0 | F66: 0 | G66: 0 | H66: 0 | I66: 0 | J66: 0
A67: OUTFIELDERS | C67: 0 | D67: 0 | E67: 0 | F67: 0 | G67: 0 | H67: 0 | I67: 0 | J67: 0
A68: G Gross | C68: 0 | D68: 0 | E68: 0 | F68: 0 | G68: 0 | H68: 0 | I68: 0 | J68: 0
A69: R Davis | B69: 1 | C69: 5 | D69: 2 | E69: 1 | F69: 1 | G69: 0 | H69: 0 | I69: 2 | J69: 0
A70: R Sweeney | B70: 1 | C70: 5 | D70: 3 | E70: 0 | F70: 1 | G70: 0 | H70: 0 | I70: 0 | J70: 1
A71: C Crisp | B71: 1 | C71: 5 | D71: 3 | E71: 1 | F71: 2 | G71: 1 | H71: 0 | I71: 1 | J71: 0
A72: C Jackson | C72: 0 | D72: 0 | E72: 0 | F72: 0 | G72: 0 | H72: 0 | I72: 0 | J72: 0
B73: 99 | C73: 0 | D73: 0 | E73: 0 | F73: 0 | G73: 0 | H73: 0 | I73: 0 | J73: 0

Sheet BlueJays
A1: PITCHERS | C1: Effectiveness | D1: Stamina | E1: 1 | F1: LF | G1: F Lewis | I1: 1 | J1: R Romero | M1: 1 | N1: LF | O1: F Lewis
A2: R Romero | C2: 55 | D2: 1 | E2: 2 | F2: SS | G2: A Gonzalez | I2: 2 | J2: S Marcum | M2: 2 | N2: SS | O2: A Gonzalez
A3: S Marcum | C3: 68 | D3: 1 | E3: 3 | F3: RF | G3: J Bautista | I3: 3 | J3: B Cecil | M3: 3 | N3: RF | O3: J Bautista
A4: B Cecil | C4: 52 | D4: 1 | E4: 4 | F4: CF | G4: V Wells | I4: 4 | J4: B Morrow | M4: 4 | N4: CF | O4: V Wells
A5: B Morrow | C5: 47 | D5: 1 | E5: 5 | F5: DH | G5: A Lind | M5: 5 | N5: DH | O5: A Lind
A6: M Rzepczynski | C6: 27 | D6: 2 | E6: 6 | F6: C | G6: J Buck | M6: 6 | N6: C | O6: J Buck
A7: K Gregg | C7: 46 | D7: 3 | E7: 7 | F7: 1B | G7: L Overbay | M7: 7 | N7: 1B | O7: L Overbay
A8: S Camp | C8: 61 | D8: 3 | E8: 8 | F8: 3B | G8: E Encarnacion | M8: 8 | N8: 3B | O8: E Encarnacion
A9: C Janssen | C9: 47 | D9: 2 | E9: 9 | F9: 2B | G9: J McDonald | M9: 9 | N9: 2B | O9: J McDonald
A10: J Frasor | C10: 47 | D10: 3
A11: S Downs | C11: 82 | D11: 3 | N11: P | O11: S Marcum
A12: B Tallet | C12: 29 | D12: 2
A13: CATCHERS | C13: Contact | D13: Power | E13: Speed | F13: Def/Arm | G13: Bunt | P13: IP | Q13: H | R13: R | S13: K | T13: ERA | W13: BB
A14: J Buck | C14: 61 | D14: 68 | E14: 40 | F14: 60 | G14: 55 | N14: Starter | O14: S Marcum | T14: =IFERROR(IF(O14="","",R14*9/P14),"INF") -> INF
A15: J Molina | C15: 42 | D15: 45 | E15: 30 | F15: 75 | G15: 60 | T15: =IFERROR(IF(O15="","",R15*9/P15),"INF") -> 
A16: INFIELDERS | T16: =IFERROR(IF(O16="","",R16*9/P16),"INF") -> 
A17: L Overbay | C17: 40 | D17: 57 | E17: 45 | F17: 20 | G17: 40 | T17: =IFERROR(IF(O17="","",R17*9/P17),"INF") -> 
A18: A Hill | C18: 19 | D18: 49 | E18: 70 | F18: 20 | G18: 70 | T18: =IFERROR(IF(O18="","",R18*9/P18),"INF") -> 
A19: A Gonzalez | C19: 49 | D19: 69 | E19: 70 | F19: 20 | G19: 60 | T19: =IFERROR(IF(O19="","",R19*9/P19),"INF") -> 
A20: E Encarnacion | C20: 40 | D20: 66 | E20: 70 | F20: 20 | G20: 60 | T20: =IFERROR(IF(O20="","",R20*9/P20),"INF") -> 
A21: A Lind | C21: 37 | D21: 55 | E21: 40 | F21: 20 | G21: 40 | T21: =IF(O21="","",R21*9/P21) -> 
A22: J McDonald | C22: 44 | D22: 61 | E22: 75 | F22: 20 | G22: 70
A23: Y Escobar | C23: 58 | D23: 41 | E23: 65 | F23: 20 | G23: 70
A24: OUTFIELDERS
A25: F Lewis | C25: 51 | D25: 53 | E25: 60 | F25: 65 | G25: 60
A26: V Wells | C26: 57 | D26: 73 | E26: 75 | F26: 80 | G26: 35
A27: J Bautista | C27: 49 | D27: 93 | E27: 60 | F27: 75 | G27: 25
A28: T Snider | C28: 47 | D28: 63 | E28: 60 | F28: 60 | G28: 60
A29: D Wise | C29: 44 | D29: 49 | E29: 75 | F29: 50 | G29: 70
C43: AB | D43: H | E43: RBI | F43: Run | G43: HR | H43: 3B | I43: 2B | J43: SB
A44: PITCHERS | C44: 0 | D44: 0 | E44: 0 | F44: 0 | G44: 0 | H44: 0 | I44: 0 | J44: 0
A45: R Romero | C45: 0 | D45: 0 | E45: 0 | F45: 0 | G45: 0 | H45: 0 | I45: 0 | J45: 0
A46: S Marcum | B46: 1 | C46: 0 | D46: 0 | E46: 0 | F46: 0 | G46: 0 | H46: 0 | I46: 0 | J46: 0
A47: B Cecil | C47: 0 | D47: 0 | E47: 0 | F47: 0 | G47: 0 | H47: 0 | I47: 0 | J47: 0
A48: B Morrow | C48: 0 | D48: 0 | E48: 0 | F48: 0 | G48: 0 | H48: 0 | I48: 0 | J48: 0
A49: M Rzepczynski | C49: 0 | D49: 0 | E49: 0 | F49: 0 | G49: 0 | H49: 0 | I49: 0 | J49: 0
A50: K Gregg | C50: 0 | D50: 0 | E50: 0 | F50: 0 | G50: 0 | H50: 0 | I50: 0 | J50: 0
A51: S Camp | C51: 0 | D51: 0 | E51: 0 | F51: 0 | G51: 0 | H51: 0 | I51: 0 | J51: 0
A52: C Janssen | C52: 0 | D52: 0 | E52: 0 | F52: 0 | G52: 0 | H52: 0 | I52: 0 | J52: 0
A53: J Frasor | C53: 0 | D53: 0 | E53: 0 | F53: 0 | G53: 0 | H53: 0 | I53: 0 | J53: 0
A54: S Downs | C54: 0 | D54: 0 | E54: 0 | F54: 0 | G54: 0 | H54: 0 | I54: 0 | J54: 0
A55: B Tallet | C55: 0 | D55: 0 | E55: 0 | F55: 0 | G55: 0 | H55: 0 | I55: 0 | J55: 0
A56: CATCHERS | C56: 0 | D56: 0 | E56: 0 | F56: 0 | G56: 0 | H56: 0 | I56: 0 | J56: 0
A57: J Buck | B57: 1 | C57: 0 | D57: 0 | E57: 0 | F57: 0 | G57: 0 | H57: 0 | I57: 0 | J57: 0
A58: J Molina | C58: 0 | D58: 0 | E58: 0 | F58: 0 | G58: 0 | H58: 0 | I58: 0 | J58: 0
A59: INFIELDERS | C59: 0 | D59: 0 | E59: 0 | F59: 0 | G59: 0 | H59: 0 | I59: 0 | J59: 0
A60: L Overbay | B60: 1 | C60: 0 | D60: 0 | E60: 0 | F60: 0 | G60: 0 | H60: 0 | I60: 0 | J60: 0
A61: A Hill | C61: 0 | D61: 0 | E61: 0 | F61: 0 | G61: 0 | H61: 0 | I61: 0 | J61: 0
A62: A Gonzalez | B62: 1 | C62: 0 | D62: 0 | E62: 0 | F62: 0 | G62: 0 | H62: 0 | I62: 0 | J62: 0
A63: E Encarnacion | B63: 1 | C63: 0 | D63: 0 | E63: 0 | F63: 0 | G63: 0 | H63: 0 | I63: 0 | J63: 0
A64: A Lind | B64: 1 | C64: 0 | D64: 0 | E64: 0 | F64: 0 | G64: 0 | H64: 0 | I64: 0 | J64: 0
A65: J McDonald | B65: 1 | C65: 0 | D65: 0 | E65: 0 | F65: 0 | G65: 0 | H65: 0 | I65: 0 | J65: 0
A66: Y Escobar | C66: 0 | D66: 0 | E66: 0 | F66: 0 | G66: 0 | H66: 0 | I66: 0 | J66: 0
A67: OUTFIELDERS | C67: 0 | D67: 0 | E67: 0 | F67: 0 | G67: 0 | H67: 0 | I67: 0 | J67: 0
A68: F Lewis | B68: 1 | C68: 0 | D68: 0 | E68: 0 | F68: 0 | G68: 0 | H68: 0 | I68: 0 | J68: 0
A69: V Wells | B69: 1 | C69: 0 | D69: 0 | E69: 0 | F69: 0 | G69: 0 | H69: 0 | I69: 0 | J69: 0
A70: J Bautista | B70: 1 | C70: 0 | D70: 0 | E70: 0 | F70: 0 | G70: 0 | H70: 0 | I70: 0 | J70: 0
A71: T Snider | C71: 0 | D71: 0 | E71: 0 | F71: 0 | G71: 0 | H71: 0 | I71: 0 | J71: 0
A72: D Wise | C72: 0 | D72: 0 | E72: 0 | F72: 0 | G72: 0 | H72: 0 | I72: 0 | J72: 0
B73: 99 | C73: 0 | D73: 0 | E73: 0 | F73: 0 | G73: 0 | H73: 0 | I73: 0 | J73: 0

Sheet Braves
A1: PITCHERS | C1: Effectiveness | D1: Stamina | E1: 1 | F1: 2B | G1: M Prado | I1: 1 | J1: T Hudson | M1: 1 | N1: 2B | O1: M Prado
A2: T Hudson | C2: 68 | D2: 1 | E2: 2 | F2: LF | G2: M Cabrera | I2: 2 | J2: T Hanson | M2: 2 | N2: LF | O2: M Cabrera
A3: T Hanson | C3: 66 | D3: 1 | E3: 3 | F3: 3B | G3: O Infante | I3: 3 | J3: D Lowe | M3: 3 | N3: 3B | O3: O Infante
A4: D Lowe | C4: 48 | D4: 1 | E4: 4 | F4: RF | G4: J Heyward | I4: 4 | J4: J Jurrjens | M4: 4 | N4: RF | O4: J Heyward
A5: J Jurrjens | C5: 46 | D5: 1 | E5: 5 | F5: 1B | G5: T Glaus | M5: 5 | N5: 1B | O5: T Glaus
A6: B Wagner | C6: 94 | D6: 3 | E6: 6 | F6: C | G6: B McCann | M6: 6 | N6: C | O6: B McCann
A7: J Venters | C7: 63 | D7: 3 | E7: 7 | F7: SS | G7: A Gonzalez | M7: 7 | N7: SS | O7: A Gonzalez
A8: P Moylan | C8: 44 | D8: 2 | E8: 8 | F8: CF | G8: R Ankiel | M8: 8 | N8: CF | O8: R Ankiel
A9: T Saito | C9: 75 | D9: 3 | E9: 9 | F9: P | G9: T Hudson | M9: 9 | N9: P | O9: T Hanson | OP9: B Wagner
A10: E O'Flaherty | C10: 59 | D10: 2
A11: K Medlen | C11: 64 | D11: 2 | N11: P | O11: T Hanson
A12: C Kimbrel | C12: 54 | D12: 3
A13: CATCHERS | C13: Contact | D13: Power | E13: Speed | F13: Def/Arm | G13: Bunt | P13: IP | Q13: H | R13: R | S13: K | T13: ERA | W13: BB
A14: B McCann | C14: 54 | D14: 61 | E14: 35 | F14: 70 | G14: 55 | N14: Starter | O14: T Hanson | P14: =ROUND(9,2) -> 9 | Q14: 5 | R14: 0 | S14: 4 | T14: =ROUND(0,2) -> 0 | U14: W | W14: 0 | X14: 0 | Y14: 0 | Z14: 0
A15: D Ross | C15: 66 | D15: 66 | E15: 40 | F15: 60 | G15: 40 | T15: =IFERROR(IF(O15="","",R15*9/P15),"INF") ->  | Y15: 0 | Z15: 0
A16: INFIELDERS | Y16: 0 | Z16: 0
A17: T Glaus | C17: 38 | D17: 50 | E17: 40 | F17: 20 | G17: 35 | Y17: 0 | Z17: 0
A18: M Prado | C18: 76 | D18: 62 | E18: 70 | F18: 20 | G18: 70 | Y18: 0 | Z18: 0
A19: A Gonzalez | C19: 38 | D19: 47 | E19: 60 | F19: 20 | G19: 60
A20: C Jones | C20: 52 | D20: 55 | E20: 40 | F20: 40 | G20: 35
A21: E Hinske | C21: 47 | D21: 61 | E21: 45 | F21: 20 | G21: 35 | T21: =IF(O21="","",R21*9/P21) -> 
A22: O Infante | C22: 84 | D22: 53 | E22: 70 | F22: 20 | G22: 65
A23: B Conrad | C23: 44 | D23: 67 | E23: 50 | F23: 20 | G23: 35
A24: OUTFIELDERS
A25: M Cabrera | C25: 47 | D25: 41 | E25: 70 | F25: 70 | G25: 60
A26: N McLouth | C26: 10 | D26: 34 | E26: 80 | F26: 80 | G26: 70
A27: J Heyward | C27: 59 | D27: 61 | E27: 70 | F27: 85 | G27: 40
A28: M Diaz | C28: 44 | D28: 58 | E28: 55 | F28: 50 | G28: 55
A29: R Ankiel | C29: 21 | D29: 36 | E29: 70 | F29: 75 | G29: 45
C43: AB | D43: H | E43: RBI | F43: Run | G43: HR | H43: 3B | I43: 2B | J43: SB
A44: PITCHERS | C44: 0 | D44: 0 | E44: 0 | F44: 0 | G44: 0 | H44: 0 | I44: 0 | J44: 0
A45: T Hudson | C45: 0 | D45: 0 | E45: 0 | F45: 0 | G45: 0 | H45: 0 | I45: 0 | J45: 0
A46: T Hanson | B46: 1 | C46: 3 | D46: 0 | E46: 0 | F46: 0 | G46: 0 | H46: 0 | I46: 0 | J46: 0
A47: D Lowe | C47: 0 | D47: 0 | E47: 0 | F47: 0 | G47: 0 | H47: 0 | I47: 0 | J47: 0
A48: J Jurrjens | C48: 0 | D48: 0 | E48: 0 | F48: 0 | G48: 0 | H48: 0 | I48: 0 | J48: 0
A49: B Wagner | C49: 0 | D49: 0 | E49: 0 | F49: 0 | G49: 0 | H49: 0 | I49: 0 | J49: 0
A50: J Venters | C50: 0 | D50: 0 | E50: 0 | F50: 0 | G50: 0 | H50: 0 | I50: 0 | J50: 0
A51: P Moylan | C51: 0 | D51: 0 | E51: 0 | F51: 0 | G51: 0 | H51: 0 | I51: 0 | J51: 0
A52: T Saito | C52: 0 | D52: 0 | E52: 0 | F52: 0 | G52: 0 | H52: 0 | I52: 0 | J52: 0
A53: E O'Flaherty | C53: 0 | D53: 0 | E53: 0 | F53: 0 | G53: 0 | H53: 0 | I53: 0 | J53: 0
A54: K Medlen | C54: 0 | D54: 0 | E54: 0 | F54: 0 | G54: 0 | H54: 0 | I54: 0 | J54: 0
A55: C Kimbrel | C55: 0 | D55: 0 | E55: 0 | F55: 0 | G55: 0 | H55: 0 | I55: 0 | J55: 0
A56: CATCHERS | C56: 0 | D56: 0 | E56: 0 | F56: 0 | G56: 0 | H56: 0 | I56: 0 | J56: 0
A57: B McCann | B57: 1 | C57: 3 | D57: 0 | E57: 0 | F57: 0 | G57: 0 | H57: 0 | I57: 0 | J57: 0
A58: D Ross | C58: 0 | D58: 0 | E58: 0 | F58: 0 | G58: 0 | H58: 0 | I58: 0 | J58: 0
A59: INFIELDERS | C59: 0 | D59: 0 | E59: 0 | F59: 0 | G59: 0 | H59: 0 | I59: 0 | J59: 0
A60: T Glaus | B60: 1 | C60: 3 | D60: 0 | E60: 0 | F60: 0 | G60: 0 | H60: 0 | I60: 0 | J60: 0
A61: M Prado | B61: 1 | C61: 1 | D61: 0 | E61: 0 | F61: 0 | G61: 0 | H61: 0 | I61: 0 | J61: 0
A62: A Gonzalez | B62: 1 | C62: 3 | D62: 1 | E62: 0 | F62: 0 | G62: 0 | H62: 0 | I62: 0 | J62: 0
A63: C Jones | C63: 0 | D63: 0 | E63: 0 | F63: 0 | G63: 0 | H63: 0 | I63: 0 | J63: 0
A64: E Hinske | C64: 0 | D64: 0 | E64: 0 | F64: 0 | G64: 0 | H64: 0 | I64: 0 | J64: 0
A65: O Infante | B65: 1 | C65: 4 | D65: 2 | E65: 0 | F65: 1 | G65: 0 | H65: 0 | I65: 1 | J65: 0
A66: B Conrad | C66: 0 | D66: 0 | E66: 0 | F66: 0 | G66: 0 | H66: 0 | I66: 0 | J66: 0
A67: OUTFIELDERS | C67: 0 | D67: 0 | E67: 0 | F67: 0 | G67: 0 | H67: 0 | I67: 0 | J67: 0
A68: M Cabrera | B68: 1 | C68: 4 | D68: 1 | E68: 0 | F68: 1 | G68: 0 | H68: 0 | I68: 1 | J68: 0
A69: N McLouth | C69: 0 | D69: 0 | E69: 0 | F69: 0 | G69: 0 | H69: 0 | I69: 0 | J69: 0
A70: J Heyward | B70: 1 | C70: 4 | D70: 2 | E70: 4 | F70: 2 | G70: 2 | H70: 0 | I70: 0 | J70: 0
A71: M Diaz | C71: 0 | D71: 0 | E71: 0 | F71: 0 | G71: 0 | H71: 0 | I71: 0 | J71: 0
A72: R Ankiel | B72: 1 | C72: 3 | D72: 1 | E72: 0 | F72: 0 | G72: 0 | H72: 0 | I72: 1 | J72: 0
B73: 99 | C73: 0 | D73: 0 | E73: 0 | F73: 0 | G73: 0 | H73: 0 | I73: 0 | J73: 0

Sheet Brewers
A1: PITCHERS | C1: Effectiveness | D1: Stamina | E1: 1 | F1: 2B | G1: R Weeks | I1: 1 | J1: R Wolf | M1: 1 | N1: 2B | O1: R Weeks
A2: R Wolf | C2: 46 | D2: 1 | E2: 2 | F2: CF | G2: C Gomez | I2: 2 | J2: Y Gallardo | M2: 2 | N2: CF | O2: C Gomez
A3: Y Gallardo | C3: 48 | D3: 1 | E3: 3 | F3: LF | G3: R Braun | I3: 3 | J3: D Bush | M3: 3 | N3: LF | O3: R Braun
A4: D Bush | C4: 36 | D4: 1 | E4: 4 | F4: 1B | G4: P Fielder | I4: 4 | J4: C Narveson | M4: 4 | N4: 1B | O4: P Fielder
A5: C Narveson | C5: 47 | D5: 1 | E5: 5 | F5: RF | G5: C Hart | M5: 5 | N5: RF | O5: C Hart
A6: J Axford | C6: 65 | D6: 3 | E6: 6 | F6: 3B | G6: C McGehee | M6: 6 | N6: 3B | O6: C McGehee
A7: T Coffey | C7: 44 | D7: 3 | E7: 7 | F7: SS | G7: A Escobar | M7: 7 | N7: SS | O7: A Escobar
A8: K Loe | C8: 65 | D8: 3 | E8: 8 | F8: C | G8: J Lucroy | M8: 8 | N8: C | O8: J Lucroy
A9: C Villanueva | C9: 52 | D9: 3 | E9: 9 | F9: P | G9: R Wolf | M9: 9 | N9: P | O9: R Wolf | OP9: E Gagne
A10: T Hoffman | C10: 42 | D10: 3
A11: M Parra | C11: 25 | D11: 2 | N11: P | O11: R Wolf
A12: C Capuano | C12: 54 | D12: 2
A13: CATCHERS | C13: Contact | D13: Power | E13: Speed | F13: Def/Arm | G13: Bunt | P13: IP | Q13: H | R13: R | S13: K | T13: ERA | W13: BB
A14: J Lucroy | C14: 46 | D14: 36 | E14: 55 | F14: 70 | G14: 60 | N14: Starter | O14: R Wolf | T14: =IFERROR(IF(O14="","",R14*9/P14),"INF") -> INF | Y14: 0 | Z14: 0
A15: G Kottaras | C15: 17 | D15: 49 | E15: 30 | F15: 60 | G15: 45 | Y15: 0 | Z15: 0
A16: INFIELDERS | Y16: 0 | Z16: 0
A17: P Fielder | C17: 50 | D17: 64 | E17: 25 | F17: 20 | G17: 15
A18: R Weeks | C18: 54 | D18: 63 | E18: 80 | F18: 20 | G18: 70
A19: A Escobar | C19: 35 | D19: 35 | E19: 70 | F19: 20 | G19: 65
A20: C McGehee | C20: 63 | D20: 63 | E20: 60 | F20: 35 | G20: 45
A21: C Counsell | C21: 44 | D21: 34 | E21: 65 | F21: 20 | G21: 80 | T21: =IF(O21="","",R21*9/P21) -> 
A22: J Inglett | C22: 46 | D22: 50 | E22: 70 | F22: 20 | G22: 70
A23: OUTFIEDLERS
A24: R Braun | C24: 74 | D24: 70 | E24: 75 | F24: 65 | G24: 35
A25: C Gomez | C25: 42 | D25: 41 | E25: 80 | F25: 55 | G25: 70
A26: C Hart | C26: 62 | D26: 75 | E26: 65 | F26: 65 | G26: 45
A27: J Edmonds | C27: 64 | D27: 69 | E27: 45 | F27: 65 | G27: 45
A28: L Cain | C28: 75 | D28: 53 | E28: 85 | F28: 60 | G28: 60
A29: C Dickerson | C29: 20 | D29: 23 | E29: 60 | F29: 60 | G29: 65
C43: AB | D43: H | E43: RBI | F43: Run | G43: HR | H43: 3B | I43: 2B | J43: SB
A44: PITCHERS | C44: 0 | D44: 0 | E44: 0 | F44: 0 | G44: 0 | H44: 0 | I44: 0 | J44: 0
A45: R Wolf | B45: 1 | C45: 0 | D45: 0 | E45: 0 | F45: 0 | G45: 0 | H45: 0 | I45: 0 | J45: 0
A46: Y Gallardo | C46: 0 | D46: 0 | E46: 0 | F46: 0 | G46: 0 | H46: 0 | I46: 0 | J46: 0
A47: D Bush | C47: 0 | D47: 0 | E47: 0 | F47: 0 | G47: 0 | H47: 0 | I47: 0 | J47: 0
A48: C Narveson | C48: 0 | D48: 0 | E48: 0 | F48: 0 | G48: 0 | H48: 0 | I48: 0 | J48: 0
A49: J Axford | C49: 0 | D49: 0 | E49: 0 | F49: 0 | G49: 0 | H49: 0 | I49: 0 | J49: 0
A50: T Coffey | C50: 0 | D50: 0 | E50: 0 | F50: 0 | G50: 0 | H50: 0 | I50: 0 | J50: 0
A51: K Loe | C51: 0 | D51: 0 | E51: 0 | F51: 0 | G51: 0 | H51: 0 | I51: 0 | J51: 0
A52: C Villanueva | C52: 0 | D52: 0 | E52: 0 | F52: 0 | G52: 0 | H52: 0 | I52: 0 | J52: 0
A53: T Hoffman | C53: 0 | D53: 0 | E53: 0 | F53: 0 | G53: 0 | H53: 0 | I53: 0 | J53: 0
A54: M Parra | C54: 0 | D54: 0 | E54: 0 | F54: 0 | G54: 0 | H54: 0 | I54: 0 | J54: 0
A55: C Capuano | C55: 0 | D55: 0 | E55: 0 | F55: 0 | G55: 0 | H55: 0 | I55: 0 | J55: 0
A56: CATCHERS | C56: 0 | D56: 0 | E56: 0 | F56: 0 | G56: 0 | H56: 0 | I56: 0 | J56: 0
A57: J Lucroy | B57: 1 | C57: 0 | D57: 0 | E57: 0 | F57: 0 | G57: 0 | H57: 0 | I57: 0 | J57: 0
A58: G Kottaras | C58: 0 | D58: 0 | E58: 0 | F58: 0 | G58: 0 | H58: 0 | I58: 0 | J58: 0
A59: INFIELDERS | C59: 0 | D59: 0 | E59: 0 | F59: 0 | G59: 0 | H59: 0 | I59: 0 | J59: 0
A60: P Fielder | B60: 1 | C60: 0 | D60: 0 | E60: 0 | F60: 0 | G60: 0 | H60: 0 | I60: 0 | J60: 0
A61: R Weeks | B61: 1 | C61: 0 | D61: 0 | E61: 0 | F61: 0 | G61: 0 | H61: 0 | I61: 0 | J61: 0
A62: A Escobar | B62: 1 | C62: 0 | D62: 0 | E62: 0 | F62: 0 | G62: 0 | H62: 0 | I62: 0 | J62: 0
A63: C McGehee | B63: 1 | C63: 0 | D63: 0 | E63: 0 | F63: 0 | G63: 0 | H63: 0 | I63: 0 | J63: 0
A64: C Counsell | C64: 0 | D64: 0 | E64: 0 | F64: 0 | G64: 0 | H64: 0 | I64: 0 | J64: 0
A65: J Inglett | C65: 0 | D65: 0 | E65: 0 | F65: 0 | G65: 0 | H65: 0 | I65: 0 | J65: 0
A66: OUTFIEDLERS | C66: 0 | D66: 0 | E66: 0 | F66: 0 | G66: 0 | H66: 0 | I66: 0 | J66: 0
A67: R Braun | B67: 1 | C67: 0 | D67: 0 | E67: 0 | F67: 0 | G67: 0 | H67: 0 | I67: 0 | J67: 0
A68: C Gomez | B68: 1 | C68: 0 | D68: 0 | E68: 0 | F68: 0 | G68: 0 | H68: 0 | I68: 0 | J68: 0
A69: C Hart | B69: 1 | C69: 0 | D69: 0 | E69: 0 | F69: 0 | G69: 0 | H69: 0 | I69: 0 | J69: 0
A70: J Edmonds | C70: 0 | D70: 0 | E70: 0 | F70: 0 | G70: 0 | H70: 0 | I70: 0 | J70: 0
A71: L Cain | C71: 0 | D71: 0 | E71: 0 | F71: 0 | G71: 0 | H71: 0 | I71: 0 | J71: 0
A72: C Dickerson | C72: 0 | D72: 0 | E72: 0 | F72: 0 | G72: 0 | H72: 0 | I72: 0 | J72: 0
B73: 99 | C73: 0 | D73: 0 | E73: 0 | F73: 0 | G73: 0 | H73: 0 | I73: 0 | J73: 0

Sheet Cardinals
A1: PITCHERS | C1: Effectiveness | D1: Stamina | E1: 1 | F1: 2B | G1: S Schumaker | I1: 1 | J1: C Carpenter | M1: 1 | N1: 2B | O1: S Schumaker
A2: C Carpenter | C2: 66 | D2: 1 | E2: 2 | F2: CF | G2: C Rasmus | I2: 2 | J2: A Wainwright | M2: 2 | N2: CF | O2: C Rasmus
A3: A Wainwright | C3: 77 | D3: 1 | E3: 3 | F3: 1B | G3: A Pujols | I3: 3 | J3: J Garcia | M3: 3 | N3: 1B | O3: A Pujols
A4: J Garcia | C4: 53 | D4: 1 | E4: 4 | F4: LF | G4: M Holliday | I4: 4 | J4: K Lohse | M4: 4 | N4: LF | O4: M Holliday
A5: K Lohse | C5: 11 | D5: 1 | E5: 5 | F5: RF | G5: R Ludwick | M5: 5 | N5: RF | O5: R Ludwick
A6: J Suppan | C6: 37 | D6: 2 | E6: 6 | F6: 3B | G6: D Freese | M6: 6 | N6: 3B | O6: D Freese
A7: R Franklin | C7: 79 | D7: 3 | E7: 7 | F7: C | G7: Y Molina | M7: 7 | N7: C | O7: Y Molina
A8: K McClellan | C8: 75 | D8: 2 | E8: 8 | F8: SS | G8: B Ryan | M8: 8 | N8: SS | O8: B Ryan
A9: M Boggs | C9: 55 | D9: 3 | E9: 9 | F9: P | G9: C Carpenter | M9: 9 | N9: P | O9: M Boggs | OP9: M Boggs
A10: D Reyes | C10: 41 | D10: 3
A11: T Miller | C11: 57 | D11: 3 | N11: P | O11: M Boggs
A12: B Hawksworth | C12: 24 | D12: 2 | T12: =IFERROR(IF(O12="","",R12/P12),"INF") -> 
A13: CATCHERS | C13: Contact | D13: Power | E13: Speed | F13: Def/Arm | G13: Bunt | P13: IP | Q13: H | R13: R | S13: K | T13: ERA | W13: BB
A14: Y Molina | C14: 51 | D14: 38 | E14: 50 | F14: 75 | G14: 60 | N14: Starter | O14: J Garcia | P14: =ROUND(7,2) -> 7 | Q14: 6 | R14: 4 | S14: 5 | T14: =ROUND(5.14285714285714,2) -> 5.14 | U14: L | W14: 2 | X14: 0 | Y14: 0 | Z14: 0
A15: J LaRue | C15: 57 | D15: 34 | E15: 60 | F15: 60 | G15: 70 | O15: M Boggs | P15: =ROUND(1,2) -> 1 | Q15: 1 | R15: 0 | S15: 1 | T15: =ROUND(0,2) -> 0 | W15: 1 | X15: 0 | Y15: 0 | Z15: 0
A16: INFIELDERS | T16: =IFERROR(IF(O16="","",R16*9/P16),"INF") ->  | Y16: 0 | Z16: 0
A17: A Pujols | C17: 79 | D17: 89 | E17: 50 | F17: 20 | G17: 70 | Y17: 0 | Z17: 0
A18: S Schumaker | C18: 52 | D18: 38 | E18: 65 | F18: 20 | G18: 35
A19: B Ryan | C19: 29 | D19: 29 | E19: 80 | F19: 20 | G19: 80
A20: D Freese | C20: 70 | D20: 51 | E20: 70 | F20: 20 | G20: 85
A21: F Lopez | C21: 33 | D21: 38 | E21: 60 | F21: 20 | G21: 70 | T21: =IF(O21="","",R21*9/P21) -> 
A22: A Miles | C22: 61 | D22: 33 | E22: 55 | F22: 20 | G22: 60
A23: OUTFIELDERS
A24: M Holliday | C24: 79 | D24: 76 | E24: 70 | F24: 90 | G24: 65
A25: C Rasmus | C25: 58 | D25: 70 | E25: 65 | F25: 55 | G25: 60
A26: R Ludwick | C26: 61 | D26: 67 | E26: 78 | F26: 50 | G26: 80
A27: J Jay | C27: 72 | D27: 54 | E27: 60 | F27: 60 | G27: 25
A28: R Winn | C28: 44 | D28: 46 | E28: 62 | F28: 65 | G28: 70
A29: N Stavinoha | C29: 47 | D29: 38 | E29: 75 | F29: 60 | G29: 80
C43: AB | D43: H | E43: RBI | F43: Run | G43: HR | H43: 3B | I43: 2B | J43: SB
A44: PITCHERS | C44: 0 | D44: 0 | E44: 0 | F44: 0 | G44: 0 | H44: 0 | I44: 0 | J44: 0
A45: C Carpenter | C45: 0 | D45: 0 | E45: 0 | F45: 0 | G45: 0 | H45: 0 | I45: 0 | J45: 0
A46: A Wainwright | C46: 0 | D46: 0 | E46: 0 | F46: 0 | G46: 0 | H46: 0 | I46: 0 | J46: 0
A47: J Garcia | B47: 1 | C47: 2 | D47: 1 | E47: 0 | F47: 0 | G47: 0 | H47: 0 | I47: 1 | J47: 0
A48: K Lohse | C48: 0 | D48: 0 | E48: 0 | F48: 0 | G48: 0 | H48: 0 | I48: 0 | J48: 0
A49: J Suppan | C49: 0 | D49: 0 | E49: 0 | F49: 0 | G49: 0 | H49: 0 | I49: 0 | J49: 0
A50: R Franklin | C50: 0 | D50: 0 | E50: 0 | F50: 0 | G50: 0 | H50: 0 | I50: 0 | J50: 0
A51: K McClellan | C51: 0 | D51: 0 | E51: 0 | F51: 0 | G51: 0 | H51: 0 | I51: 0 | J51: 0
A52: M Boggs | B52: 1 | C52: 0 | D52: 0 | E52: 0 | F52: 0 | G52: 0 | H52: 0 | I52: 0 | J52: 0
A53: D Reyes | C53: 0 | D53: 0 | E53: 0 | F53: 0 | G53: 0 | H53: 0 | I53: 0 | J53: 0
A54: T Miller | C54: 0 | D54: 0 | E54: 0 | F54: 0 | G54: 0 | H54: 0 | I54: 0 | J54: 0
A55: B Hawksworth | C55: 0 | D55: 0 | E55: 0 | F55: 0 | G55: 0 | H55: 0 | I55: 0 | J55: 0
A56: CATCHERS | C56: 0 | D56: 0 | E56: 0 | F56: 0 | G56: 0 | H56: 0 | I56: 0 | J56: 0
A57: Y Molina | B57: 1 | C57: 3 | D57: 1 | E57: 0 | F57: 0 | G57: 0 | H57: 0 | I57: 1 | J57: 0
A58: J LaRue | C58: 0 | D58: 0 | E58: 0 | F58: 0 | G58: 0 | H58: 0 | I58: 0 | J58: 0
A59: INFIELDERS | C59: 0 | D59: 0 | E59: 0 | F59: 0 | G59: 0 | H59: 0 | I59: 0 | J59: 0
A60: A Pujols | B60: 1 | C60: 4 | D60: 1 | E60: 0 | F60: 0 | G60: 0 | H60: 0 | I60: 0 | J60: 0
A61: S Schumaker | B61: 1 | C61: 4 | D61: 0 | E61: 0 | F61: 0 | G61: 0 | H61: 0 | I61: 0 | J61: 0
A62: B Ryan | B62: 1 | C62: 3 | D62: 0 | E62: 0 | F62: 0 | G62: 0 | H62: 0 | I62: 0 | J62: 0
A63: D Freese | B63: 1 | C63: 3 | D63: 1 | E63: 0 | F63: 0 | G63: 0 | H63: 0 | I63: 0 | J63: 0
A64: F Lopez | C64: 0 | D64: 0 | E64: 0 | F64: 0 | G64: 0 | H64: 0 | I64: 0 | J64: 0
A65: A Miles | C65: 0 | D65: 0 | E65: 0 | F65: 0 | G65: 0 | H65: 0 | I65: 0 | J65: 0
A66: OUTFIELDERS | C66: 0 | D66: 0 | E66: 0 | F66: 0 | G66: 0 | H66: 0 | I66: 0 | J66: 0
A67: M Holliday | B67: 1 | C67: 4 | D67: 0 | E67: 0 | F67: 0 | G67: 0 | H67: 0 | I67: 0 | J67: 0
A68: C Rasmus | B68: 1 | C68: 4 | D68: 1 | E68: 0 | F68: 0 | G68: 0 | H68: 0 | I68: 0 | J68: 1
A69: R Ludwick | B69: 1 | C69: 3 | D69: 0 | E69: 0 | F69: 0 | G69: 0 | H69: 0 | I69: 0 | J69: 0
A70: J Jay | B70: 1 | C70: 1 | D70: 0 | E70: 0 | F70: 0 | G70: 0 | H70: 0 | I70: 0 | J70: 0
A71: R Winn | C71: 0 | D71: 0 | E71: 0 | F71: 0 | G71: 0 | H71: 0 | I71: 0 | J71: 0
A72: N Stavinoha | C72: 0 | D72: 0 | E72: 0 | F72: 0 | G72: 0 | H72: 0 | I72: 0 | J72: 0
B73: 99 | C73: 0 | D73: 0 | E73: 0 | F73: 0 | G73: 0 | H73: 0 | I73: 0 | J73: 0

Sheet Cubs
A1: PITCHERS | C1: Effectiveness | D1: Stamina | E1: 1 | F1: CF | G1: M Byrd | I1: 1 | J1: R Dempster | M1: 1 | N1: CF | O1: M Byrd
A2: R Dempster | C2: 53 | D2: 1 | E2: 2 | F2: SS | G2: S Castro | I2: 2 | J2: R Wells | M2: 2 | N2: SS | O2: S Castro
A3: R Wells | C3: 45 | D3: 1 | E3: 3 | F3: 1B | G3: D Lee | I3: 3 | J3: C Silva | M3: 3 | N3: 1B | O3: D Lee
A4: C Silva | C4: 57 | D4: 1 | E4: 4 | F4: 3B | G4: A Ramirez | I4: 4 | J4: T Lilly | M4: 4 | N4: 3B | O4: A Ramirez
A5: T Lilly | C5: 69 | D5: 1 | E5: 5 | F5: LF | G5: A Soriano | M5: 5 | N5: LF | O5: A Soriano
A6: C Zambrano | C6: 41 | D6: 2 | E6: 6 | F6: C | G6: G Soto | M6: 6 | N6: C | O6: G Soto
A7: C Marmol | C7: 65 | D7: 3 | E7: 7 | F7: 2B | G7: R Theriot | M7: 7 | N7: 2B | O7: R Theriot
A8: S Marshall | C8: 72 | D8: 3 | E8: 8 | F8: RF | G8: K Fukudome | M8: 8 | N8: RF | O8: K Fukudome
A9: A Cashner | C9: 31 | D9: 3 | E9: 9 | F9: P | G9: R Dempster | M9: 9 | N9: P | O9: C Marmol | OP9: S Marshall
A10: J Russell | C10: 50 | D10: 2
A11: J Berg | C11: 25 | D11: 3 | N11: P | O11: C Marmol
A12: T Gorzelanny | C12: 37 | D12: 2
A13: CATCHERS | C13: Contact | D13: Power | E13: Speed | F13: Def/Arm | G13: Bunt | P13: IP | Q13: H | R13: R | S13: K | T13: ERA | W13: BB
A14: G Soto | C14: 61 | D14: 69 | E14: 30 | F14: 70 | G14: 65 | N14: Starter | O14: C Silva | P14: =ROUND(4,2) -> 4 | Q14: 7 | R14: 5 | S14: 3 | T14: =ROUND(11.25,2) -> 11.25 | U14: L | W14: 2 | X14: 0 | Y14: 0 | Z14: 0
A15: K Hill | C15: 24 | D15: 30 | E15: 55 | F15: 55 | G15: 50 | O15: S Marshall | P15: =ROUND(2,2) -> 2 | Q15: 5 | R15: 3 | S15: 1 | T15: =ROUND(13.5,2) -> 13.5 | W15: 0 | X15: 0 | Y15: 0 | Z15: 0
A16: INFIELDERS | O16: J Russell | P16: =ROUND(1,2) -> 1 | Q16: 3 | R16: 2 | S16: 0 | T16: =ROUND(18,2) -> 18 | W16: 1 | X16: 0 | Y16: 0 | Z16: 0
A17: D Lee | C17: 44 | D17: 53 | E17: 55 | F17: 20 | G17: 40 | O17: C Marmol | P17: =ROUND(1,2) -> 1 | Q17: 1 | R17: 0 | S17: 0 | T17: =ROUND(0,2) -> 0 | W17: 0 | X17: 0 | Y17: 0 | Z17: 0
A18: R Theriot | C18: 63 | D18: 35 | E18: 70 | F18: 20 | G18: 70 | T18: =IFERROR(IF(O18="","",R18*9/P18),"INF") -> 
A19: S Castro | C19: 72 | D19: 52 | E19: 80 | F19: 20 | G19: 65 | T19: =IFERROR(IF(O19="","",R19*9/P19),"INF") -> 
A20: A Ramirez | C20: 39 | D20: 60 | E20: 35 | F20: 20 | G20: 25 | T20: =IFERROR(IF(O20="","",R20*9/P20),"INF") -> 
A21: J Baker | C21: 56 | D21: 53 | E21: 70 | F21: 20 | G21: 70 | T21: =IF(O21="","",R21*9/P21) -> 
A22: M Fontenot | C22: 63 | D22: 50 | E22: 70 | F22: 20 | G22: 75
A23: OUTFIELDERS
A24: A Soriano | C24: 48 | D24: 69 | E24: 75 | F24: 60 | G24: 30
A25: M Byrd | C25: 68 | D25: 56 | E25: 75 | F25: 80 | G25: 65
A26: K Fukudome | C26: 51 | D26: 58 | E26: 70 | F26: 70 | G26: 70
A27: T Colvin | C27: 46 | D27: 70 | E27: 70 | F27: 65 | G27: 45
A28: X Nady | C28: 47 | D28: 41 | E28: 65 | F28: 70 | G28: 55
A29: M Hoffpauir | C29: 1 | D29: 16 | E29: 60 | F29: 60 | G29: 65
C43: AB | D43: H | E43: RBI | F43: Run | G43: HR | H43: 3B | I43: 2B | J43: SB
A44: PITCHERS | C44: 0 | D44: 0 | E44: 0 | F44: 0 | G44: 0 | H44: 0 | I44: 0 | J44: 0
A45: R Dempster | C45: 0 | D45: 0 | E45: 0 | F45: 0 | G45: 0 | H45: 0 | I45: 0 | J45: 0
A46: R Wells | C46: 0 | D46: 0 | E46: 0 | F46: 0 | G46: 0 | H46: 0 | I46: 0 | J46: 0
A47: C Silva | B47: 1 | C47: 1 | D47: 0 | E47: 0 | F47: 0 | G47: 0 | H47: 0 | I47: 0 | J47: 0
A48: T Lilly | C48: 0 | D48: 0 | E48: 0 | F48: 0 | G48: 0 | H48: 0 | I48: 0 | J48: 0
A49: C Zambrano | C49: 0 | D49: 0 | E49: 0 | F49: 0 | G49: 0 | H49: 0 | I49: 0 | J49: 0
A50: C Marmol | B50: 1 | C50: 0 | D50: 0 | E50: 0 | F50: 0 | G50: 0 | H50: 0 | I50: 0 | J50: 0
A51: S Marshall | B51: 1 | C51: 0 | D51: 0 | E51: 0 | F51: 0 | G51: 0 | H51: 0 | I51: 0 | J51: 0
A52: A Cashner | C52: 0 | D52: 0 | E52: 0 | F52: 0 | G52: 0 | H52: 0 | I52: 0 | J52: 0
A53: J Russell | B53: 1 | C53: 1 | D53: 0 | E53: 0 | F53: 0 | G53: 0 | H53: 0 | I53: 0 | J53: 0
A54: J Berg | C54: 0 | D54: 0 | E54: 0 | F54: 0 | G54: 0 | H54: 0 | I54: 0 | J54: 0
A55: T Gorzelanny | C55: 0 | D55: 0 | E55: 0 | F55: 0 | G55: 0 | H55: 0 | I55: 0 | J55: 0
A56: CATCHERS | C56: 0 | D56: 0 | E56: 0 | F56: 0 | G56: 0 | H56: 0 | I56: 0 | J56: 0
A57: G Soto | B57: 1 | C57: 4 | D57: 1 | E57: 0 | F57: 1 | G57: 0 | H57: 0 | I57: 0 | J57: 0
A58: K Hill | C58: 0 | D58: 0 | E58: 0 | F58: 0 | G58: 0 | H58: 0 | I58: 0 | J58: 0
A59: INFIELDERS | C59: 0 | D59: 0 | E59: 0 | F59: 0 | G59: 0 | H59: 0 | I59: 0 | J59: 0
A60: D Lee | B60: 1 | C60: 4 | D60: 1 | E60: 0 | F60: 0 | G60: 0 | H60: 0 | I60: 0 | J60: 0
A61: R Theriot | B61: 1 | C61: 4 | D61: 2 | E61: 0 | F61: 0 | G61: 0 | H61: 0 | I61: 1 | J61: 0
A62: S Castro | B62: 1 | C62: 4 | D62: 1 | E62: 0 | F62: 0 | G62: 0 | H62: 0 | I62: 0 | J62: 0
A63: A Ramirez | B63: 1 | C63: 3 | D63: 1 | E63: 0 | F63: 0 | G63: 0 | H63: 0 | I63: 0 | J63: 0
A64: J Baker | C64: 0 | D64: 0 | E64: 0 | F64: 0 | G64: 0 | H64: 0 | I64: 0 | J64: 0
A65: M Fontenot | B65: 1 | C65: 1 | D65: 0 | E65: 1 | F65: 0 | G65: 0 | H65: 0 | I65: 0 | J65: 0
A66: OUTFIELDERS | C66: 0 | D66: 0 | E66: 0 | F66: 0 | G66: 0 | H66: 0 | I66: 0 | J66: 0
A67: A Soriano | B67: 1 | C67: 4 | D67: 0 | E67: 0 | F67: 0 | G67: 0 | H67: 0 | I67: 0 | J67: 0
A68: M Byrd | B68: 1 | C68: 4 | D68: 2 | E68: 0 | F68: 0 | G68: 0 | H68: 0 | I68: 0 | J68: 1
A69: K Fukudome | B69: 1 | C69: 4 | D69: 0 | E69: 0 | F69: 0 | G69: 0 | H69: 0 | I69: 0 | J69: 0
A70: T Colvin | C70: 0 | D70: 0 | E70: 0 | F70: 0 | G70: 0 | H70: 0 | I70: 0 | J70: 0
A71: X Nady | C71: 0 | D71: 0 | E71: 0 | F71: 0 | G71: 0 | H71: 0 | I71: 0 | J71: 0
A72: M Hoffpauir | C72: 0 | D72: 0 | E72: 0 | F72: 0 | G72: 0 | H72: 0 | I72: 0 | J72: 0
B73: 99 | C73: 0 | D73: 0 | E73: 0 | F73: 0 | G73: 0 | H73: 0 | I73: 0 | J73: 0

Sheet DBacks
A1: PITCHERS | C1: Effectiveness | D1: Stamina | E1: 1 | F1: CF | G1: C Young | I1: 1 | J1: R Lopez | M1: 1 | N1: CF | O1: C Young
A2: R Lopez | C2: 44 | D2: 1 | E2: 2 | F2: 2B | G2: K Johnson | I2: 2 | J2: I Kennedy | M2: 2 | N2: 2B | O2: K Johnson
A3: I Kennedy | C3: 64 | D3: 1 | E3: 3 | F3: RF | G3: J Upton | I3: 3 | J3: D Haren | M3: 3 | N3: RF | O3: J Upton
A4: D Haren | C4: 50 | D4: 1 | E4: 4 | F4: C | G4: M Montero | I4: 4 | J4: E Jackson | M4: 4 | N4: C | O4: M Montero
A5: E Jackson | C5: 37 | D5: 1 | E5: 5 | F5: 3B | G5: M Reynolds | M5: 5 | N5: 3B | O5: M Reynolds
A6: J Gutierrez | C6: 48 | D6: 3 | E6: 6 | F6: 1B | G6: A LaRoche | M6: 6 | N6: 1B | O6: A LaRoche
A7: A Heilman | C7: 48 | D7: 2 | E7: 7 | F7: SS | G7: S Drew | M7: 7 | N7: SS | O7: S Drew
A8: B Boyer | C8: 32 | D8: 3 | E8: 8 | F8: LF | G8: G Parra | M8: 8 | N8: LF | O8: G Parra
A9: E Vasquez | C9: 30 | D9: 3 | E9: 9 | F9: P | G9: R Lopez | M9: 9 | N9: P | O9: D Haren
A10: C Qualls | C10: -9 | D10: 3
A11: D Hudson | C11: 96 | D11: 2 | N11: P | O11: D Haren
A12: B Enright | C12: 57 | D12: 2
A13: CATCHERS | C13: Contact | D13: Power | E13: Speed | F13: Def/Arm | G13: Bunt | P13: IP | Q13: H | R13: R | S13: K | T13: ERA | W13: BB
A14: M Montero | C14: 53 | D14: 58 | E14: 65 | F14: 65 | G14: 60 | N14: Starter | O14: D Haren | T14: =IFERROR(IF(O14="","",R14*9/P14),"INF") -> INF
A15: C Snyder | C15: 33 | D15: 55 | E15: 45 | F15: 60 | G15: 55
A16: INFIELDERS
A17: A LaRoche | C17: 50 | D17: 64 | E17: 50 | F17: 20 | G17: 35
A18: K Johnson | C18: 63 | D18: 69 | E18: 70 | F18: 20 | G18: 70
A19: S Drew | C19: 60 | D19: 62 | E19: 75 | F19: 20 | G19: 65
A20: M Reynolds | C20: 15 | D20: 57 | E20: 70 | F20: 20 | G20: 30
A21: R Ryal | C21: 50 | D21: 40 | E21: 65 | F21: 20 | G21: 65 | T21: =IF(O21="","",R21*9/P21) -> 
A22: T Abreu | C22: 34 | D22: 33 | E22: 70 | F22: 20 | G22: 65
A23: OUTFIELDERS
A24: G Parra | C24: 50 | D24: 44 | E24: 65 | F24: 65 | G24: 70
A25: C Young | C25: 48 | D25: 60 | E25: 75 | F25: 75 | G25: 65
A26: J Upton | C26: 57 | D26: 58 | E26: 80 | F26: 70 | G26: 45
A27: C Jackson | C27: 37 | D27: 36 | E27: 55 | F27: 60 | G27: 55
A28: C Gillespie | C28: 33 | D28: 43 | E28: 70 | F28: 60 | G28: 70
A29: R Church | C29: 52 | D29: 68 | E29: 50 | F29: 50 | G29: 55
C43: AB | D43: H | E43: RBI | F43: Run | G43: HR | H43: 3B | I43: 2B | J43: SB
A44: PITCHERS | C44: 0 | D44: 0 | E44: 0 | F44: 0 | G44: 0 | H44: 0 | I44: 0 | J44: 0
A45: R Lopez | C45: 0 | D45: 0 | E45: 0 | F45: 0 | G45: 0 | H45: 0 | I45: 0 | J45: 0
A46: I Kennedy | C46: 0 | D46: 0 | E46: 0 | F46: 0 | G46: 0 | H46: 0 | I46: 0 | J46: 0
A47: D Haren | B47: 1 | C47: 0 | D47: 0 | E47: 0 | F47: 0 | G47: 0 | H47: 0 | I47: 0 | J47: 0
A48: E Jackson | C48: 0 | D48: 0 | E48: 0 | F48: 0 | G48: 0 | H48: 0 | I48: 0 | J48: 0
A49: J Gutierrez | C49: 0 | D49: 0 | E49: 0 | F49: 0 | G49: 0 | H49: 0 | I49: 0 | J49: 0
A50: A Heilman | C50: 0 | D50: 0 | E50: 0 | F50: 0 | G50: 0 | H50: 0 | I50: 0 | J50: 0
A51: B Boyer | C51: 0 | D51: 0 | E51: 0 | F51: 0 | G51: 0 | H51: 0 | I51: 0 | J51: 0
A52: E Vasquez | C52: 0 | D52: 0 | E52: 0 | F52: 0 | G52: 0 | H52: 0 | I52: 0 | J52: 0
A53: C Qualls | C53: 0 | D53: 0 | E53: 0 | F53: 0 | G53: 0 | H53: 0 | I53: 0 | J53: 0
A54: D Hudson | C54: 0 | D54: 0 | E54: 0 | F54: 0 | G54: 0 | H54: 0 | I54: 0 | J54: 0
A55: B Enright | C55: 0 | D55: 0 | E55: 0 | F55: 0 | G55: 0 | H55: 0 | I55: 0 | J55: 0
A56: CATCHERS | C56: 0 | D56: 0 | E56: 0 | F56: 0 | G56: 0 | H56: 0 | I56: 0 | J56: 0
A57: M Montero | B57: 1 | C57: 0 | D57: 0 | E57: 0 | F57: 0 | G57: 0 | H57: 0 | I57: 0 | J57: 0
A58: C Snyder | C58: 0 | D58: 0 | E58: 0 | F58: 0 | G58: 0 | H58: 0 | I58: 0 | J58: 0
A59: INFIELDERS | C59: 0 | D59: 0 | E59: 0 | F59: 0 | G59: 0 | H59: 0 | I59: 0 | J59: 0
A60: A LaRoche | B60: 1 | C60: 0 | D60: 0 | E60: 0 | F60: 0 | G60: 0 | H60: 0 | I60: 0 | J60: 0
A61: K Johnson | B61: 1 | C61: 0 | D61: 0 | E61: 0 | F61: 0 | G61: 0 | H61: 0 | I61: 0 | J61: 0
A62: S Drew | B62: 1 | C62: 0 | D62: 0 | E62: 0 | F62: 0 | G62: 0 | H62: 0 | I62: 0 | J62: 0
A63: M Reynolds | B63: 1 | C63: 0 | D63: 0 | E63: 0 | F63: 0 | G63: 0 | H63: 0 | I63: 0 | J63: 0
A64: R Ryal | C64: 0 | D64: 0 | E64: 0 | F64: 0 | G64: 0 | H64: 0 | I64: 0 | J64: 0
A65: T Abreu | C65: 0 | D65: 0 | E65: 0 | F65: 0 | G65: 0 | H65: 0 | I65: 0 | J65: 0
A66: OUTFIELDERS | C66: 0 | D66: 0 | E66: 0 | F66: 0 | G66: 0 | H66: 0 | I66: 0 | J66: 0
A67: G Parra | B67: 1 | C67: 0 | D67: 0 | E67: 0 | F67: 0 | G67: 0 | H67: 0 | I67: 0 | J67: 0
A68: C Young | B68: 1 | C68: 0 | D68: 0 | E68: 0 | F68: 0 | G68: 0 | H68: 0 | I68: 0 | J68: 0
A69: J Upton | B69: 1 | C69: 0 | D69: 0 | E69: 0 | F69: 0 | G69: 0 | H69: 0 | I69: 0 | J69: 0
A70: C Jackson | C70: 0 | D70: 0 | E70: 0 | F70: 0 | G70: 0 | H70: 0 | I70: 0 | J70: 0
A71: C Gillespie | C71: 0 | D71: 0 | E71: 0 | F71: 0 | G71: 0 | H71: 0 | I71: 0 | J71: 0
A72: R Church | C72: 0 | D72: 0 | E72: 0 | F72: 0 | G72: 0 | H72: 0 | I72: 0 | J72: 0
B73: 99 | C73: 0 | D73: 0 | E73: 0 | F73: 0 | G73: 0 | H73: 0 | I73: 0 | J73: 0

Sheet Dodgers
A1: PITCHERS | C1: Effectiveness | D1: Stamina | E1: 1 | F1: SS | G1: R Furcal | I1: 1 | J1: C Kershaw | M1: 1 | N1: SS | O1: R Furcal
A2: C Kershaw | C2: 66 | D2: 1 | E2: 2 | F2: C | G2: R Martin | I2: 2 | J2: H Kuroda | M2: 2 | N2: C | O2: R Martin
A3: H Kuroda | C3: 67 | D3: 1 | E3: 3 | F3: RF | G3: A Ethier | I3: 3 | J3: C Billingsley | M3: 3 | N3: RF | O3: A Ethier
A4: C Billingsley | C4: 57 | D4: 1 | E4: 4 | F4: LF | G4: M Ramirez | I4: 4 | J4: V Padilla | M4: 4 | N4: LF | O4: M Ramirez
A5: V Padilla | C5: 74 | D5: 1 | E5: 5 | F5: CF | G5: M Kemp | M5: 5 | N5: CF | O5: M Kemp
A6: J Ely | C6: 41 | D6: 2 | E6: 6 | F6: 1B | G6: J Loney | M6: 6 | N6: 1B | O6: J Loney
A7: J Broxton | C7: 39 | D7: 3 | E7: 7 | F7: 3B | G7: C Blake | M7: 7 | N7: 3B | O7: C Blake
A8: H Kuo | C8: 102 | D8: 3 | E8: 8 | F8: 2B | G8: B DeWitt | M8: 8 | N8: 2B | O8: B DeWitt
A9: R Belisario | C9: 56 | D9: 3 | E9: 9 | F9: P | G9: C Kershaw | M9: 9 | N9: P | O9: C Kershaw
A10: R Troncoso | C10: 50 | D10: 3
A11: G Sherrill | C11: -2 | D11: 2 | N11: P | O11: C Kershaw
A12: C Monasterios | C12: 41 | D12: 2
A13: CATCHERS | C13: Contact | D13: Power | E13: Speed | F13: Def/Arm | G13: Bunt | P13: IP | Q13: H | R13: R | S13: K | T13: ERA | W13: BB
A14: R Martin | C14: 43 | D14: 36 | E14: 30 | F14: 60 | G14: 60 | N14: Starter | O14: C Kershaw | T14: =IFERROR(IF(O14="","",R14*9/P14),"INF") -> INF
A15: A Ellis | C15: 60 | D15: 35 | E15: 40 | F15: 40 | G15: 50
A16: INFIELDERS
A17: J Loney | C17: 53 | D17: 49 | E17: 75 | F17: 20 | G17: 75
A18: B DeWitt | C18: 55 | D18: 44 | E18: 60 | F18: 70 | G18: 70
A19: R Furcal | C19: 72 | D19: 62 | E19: 75 | F19: 20 | G19: 60
A20: C Blake | C20: 43 | D20: 51 | E20: 88 | F20: 20 | G20: 90
A21: J Carroll | C21: 67 | D21: 38 | E21: 65 | F21: 20 | G21: 20 | T21: =IF(O21="","",R21*9/P21) -> 
A22: R Belliard | C22: 25 | D22: 35 | E22: 30 | F22: 20 | G22: 20
A23: OUTFIELDERS
A24: M Ramirez | C24: 78 | D24: 72 | E24: 75 | F24: 70 | G24: 40
A25: M Kemp | C25: 43 | D25: 60 | E25: 65 | F25: 95 | G25: 35
A26: A Ethier | C26: 67 | D26: 69 | E26: 90 | F26: 40 | G26: 95
A27: R Johnson | C27: 51 | D27: 43 | E27: 40 | F27: 50 | G27: 10
A28: G Anderson | C28: 5 | D28: 24 | E28: 70 | F28: 60 | G28: 40
A29: S Podsednik | C29: 51 | D29: 37 | E29: 70 | F29: 60 | G29: 40
C43: AB | D43: H | E43: RBI | F43: Run | G43: HR | H43: 3B | I43: 2B | J43: SB
A44: PITCHERS | C44: 0 | D44: 0 | E44: 0 | F44: 0 | G44: 0 | H44: 0 | I44: 0 | J44: 0
A45: C Kershaw | B45: 1 | C45: 0 | D45: 0 | E45: 0 | F45: 0 | G45: 0 | H45: 0 | I45: 0 | J45: 0
A46: H Kuroda | C46: 0 | D46: 0 | E46: 0 | F46: 0 | G46: 0 | H46: 0 | I46: 0 | J46: 0
A47: C Billingsley | C47: 0 | D47: 0 | E47: 0 | F47: 0 | G47: 0 | H47: 0 | I47: 0 | J47: 0
A48: V Padilla | C48: 0 | D48: 0 | E48: 0 | F48: 0 | G48: 0 | H48: 0 | I48: 0 | J48: 0
A49: J Ely | C49: 0 | D49: 0 | E49: 0 | F49: 0 | G49: 0 | H49: 0 | I49: 0 | J49: 0
A50: J Broxton | C50: 0 | D50: 0 | E50: 0 | F50: 0 | G50: 0 | H50: 0 | I50: 0 | J50: 0
A51: H Kuo | C51: 0 | D51: 0 | E51: 0 | F51: 0 | G51: 0 | H51: 0 | I51: 0 | J51: 0
A52: R Belisario | C52: 0 | D52: 0 | E52: 0 | F52: 0 | G52: 0 | H52: 0 | I52: 0 | J52: 0
A53: R Troncoso | C53: 0 | D53: 0 | E53: 0 | F53: 0 | G53: 0 | H53: 0 | I53: 0 | J53: 0
A54: G Sherrill | C54: 0 | D54: 0 | E54: 0 | F54: 0 | G54: 0 | H54: 0 | I54: 0 | J54: 0
A55: C Monasterios | C55: 0 | D55: 0 | E55: 0 | F55: 0 | G55: 0 | H55: 0 | I55: 0 | J55: 0
A56: CATCHERS | C56: 0 | D56: 0 | E56: 0 | F56: 0 | G56: 0 | H56: 0 | I56: 0 | J56: 0
A57: R Martin | B57: 1 | C57: 0 | D57: 0 | E57: 0 | F57: 0 | G57: 0 | H57: 0 | I57: 0 | J57: 0
A58: A Ellis | C58: 0 | D58: 0 | E58: 0 | F58: 0 | G58: 0 | H58: 0 | I58: 0 | J58: 0
A59: INFIELDERS | C59: 0 | D59: 0 | E59: 0 | F59: 0 | G59: 0 | H59: 0 | I59: 0 | J59: 0
A60: J Loney | B60: 1 | C60: 0 | D60: 0 | E60: 0 | F60: 0 | G60: 0 | H60: 0 | I60: 0 | J60: 0
A61: B DeWitt | B61: 1 | C61: 0 | D61: 0 | E61: 0 | F61: 0 | G61: 0 | H61: 0 | I61: 0 | J61: 0
A62: R Furcal | B62: 1 | C62: 0 | D62: 0 | E62: 0 | F62: 0 | G62: 0 | H62: 0 | I62: 0 | J62: 0
A63: C Blake | B63: 1 | C63: 0 | D63: 0 | E63: 0 | F63: 0 | G63: 0 | H63: 0 | I63: 0 | J63: 0
A64: J Carroll | C64: 0 | D64: 0 | E64: 0 | F64: 0 | G64: 0 | H64: 0 | I64: 0 | J64: 0
A65: R Belliard | C65: 0 | D65: 0 | E65: 0 | F65: 0 | G65: 0 | H65: 0 | I65: 0 | J65: 0
A66: OUTFIELDERS | C66: 0 | D66: 0 | E66: 0 | F66: 0 | G66: 0 | H66: 0 | I66: 0 | J66: 0
A67: M Ramirez | B67: 1 | C67: 0 | D67: 0 | E67: 0 | F67: 0 | G67: 0 | H67: 0 | I67: 0 | J67: 0
A68: M Kemp | B68: 1 | C68: 0 | D68: 0 | E68: 0 | F68: 0 | G68: 0 | H68: 0 | I68: 0 | J68: 0
A69: A Ethier | B69: 1 | C69: 0 | D69: 0 | E69: 0 | F69: 0 | G69: 0 | H69: 0 | I69: 0 | J69: 0
A70: R Johnson | C70: 0 | D70: 0 | E70: 0 | F70: 0 | G70: 0 | H70: 0 | I70: 0 | J70: 0
A71: G Anderson | C71: 0 | D71: 0 | E71: 0 | F71: 0 | G71: 0 | H71: 0 | I71: 0 | J71: 0
A72: S Podsednik | C72: 0 | D72: 0 | E72: 0 | F72: 0 | G72: 0 | H72: 0 | I72: 0 | J72: 0
B73: 99 | C73: 0 | D73: 0 | E73: 0 | F73: 0 | G73: 0 | H73: 0 | I73: 0 | J73: 0

Sheet Giants
A1: PITCHERS | C1: Effectiveness | D1: Stamina | E1: 1 | F1: CF | G1: A Torres | I1: 1 | J1: T Lincecum | M1: 1 | N1: CF | O1: A Torres
A2: M Cain | C2: 74 | D2: 1 | E2: 2 | F2: 2B | G2: F Sanchez | I2: 2 | J2: M Cain | M2: 2 | N2: 2B | O2: F Sanchez
A3: T Lincecum | C3: 57 | D3: 1 | E3: 3 | F3: C | G3: B Posey | I3: 3 | J3: J Sanchez | M3: 3 | N3: C | O3: B Posey
A4: J Sanchez | C4: 61 | D4: 1 | E4: 4 | F4: LF | G4: C Ross | I4: 4 | J4: M Bumgarner | M4: 4 | N4: LF | O4: C Ross
A5: M Bumgarner | C5: 54 | D5: 1 | E5: 5 | F5: 1B | G5: A Huff | M5: 5 | N5: 1B | O5: A Huff
A6: B Zito | C6: 51 | D6: 2 | E6: 6 | F6: 3B | G6: J Uribe | M6: 6 | N6: 3B | O6: J Uribe
A7: B Wilson | C7: 66 | D7: 3 | E7: 7 | F7: SS | G7: E Renteria | M7: 7 | N7: SS | O7: E Renteria
A8: S Romo | C8: 85 | D8: 3 | E8: 8 | F8: RF | G8: N Schierholtz | M8: 8 | N8: RF | O8: N Schierholtz
A9: S Casilla | C9: 64 | D9: 3 | E9: 9 | F9: P | G9: T Lincecum | M9: 9 | N9: P | O9: T Lincecum | OP9: S Romo
A10: G Mota | C10: 53 | D10: 3
A11: J Affeldt | C11: 27 | D11: 2 | N11: P | O11: T Lincecum
A12: D Bautista | C12: 32 | D12: 3
A13: CATCHERS | C13: Contact | D13: Power | E13: Speed | F13: Def/Arm | G13: Bunt | P13: IP | Q13: H | R13: R | S13: K | T13: ERA | W13: BB
A14: B Posey | C14: 75 | D14: 71 | E14: 55 | F14: 75 | G14: 55 | N14: Starter | O14: T Lincecum | T14: =IFERROR(IF(O14="","",R14*9/P14),"INF") -> INF | Y14: 0 | Z14: 0
A15: E Whiteside | C15: 37 | D15: 49 | E15: 60 | F15: 60 | G15: 55 | Y15: 0 | Z15: 0
A16: INFIELDERS
A17: A Huff | C17: 66 | D17: 71 | E17: 45 | F17: 20 | G17: 35
A18: F Sanchez | C18: 67 | D18: 49 | E18: 70 | F18: 20 | G18: 80
A19: J Uribe | C19: 43 | D19: 58 | E19: 60 | F19: 20 | G19: 40
A20: P Sandoval | C20: 54 | D20: 52 | E20: 45 | F20: 20 | G20: 45
A21: E Renteria | C21: 58 | D21: 45 | E21: 60 | F21: 20 | G21: 70 | T21: =IF(O21="","",R21*9/P21) -> 
A22: T Ishikawa | C22: 53 | D22: 48 | E22: 50 | F22: 20 | G22: 55
A23: OUTFIELDERS
A24: P Burrell | C24: 53 | D24: 72 | E24: 40 | F24: 45 | G24: 30
A25: A Rowand | C25: 33 | D25: 26 | E25: 65 | F25: 70 | G25: 65
A26: N Schierholtz | C26: 39 | D26: 43 | E26: 65 | F26: 80 | G26: 65
A27: A Torres | C27: 54 | D27: 66 | E27: 85 | F27: 70 | G27: 70
A28: J Guillen | C28: 53 | D28: 45 | E28: 60 | F28: 80 | G28: 40
A29: C Ross | C29: 65 | D29: 63 | E29: 70 | F29: 60 | G29: 65
C43: AB | D43: H | E43: RBI | F43: Run | G43: HR | H43: 3B | I43: 2B | J43: SB
A44: PITCHERS | C44: 0 | D44: 0 | E44: 0 | F44: 0 | G44: 0 | H44: 0 | I44: 0 | J44: 0
A45: M Cain | C45: 0 | D45: 0 | E45: 0 | F45: 0 | G45: 0 | H45: 0 | I45: 0 | J45: 0
A46: T Lincecum | B46: 1 | C46: 0 | D46: 0 | E46: 0 | F46: 0 | G46: 0 | H46: 0 | I46: 0 | J46: 0
A47: J Sanchez | C47: 0 | D47: 0 | E47: 0 | F47: 0 | G47: 0 | H47: 0 | I47: 0 | J47: 0
A48: M Bumgarner | C48: 0 | D48: 0 | E48: 0 | F48: 0 | G48: 0 | H48: 0 | I48: 0 | J48: 0
A49: B Zito | C49: 0 | D49: 0 | E49: 0 | F49: 0 | G49: 0 | H49: 0 | I49: 0 | J49: 0
A50: B Wilson | C50: 0 | D50: 0 | E50: 0 | F50: 0 | G50: 0 | H50: 0 | I50: 0 | J50: 0
A51: S Romo | C51: 0 | D51: 0 | E51: 0 | F51: 0 | G51: 0 | H51: 0 | I51: 0 | J51: 0
A52: S Casilla | C52: 0 | D52: 0 | E52: 0 | F52: 0 | G52: 0 | H52: 0 | I52: 0 | J52: 0
A53: G Mota | C53: 0 | D53: 0 | E53: 0 | F53: 0 | G53: 0 | H53: 0 | I53: 0 | J53: 0
A54: J Affeldt | C54: 0 | D54: 0 | E54: 0 | F54: 0 | G54: 0 | H54: 0 | I54: 0 | J54: 0
A55: D Bautista | C55: 0 | D55: 0 | E55: 0 | F55: 0 | G55: 0 | H55: 0 | I55: 0 | J55: 0
A56: CATCHERS | C56: 0 | D56: 0 | E56: 0 | F56: 0 | G56: 0 | H56: 0 | I56: 0 | J56: 0
A57: B Posey | B57: 1 | C57: 0 | D57: 0 | E57: 0 | F57: 0 | G57: 0 | H57: 0 | I57: 0 | J57: 0
A58: E Whiteside | C58: 0 | D58: 0 | E58: 0 | F58: 0 | G58: 0 | H58: 0 | I58: 0 | J58: 0
A59: INFIELDERS | C59: 0 | D59: 0 | E59: 0 | F59: 0 | G59: 0 | H59: 0 | I59: 0 | J59: 0
A60: A Huff | B60: 1 | C60: 0 | D60: 0 | E60: 0 | F60: 0 | G60: 0 | H60: 0 | I60: 0 | J60: 0
A61: F Sanchez | B61: 1 | C61: 0 | D61: 0 | E61: 0 | F61: 0 | G61: 0 | H61: 0 | I61: 0 | J61: 0
A62: J Uribe | B62: 1 | C62: 0 | D62: 0 | E62: 0 | F62: 0 | G62: 0 | H62: 0 | I62: 0 | J62: 0
A63: P Sandoval | C63: 0 | D63: 0 | E63: 0 | F63: 0 | G63: 0 | H63: 0 | I63: 0 | J63: 0
A64: E Renteria | B64: 1 | C64: 0 | D64: 0 | E64: 0 | F64: 0 | G64: 0 | H64: 0 | I64: 0 | J64: 0
A65: T Ishikawa | C65: 0 | D65: 0 | E65: 0 | F65: 0 | G65: 0 | H65: 0 | I65: 0 | J65: 0
A66: OUTFIELDERS | C66: 0 | D66: 0 | E66: 0 | F66: 0 | G66: 0 | H66: 0 | I66: 0 | J66: 0
A67: P Burrell | C67: 0 | D67: 0 | E67: 0 | F67: 0 | G67: 0 | H67: 0 | I67: 0 | J67: 0
A68: A Rowand | C68: 0 | D68: 0 | E68: 0 | F68: 0 | G68: 0 | H68: 0 | I68: 0 | J68: 0
A69: N Schierholtz | B69: 1 | C69: 0 | D69: 0 | E69: 0 | F69: 0 | G69: 0 | H69: 0 | I69: 0 | J69: 0
A70: A Torres | B70: 1 | C70: 0 | D70: 0 | E70: 0 | F70: 0 | G70: 0 | H70: 0 | I70: 0 | J70: 0
A71: J Guillen | C71: 0 | D71: 0 | E71: 0 | F71: 0 | G71: 0 | H71: 0 | I71: 0 | J71: 0
A72: C Ross | B72: 1 | C72: 0 | D72: 0 | E72: 0 | F72: 0 | G72: 0 | H72: 0 | I72: 0 | J72: 0
B73: 99 | C73: 0 | D73: 0 | E73: 0 | F73: 0 | G73: 0 | H73: 0 | I73: 0 | J73: 0

Sheet Indians
A1: PITCHERS | C1: WHIP | D1: Stamina | E1: 1 | F1: CF | G1: M Brantley | I1: 1 | J1: F Carmona | M1: 1 | N1: CF | O1: M Brantley
A2: F Carmona | C2: 54 | D2: 1 | E2: 2 | F2: SS | G2: A Cabrera | I2: 2 | J2: J Masterson | M2: 2 | N2: SS | O2: A Cabrera
A3: J Masterson | C3: 36 | D3: 1 | E3: 3 | F3: RF | G3: S Choo | I3: 3 | J3: J Westbrook | M3: 3 | N3: RF | O3: S Choo
A4: J Westbrook | C4: 47 | D4: 1 | E4: 4 | F4: LF | G4: S Duncan | I4: 4 | J4: M Talbot | M4: 4 | N4: LF | O4: S Duncan
A5: M Talbot | C5: 37 | D5: 1 | E5: 5 | F5: C | G5: C Santana | M5: 5 | N5: C | O5: C Santana
A6: J Tomlin | C6: 59 | D6: 2 | E6: 6 | F6: DH | G6: T Hafner | M6: 6 | N6: DH | O6: T Hafner
A7: C Perez | C7: 75 | D7: 3 | E7: 7 | F7: 1B | G7: M LaPorta | M7: 7 | N7: 1B | O7: M LaPorta
A8: T Sipp | C8: 47 | D8: 3 | E8: 8 | F8: 2B | G8: L Valbuena | M8: 8 | N8: 2B | O8: L Valbuena
A9: F Herrmann | C9: 57 | D9: 2 | E9: 9 | F9: 3B | G9: J Nix | M9: 9 | N9: 3B | O9: J Nix
A10: J Smith | C10: 50 | D10: 2
A11: A Laffey | C11: 26 | D11: 2 | N11: P | O11: J Westbrook
A12: J Lewis | C12: 55 | D12: 3
A13: CATCHERS | C13: AVG | D13: Slug% | E13: Speed | F13: Def/Arm | G13: Bunt | P13: IP | Q13: H | R13: R | S13: K | T13: ERA | W13: BB
A14: C Santana | C14: 49 | D14: 63 | E14: 30 | F14: 80 | G14: 60 | N14: Starter | O14: J Westbrook | T14: =IFERROR(IF(O14="","",R14*9/P14),"INF") -> INF
A15: L Marson | C15: 13 | D15: 27 | E15: 55 | F15: 75 | G15: 45 | T15: =IFERROR(IF(O15="","",R15*9/P15),"INF") -> 
A16: INFIELDERS | T16: =IFERROR(IF(O16="","",R16*9/P16),"INF") -> 
A17: M LaPorta | C17: 28 | D17: 42 | E17: 30 | F17: 20 | G17: 20 | T17: =IFERROR(IF(O17="","",R17*9/P17),"INF") -> 
A18: L Valbuena | C18: 12 | D18: 22 | E18: 75 | F18: 20 | G18: 70 | T18: =IFERROR(IF(O18="","",R18*9/P18),"INF") -> 
A19: A Cabrera | C19: 58 | D19: 39 | E19: 75 | F19: 20 | G19: 80 | T19: =IFERROR(IF(O19="","",R19*9/P19),"INF") -> 
A20: J Nix | C20: 35 | D20: 54 | E20: 65 | F20: 20 | G20: 55 | T20: =IFERROR(IF(O20="","",R20*9/P20),"INF") -> 
A21: T Hafner | C21: 60 | D21: 60 | E21: 25 | F21: 10 | G21: 10 | T21: =IF(O21="","",R21*9/P21) -> 
A22: J Donald | C22: 46 | D22: 46 | E22: 65 | F22: 20 | G22: 55
A23: OUTFIELDERS
A24: T Crowe | C24: 44 | D24: 37 | E24: 70 | F24: 65 | G24: 60
A25: S Choo | C25: 72 | D25: 67 | E25: 80 | F25: 90 | G25: 35
A26: M Brantley | C26: 42 | D26: 35 | E26: 85 | F26: 70 | G26: 65
A27: S Duncan | C27: 33 | D27: 54 | E27: 45 | F27: 55 | G27: 50
A28: J Brown | C28: 33 | D28: 32 | E28: 40 | F28: 60 | G28: 45
A29: G Sizemore | C29: 22 | D29: 28 | E29: 70 | F29: 60 | G29: 70
C43: AB | D43: H | E43: RBI | F43: Run | G43: HR | H43: 3B | I43: 2B | J43: SB
A44: PITCHERS | C44: 0 | D44: 0 | E44: 0 | F44: 0 | G44: 0 | H44: 0 | I44: 0 | J44: 0
A45: F Carmona | C45: 0 | D45: 0 | E45: 0 | F45: 0 | G45: 0 | H45: 0 | I45: 0 | J45: 0
A46: J Masterson | C46: 0 | D46: 0 | E46: 0 | F46: 0 | G46: 0 | H46: 0 | I46: 0 | J46: 0
A47: J Westbrook | B47: 1 | C47: 0 | D47: 0 | E47: 0 | F47: 0 | G47: 0 | H47: 0 | I47: 0 | J47: 0
A48: M Talbot | C48: 0 | D48: 0 | E48: 0 | F48: 0 | G48: 0 | H48: 0 | I48: 0 | J48: 0
A49: J Tomlin | C49: 0 | D49: 0 | E49: 0 | F49: 0 | G49: 0 | H49: 0 | I49: 0 | J49: 0
A50: C Perez | C50: 0 | D50: 0 | E50: 0 | F50: 0 | G50: 0 | H50: 0 | I50: 0 | J50: 0
A51: T Sipp | C51: 0 | D51: 0 | E51: 0 | F51: 0 | G51: 0 | H51: 0 | I51: 0 | J51: 0
A52: F Herrmann | C52: 0 | D52: 0 | E52: 0 | F52: 0 | G52: 0 | H52: 0 | I52: 0 | J52: 0
A53: J Smith | C53: 0 | D53: 0 | E53: 0 | F53: 0 | G53: 0 | H53: 0 | I53: 0 | J53: 0
A54: A Laffey | C54: 0 | D54: 0 | E54: 0 | F54: 0 | G54: 0 | H54: 0 | I54: 0 | J54: 0
A55: J Lewis | C55: 0 | D55: 0 | E55: 0 | F55: 0 | G55: 0 | H55: 0 | I55: 0 | J55: 0
A56: CATCHERS | C56: 0 | D56: 0 | E56: 0 | F56: 0 | G56: 0 | H56: 0 | I56: 0 | J56: 0
A57: C Santana | B57: 1 | C57: 0 | D57: 0 | E57: 0 | F57: 0 | G57: 0 | H57: 0 | I57: 0 | J57: 0
A58: L Marson | C58: 0 | D58: 0 | E58: 0 | F58: 0 | G58: 0 | H58: 0 | I58: 0 | J58: 0
A59: INFIELDERS | C59: 0 | D59: 0 | E59: 0 | F59: 0 | G59: 0 | H59: 0 | I59: 0 | J59: 0
A60: M LaPorta | B60: 1 | C60: 0 | D60: 0 | E60: 0 | F60: 0 | G60: 0 | H60: 0 | I60: 0 | J60: 0
A61: L Valbuena | B61: 1 | C61: 0 | D61: 0 | E61: 0 | F61: 0 | G61: 0 | H61: 0 | I61: 0 | J61: 0
A62: A Cabrera | B62: 1 | C62: 0 | D62: 0 | E62: 0 | F62: 0 | G62: 0 | H62: 0 | I62: 0 | J62: 0
A63: J Nix | B63: 1 | C63: 0 | D63: 0 | E63: 0 | F63: 0 | G63: 0 | H63: 0 | I63: 0 | J63: 0
A64: T Hafner | B64: 1 | C64: 0 | D64: 0 | E64: 0 | F64: 0 | G64: 0 | H64: 0 | I64: 0 | J64: 0
A65: J Donald | C65: 0 | D65: 0 | E65: 0 | F65: 0 | G65: 0 | H65: 0 | I65: 0 | J65: 0
A66: OUTFIELDERS | C66: 0 | D66: 0 | E66: 0 | F66: 0 | G66: 0 | H66: 0 | I66: 0 | J66: 0
A67: T Crowe | C67: 0 | D67: 0 | E67: 0 | F67: 0 | G67: 0 | H67: 0 | I67: 0 | J67: 0
A68: S Choo | B68: 1 | C68: 0 | D68: 0 | E68: 0 | F68: 0 | G68: 0 | H68: 0 | I68: 0 | J68: 0
A69: M Brantley | B69: 1 | C69: 0 | D69: 0 | E69: 0 | F69: 0 | G69: 0 | H69: 0 | I69: 0 | J69: 0
A70: S Duncan | B70: 1 | C70: 0 | D70: 0 | E70: 0 | F70: 0 | G70: 0 | H70: 0 | I70: 0 | J70: 0
A71: J Brown | C71: 0 | D71: 0 | E71: 0 | F71: 0 | G71: 0 | H71: 0 | I71: 0 | J71: 0
A72: G Sizemore | C72: 0 | D72: 0 | E72: 0 | F72: 0 | G72: 0 | H72: 0 | I72: 0 | J72: 0
B73: 99 | C73: 0 | D73: 0 | E73: 0 | F73: 0 | G73: 0 | H73: 0 | I73: 0 | J73: 0

Sheet Mariners
A1: PITCHERS | C1: Effectiveness | D1: Stamina | E1: 1 | F1: RF | G1: Ichiro | I1: 1 | J1: F Hernandez | M1: 1 | N1: RF | O1: Ichiro
A2: F Hernandez | C2: 77 | D2: 1 | E2: 2 | F2: 2B | G2: C Figgins | I2: 2 | J2: J Vargas | M2: 2 | N2: 2B | O2: C Figgins
A3: J Vargas | C3: 59 | D3: 1 | E3: 3 | F3: CF | G3: F Gutierrez | I3: 3 | J3: D Fister | M3: 3 | N3: CF | O3: F Gutierrez
A4: D Fister | C4: 56 | D4: 1 | E4: 4 | F4: 3B | G4: J Lopez | I4: 4 | J4: R Rowland-Smith | M4: 4 | N4: 3B | O4: J Lopez
A5: R Rowland-Smith | C5: 19 | D5: 1 | E5: 5 | F5: DH | G5: R Branyan | M5: 5 | N5: DH | O5: R Branyan
A6: D Pauley | C6: 53 | D6: 2 | E6: 6 | F6: 1B | G6: C Kotchman | M6: 6 | N6: 1B | O6: C Kotchman
A7: D Aardsma | C7: 67 | D7: 3 | E7: 7 | F7: SS | G7: Jo. Wilson | M7: 7 | N7: SS | O7: Jo. Wilson
A8: B League | C8: 65 | D8: 3 | E8: 8 | F8: LF | G8: M Saunders | M8: 8 | N8: LF | O8: M Saunders
A9: G Olson | C9: 35 | D9: 3 | E9: 9 | F9: C | G9: A Moore | M9: 9 | N9: C | O9: A Moore
A10: J Wright | C10: 60 | D10: 2
A11: S White | C11: 24 | D11: 3 | N11: P | O11: J Vargas
A12: L French | C12: 51 | D12: 2
A13: CATCHERS | C13: Contact | D13: Power | E13: Speed | F13: Def/Arm | G13: Bunt | P13: IP | Q13: H | R13: R | S13: K | T13: ERA | W13: BB
A14: A Moore | C14: 13 | D14: 27 | E14: 45 | F14: 60 | G14: 65 | N14: Starter | O14: J Vargas | T14: =IFERROR(IF(O14="","",R14*9/P14),"INF") -> INF
A15: R Johnson | C15: 11 | D15: 26 | E15: 55 | F15: 50 | G15: 40
A16: INFIELDERS
A17: C Kotchman | C17: 25 | D17: 37 | E17: 45 | F17: 20 | G17: 35
A18: C Figgins | C18: 49 | D18: 31 | E18: 80 | F18: 45 | G18: 75
A19: Jo. Wilson | C19: 31 | D19: 29 | E19: 65 | F19: 20 | G19: 60
A20: J Lopez | C20: 38 | D20: 38 | E20: 60 | F20: 20 | G20: 55
A21: Ja. Wilson | C21: 43 | D21: 33 | E21: 70 | F21: 20 | G21: 70 | T21: =IF(O21="","",R21*9/P21) -> 
A22: J Smoak | C22: 38 | D22: 51 | E22: 50 | F22: 20 | G22: 45
A23: OUTFIELDERS
A24: M Saunders | C24: 22 | D24: 43 | E24: 65 | F24: 60 | G24: 55
A25: F Gutierrez | C25: 41 | D25: 43 | E25: 80 | F25: 90 | G25: 65
A26: Ichiro | C26: 80 | D26: 49 | E26: 90 | F26: 95 | G26: 80
A27: R Branyan | C27: 24 | D27: 67 | E27: 40 | F27: 35 | G27: 20
A28: M Bradley | C28: 19 | D28: 40 | E28: 70 | F28: 60 | G28: 45
A29: K Griffey Jr. | C29: 7 | D29: 11 | E29: 45 | F29: 60 | G29: 55
C43: AB | D43: H | E43: RBI | F43: Run | G43: HR | H43: 3B | I43: 2B | J43: SB
A44: PITCHERS | C44: 0 | D44: 0 | E44: 0 | F44: 0 | G44: 0 | H44: 0 | I44: 0 | J44: 0
A45: F Hernandez | C45: 0 | D45: 0 | E45: 0 | F45: 0 | G45: 0 | H45: 0 | I45: 0 | J45: 0
A46: J Vargas | B46: 1 | C46: 0 | D46: 0 | E46: 0 | F46: 0 | G46: 0 | H46: 0 | I46: 0 | J46: 0
A47: D Fister | C47: 0 | D47: 0 | E47: 0 | F47: 0 | G47: 0 | H47: 0 | I47: 0 | J47: 0
A48: R Rowland-Smith | C48: 0 | D48: 0 | E48: 0 | F48: 0 | G48: 0 | H48: 0 | I48: 0 | J48: 0
A49: D Pauley | C49: 0 | D49: 0 | E49: 0 | F49: 0 | G49: 0 | H49: 0 | I49: 0 | J49: 0
A50: D Aardsma | C50: 0 | D50: 0 | E50: 0 | F50: 0 | G50: 0 | H50: 0 | I50: 0 | J50: 0
A51: B League | C51: 0 | D51: 0 | E51: 0 | F51: 0 | G51: 0 | H51: 0 | I51: 0 | J51: 0
A52: G Olson | C52: 0 | D52: 0 | E52: 0 | F52: 0 | G52: 0 | H52: 0 | I52: 0 | J52: 0
A53: J Wright | C53: 0 | D53: 0 | E53: 0 | F53: 0 | G53: 0 | H53: 0 | I53: 0 | J53: 0
A54: S White | C54: 0 | D54: 0 | E54: 0 | F54: 0 | G54: 0 | H54: 0 | I54: 0 | J54: 0
A55: L French | C55: 0 | D55: 0 | E55: 0 | F55: 0 | G55: 0 | H55: 0 | I55: 0 | J55: 0
A56: CATCHERS | C56: 0 | D56: 0 | E56: 0 | F56: 0 | G56: 0 | H56: 0 | I56: 0 | J56: 0
A57: A Moore | B57: 1 | C57: 0 | D57: 0 | E57: 0 | F57: 0 | G57: 0 | H57: 0 | I57: 0 | J57: 0
A58: R Johnson | C58: 0 | D58: 0 | E58: 0 | F58: 0 | G58: 0 | H58: 0 | I58: 0 | J58: 0
A59: INFIELDERS | C59: 0 | D59: 0 | E59: 0 | F59: 0 | G59: 0 | H59: 0 | I59: 0 | J59: 0
A60: C Kotchman | B60: 1 | C60: 0 | D60: 0 | E60: 0 | F60: 0 | G60: 0 | H60: 0 | I60: 0 | J60: 0
A61: C Figgins | B61: 1 | C61: 0 | D61: 0 | E61: 0 | F61: 0 | G61: 0 | H61: 0 | I61: 0 | J61: 0
A62: Jo. Wilson | B62: 1 | C62: 0 | D62: 0 | E62: 0 | F62: 0 | G62: 0 | H62: 0 | I62: 0 | J62: 0
A63: J Lopez | B63: 1 | C63: 0 | D63: 0 | E63: 0 | F63: 0 | G63: 0 | H63: 0 | I63: 0 | J63: 0
A64: Ja. Wilson | C64: 0 | D64: 0 | E64: 0 | F64: 0 | G64: 0 | H64: 0 | I64: 0 | J64: 0
A65: J Smoak | C65: 0 | D65: 0 | E65: 0 | F65: 0 | G65: 0 | H65: 0 | I65: 0 | J65: 0
A66: OUTFIELDERS | C66: 0 | D66: 0 | E66: 0 | F66: 0 | G66: 0 | H66: 0 | I66: 0 | J66: 0
A67: M Saunders | B67: 1 | C67: 0 | D67: 0 | E67: 0 | F67: 0 | G67: 0 | H67: 0 | I67: 0 | J67: 0
A68: F Gutierrez | B68: 1 | C68: 0 | D68: 0 | E68: 0 | F68: 0 | G68: 0 | H68: 0 | I68: 0 | J68: 0
A69: Ichiro | B69: 1 | C69: 0 | D69: 0 | E69: 0 | F69: 0 | G69: 0 | H69: 0 | I69: 0 | J69: 0
A70: R Branyan | B70: 1 | C70: 0 | D70: 0 | E70: 0 | F70: 0 | G70: 0 | H70: 0 | I70: 0 | J70: 0
A71: M Bradley | C71: 0 | D71: 0 | E71: 0 | F71: 0 | G71: 0 | H71: 0 | I71: 0 | J71: 0
A72: K Griffey Jr. | C72: 0 | D72: 0 | E72: 0 | F72: 0 | G72: 0 | H72: 0 | I72: 0 | J72: 0
B73: 99 | C73: 0 | D73: 0 | E73: 0 | F73: 0 | G73: 0 | H73: 0 | I73: 0 | J73: 0

Sheet Marlins
A1: PITCHERS | C1: Effectiveness | D1: Stamina | E1: 1 | F1: LF | G1: C Coghlan | I1: 1 | J1: J Johnson | M1: 1 | N1: LF | O1: C Coghlan
A2: J Johnson | C2: 72 | D2: 1 | E2: 2 | F2: 1B | G2: G Sanchez | I2: 2 | J2: A Sanchez | M2: 2 | N2: 1B | O2: G Sanchez
A3: A Sanchez | C3: 51 | D3: 1 | E3: 3 | F3: SS | G3: H Ramirez | I3: 3 | J3: C Volstad | M3: 3 | N3: SS | O3: H Ramirez
A4: C Volstad | C4: 44 | D4: 1 | E4: 4 | F4: 3B | G4: J Cantu | I4: 4 | J4: R Nolasco | M4: 4 | N4: 3B | O4: J Cantu
A5: R Nolasco | C5: 56 | D5: 1 | E5: 5 | F5: 2B | G5: D Uggla | M5: 5 | N5: 2B | O5: D Uggla
A6: N Robertson | C6: 37 | D6: 2 | E6: 6 | F6: C | G6: R Paulino | M6: 6 | N6: C | O6: R Paulino
A7: L Nunez | C7: 57 | D7: 3 | E7: 7 | F7: CF | G7: C Maybin | M7: 7 | N7: CF | O7: C Maybin
A8: C Hensley | C8: 72 | D8: 3 | E8: 8 | F8: RF | G8: L Morrison | M8: 8 | N8: RF | O8: L Morrison
A9: B Badenhop | C9: 61 | D9: 3 | E9: 9 | F9: P | G9: J Johnson | M9: 9 | N9: P | O9: J Johnson | OP9: A Rhodes
A10: B Sanches | C10: 73 | D10: 3
A11: J Veras | C11: 57 | D11: 3 | N11: P | O11: J Johnson
A12: J Sosa | C12: 31 | D12: 2
A13: CATCHERS | C13: Contact | D13: Power | E13: Speed | F13: Def/Arm | G13: Bunt | P13: IP | Q13: H | R13: R | S13: K | T13: ERA | W13: BB
A14: R Paulino | C14: 49 | D14: 41 | E14: 45 | F14: 65 | G14: 55 | N14: Starter | O14: J Johnson | T14: =IFERROR(IF(O14="","",R14*9/P14),"INF") -> INF | Y14: 0 | Z14: 0
A15: B Davis | C15: 22 | D15: 45 | E15: 55 | F15: 50 | G15: 60 | Y15: 0 | Z15: 0
A16: INFIELDERS | Y16: 0 | Z16: 0
A17: G Sanchez | C17: 57 | D17: 60 | E17: 40 | F17: 20 | G17: 45
A18: D Uggla | C18: 65 | D18: 72 | E18: 65 | F18: 20 | G18: 60
A19: H Ramirez | C19: 72 | D19: 65 | E19: 80 | F19: 20 | G19: 55
A20: J Cantu | C20: 51 | D20: 52 | E20: 55 | F20: 45 | G20: 45
A21: W Helms | C21: 27 | D21: 39 | E21: 40 | F21: 20 | G21: 65 | T21: =IF(O21="","",R21*9/P21) -> 
A22: C Tracy | C22: 41 | D22: 37 | E22: 40 | F22: 40 | G22: 35
A23: E Bonifacio | C23: 50 | D23: 36 | E23: 75 | F23: 20 | G23: 65
A24: OUTFIELDERS
A25: C Coghlan | C25: 54 | D25: 47 | E25: 70 | F25: 60 | G25: 55
A26: C Maybin | C26: 35 | D26: 42 | E26: 80 | F26: 60 | G26: 55
A27: M Stanton | C27: 49 | D27: 71 | E27: 50 | F27: 55 | G27: 40
A28: L Morrison | C28: 62 | D28: 59 | E28: 55 | F28: 65 | G28: 60
A29: B Carroll | C29: 14 | D29: 36 | E29: 60 | F29: 55 | G29: 60
C43: AB | D43: H | E43: RBI | F43: Run | G43: HR | H43: 3B | I43: 2B | J43: SB
A44: PITCHERS | C44: 0 | D44: 0 | E44: 0 | F44: 0 | G44: 0 | H44: 0 | I44: 0 | J44: 0
A45: J Johnson | B45: 1 | C45: 0 | D45: 0 | E45: 0 | F45: 0 | G45: 0 | H45: 0 | I45: 0 | J45: 0
A46: A Sanchez | C46: 0 | D46: 0 | E46: 0 | F46: 0 | G46: 0 | H46: 0 | I46: 0 | J46: 0
A47: C Volstad | C47: 0 | D47: 0 | E47: 0 | F47: 0 | G47: 0 | H47: 0 | I47: 0 | J47: 0
A48: R Nolasco | C48: 0 | D48: 0 | E48: 0 | F48: 0 | G48: 0 | H48: 0 | I48: 0 | J48: 0
A49: N Robertson | C49: 0 | D49: 0 | E49: 0 | F49: 0 | G49: 0 | H49: 0 | I49: 0 | J49: 0
A50: L Nunez | C50: 0 | D50: 0 | E50: 0 | F50: 0 | G50: 0 | H50: 0 | I50: 0 | J50: 0
A51: C Hensley | C51: 0 | D51: 0 | E51: 0 | F51: 0 | G51: 0 | H51: 0 | I51: 0 | J51: 0
A52: B Badenhop | C52: 0 | D52: 0 | E52: 0 | F52: 0 | G52: 0 | H52: 0 | I52: 0 | J52: 0
A53: B Sanches | C53: 0 | D53: 0 | E53: 0 | F53: 0 | G53: 0 | H53: 0 | I53: 0 | J53: 0
A54: J Veras | C54: 0 | D54: 0 | E54: 0 | F54: 0 | G54: 0 | H54: 0 | I54: 0 | J54: 0
A55: J Sosa | C55: 0 | D55: 0 | E55: 0 | F55: 0 | G55: 0 | H55: 0 | I55: 0 | J55: 0
A56: CATCHERS | C56: 0 | D56: 0 | E56: 0 | F56: 0 | G56: 0 | H56: 0 | I56: 0 | J56: 0
A57: R Paulino | B57: 1 | C57: 0 | D57: 0 | E57: 0 | F57: 0 | G57: 0 | H57: 0 | I57: 0 | J57: 0
A58: B Davis | C58: 0 | D58: 0 | E58: 0 | F58: 0 | G58: 0 | H58: 0 | I58: 0 | J58: 0
A59: INFIELDERS | C59: 0 | D59: 0 | E59: 0 | F59: 0 | G59: 0 | H59: 0 | I59: 0 | J59: 0
A60: G Sanchez | B60: 1 | C60: 0 | D60: 0 | E60: 0 | F60: 0 | G60: 0 | H60: 0 | I60: 0 | J60: 0
A61: D Uggla | B61: 1 | C61: 0 | D61: 0 | E61: 0 | F61: 0 | G61: 0 | H61: 0 | I61: 0 | J61: 0
A62: H Ramirez | B62: 1 | C62: 0 | D62: 0 | E62: 0 | F62: 0 | G62: 0 | H62: 0 | I62: 0 | J62: 0
A63: J Cantu | B63: 1 | C63: 0 | D63: 0 | E63: 0 | F63: 0 | G63: 0 | H63: 0 | I63: 0 | J63: 0
A64: W Helms | C64: 0 | D64: 0 | E64: 0 | F64: 0 | G64: 0 | H64: 0 | I64: 0 | J64: 0
A65: C Tracy | C65: 0 | D65: 0 | E65: 0 | F65: 0 | G65: 0 | H65: 0 | I65: 0 | J65: 0
A66: E Bonifacio | C66: 0 | D66: 0 | E66: 0 | F66: 0 | G66: 0 | H66: 0 | I66: 0 | J66: 0
A67: OUTFIELDERS | C67: 0 | D67: 0 | E67: 0 | F67: 0 | G67: 0 | H67: 0 | I67: 0 | J67: 0
A68: C Coghlan | B68: 1 | C68: 0 | D68: 0 | E68: 0 | F68: 0 | G68: 0 | H68: 0 | I68: 0 | J68: 0
A69: C Maybin | B69: 1 | C69: 0 | D69: 0 | E69: 0 | F69: 0 | G69: 0 | H69: 0 | I69: 0 | J69: 0
A70: M Stanton | C70: 0 | D70: 0 | E70: 0 | F70: 0 | G70: 0 | H70: 0 | I70: 0 | J70: 0
A71: L Morrison | B71: 1 | C71: 0 | D71: 0 | E71: 0 | F71: 0 | G71: 0 | H71: 0 | I71: 0 | J71: 0
A72: B Carroll | C72: 0 | D72: 0 | E72: 0 | F72: 0 | G72: 0 | H72: 0 | I72: 0 | J72: 0
B73: 99 | C73: 0 | D73: 0 | E73: 0 | F73: 0 | G73: 0 | H73: 0 | I73: 0 | J73: 0

Sheet Mets
A1: PITCHERS | C1: Effectiveness | D1: Stamina | E1: 1 | F1: SS | G1: J Reyes | I1: 1 | J1: J Santana | M1: 1 | N1: SS | O1: J Reyes
A2: J Santana | C2: 66 | D2: 1 | E2: 2 | F2: RF | G2: A Pagan | I2: 2 | J2: M Pelfrey | M2: 2 | N2: RF | O2: A Pagan
A3: M Pelfrey | C3: 48 | D3: 1 | E3: 3 | F3: 3B | G3: D Wright | I3: 3 | J3: R Dickey | M3: 3 | N3: 3B | O3: D Wright
A4: R Dickey | C4: 65 | D4: 1 | E4: 4 | F4: CF | G4: C Beltran | I4: 4 | J4: J Niese | M4: 4 | N4: CF | O4: C Beltran
A5: J Niese | C5: 40 | D5: 1 | E5: 5 | F5: LF | G5: J Bay | M5: 5 | N5: LF | O5: J Bay
A6: F Rodriguez | C6: 68 | D6: 3 | E6: 6 | F6: 1B | G6: I Davis | M6: 6 | N6: 1B | O6: I Davis
A7: H Takahashi | C7: 54 | D7: 2 | E7: 7 | F7: C | G7: R Barajas | M7: 7 | N7: C | O7: R Barajas
A8: P Feliciano | C8: 33 | D8: 2 | E8: 8 | F8: 2B | G8: L Castillo | M8: 8 | N8: 2B | O8: L Castillo
A9: E Dessens | C9: 62 | D9: 3 | E9: 9 | F9: P | G9: J Santana | M9: 9 | N9: P | O9: M Pelfrey | OP9: B Parnell
A10: M Acosta | C10: 63 | D10: 3
A11: R Valdes | C11: 39 | D11: 2 | N11: P | O11: M Pelfrey
A12: F Nieve | C12: 45 | D12: 3
A13: CATCHERS | C13: Contact | D13: Power | E13: Speed | F13: Def/Arm | G13: Bunt | P13: IP | Q13: H | R13: R | S13: K | T13: ERA | W13: BB
A14: R Barajas | C14: 30 | D14: 53 | E14: 30 | F14: 75 | G14: 55 | N14: Starter | O14: M Pelfrey | T14: =IFERROR(IF(O14="","",R14*9/P14),"INF") -> INF
A15: J Thole | C15: 47 | D15: 55 | E15: 45 | F15: 55 | G15: 50
A16: INFIELDERS
A17: I Davis | C17: 52 | D17: 58 | E17: 45 | F17: 20 | G17: 30
A18: L Castillo | C18: 35 | D18: 23 | E18: 70 | F18: 20 | G18: 75
A19: J Reyes | C19: 62 | D19: 56 | E19: 85 | F19: 20 | G19: 70
A20: D Wright | C20: 62 | D20: 71 | E20: 70 | F20: 20 | G20: 70
A21: R Tejada | C21: 23 | D21: 26 | E21: 65 | F21: 20 | G21: 60 | T21: =IF(O21="","",R21*9/P21) -> 
A22: A Cora | C22: 20 | D22: 26 | E22: 60 | F22: 20 | G22: 60
A23: OUTFIELDERS
A24: J Bay | C24: 49 | D24: 50 | E24: 65 | F24: 65 | G24: 55
A25: A Pagan | C25: 66 | D25: 55 | E25: 75 | F25: 75 | G25: 60
A26: J Francoeur | C26: 37 | D26: 44 | E26: 55 | F26: 80 | G26: 50
A27: C Beltran | C27: 47 | D27: 55 | E27: 70 | F27: 85 | G27: 70
A28: C Carter | C28: 51 | D28: 48 | E28: 55 | F28: 50 | G28: 40
A29: J Feliciano | C29: 33 | D29: 27 | E29: 50 | F29: 50 | G29: 35
C43: AB | D43: H | E43: RBI | F43: Run | G43: HR | H43: 3B | I43: 2B | J43: SB
A44: PITCHERS | C44: 0 | D44: 0 | E44: 0 | F44: 0 | G44: 0 | H44: 0 | I44: 0 | J44: 0
A45: J Santana | C45: 0 | D45: 0 | E45: 0 | F45: 0 | G45: 0 | H45: 0 | I45: 0 | J45: 0
A46: M Pelfrey | B46: 1 | C46: 0 | D46: 0 | E46: 0 | F46: 0 | G46: 0 | H46: 0 | I46: 0 | J46: 0
A47: R Dickey | C47: 0 | D47: 0 | E47: 0 | F47: 0 | G47: 0 | H47: 0 | I47: 0 | J47: 0
A48: J Niese | C48: 0 | D48: 0 | E48: 0 | F48: 0 | G48: 0 | H48: 0 | I48: 0 | J48: 0
A49: F Rodriguez | C49: 0 | D49: 0 | E49: 0 | F49: 0 | G49: 0 | H49: 0 | I49: 0 | J49: 0
A50: H Takahashi | C50: 0 | D50: 0 | E50: 0 | F50: 0 | G50: 0 | H50: 0 | I50: 0 | J50: 0
A51: P Feliciano | C51: 0 | D51: 0 | E51: 0 | F51: 0 | G51: 0 | H51: 0 | I51: 0 | J51: 0
A52: E Dessens | C52: 0 | D52: 0 | E52: 0 | F52: 0 | G52: 0 | H52: 0 | I52: 0 | J52: 0
A53: M Acosta | C53: 0 | D53: 0 | E53: 0 | F53: 0 | G53: 0 | H53: 0 | I53: 0 | J53: 0
A54: R Valdes | C54: 0 | D54: 0 | E54: 0 | F54: 0 | G54: 0 | H54: 0 | I54: 0 | J54: 0
A55: F Nieve | C55: 0 | D55: 0 | E55: 0 | F55: 0 | G55: 0 | H55: 0 | I55: 0 | J55: 0
A56: CATCHERS | C56: 0 | D56: 0 | E56: 0 | F56: 0 | G56: 0 | H56: 0 | I56: 0 | J56: 0
A57: R Barajas | B57: 1 | C57: 0 | D57: 0 | E57: 0 | F57: 0 | G57: 0 | H57: 0 | I57: 0 | J57: 0
A58: J Thole | C58: 0 | D58: 0 | E58: 0 | F58: 0 | G58: 0 | H58: 0 | I58: 0 | J58: 0
A59: INFIELDERS | C59: 0 | D59: 0 | E59: 0 | F59: 0 | G59: 0 | H59: 0 | I59: 0 | J59: 0
A60: I Davis | B60: 1 | C60: 0 | D60: 0 | E60: 0 | F60: 0 | G60: 0 | H60: 0 | I60: 0 | J60: 0
A61: L Castillo | B61: 1 | C61: 0 | D61: 0 | E61: 0 | F61: 0 | G61: 0 | H61: 0 | I61: 0 | J61: 0
A62: J Reyes | B62: 1 | C62: 0 | D62: 0 | E62: 0 | F62: 0 | G62: 0 | H62: 0 | I62: 0 | J62: 0
A63: D Wright | B63: 1 | C63: 0 | D63: 0 | E63: 0 | F63: 0 | G63: 0 | H63: 0 | I63: 0 | J63: 0
A64: R Tejada | C64: 0 | D64: 0 | E64: 0 | F64: 0 | G64: 0 | H64: 0 | I64: 0 | J64: 0
A65: A Cora | C65: 0 | D65: 0 | E65: 0 | F65: 0 | G65: 0 | H65: 0 | I65: 0 | J65: 0
A66: OUTFIELDERS | C66: 0 | D66: 0 | E66: 0 | F66: 0 | G66: 0 | H66: 0 | I66: 0 | J66: 0
A67: J Bay | B67: 1 | C67: 0 | D67: 0 | E67: 0 | F67: 0 | G67: 0 | H67: 0 | I67: 0 | J67: 0
A68: A Pagan | B68: 1 | C68: 0 | D68: 0 | E68: 0 | F68: 0 | G68: 0 | H68: 0 | I68: 0 | J68: 0
A69: J Francoeur | C69: 0 | D69: 0 | E69: 0 | F69: 0 | G69: 0 | H69: 0 | I69: 0 | J69: 0
A70: C Beltran | B70: 1 | C70: 0 | D70: 0 | E70: 0 | F70: 0 | G70: 0 | H70: 0 | I70: 0 | J70: 0
A71: C Carter | C71: 0 | D71: 0 | E71: 0 | F71: 0 | G71: 0 | H71: 0 | I71: 0 | J71: 0
A72: J Feliciano | C72: 0 | D72: 0 | E72: 0 | F72: 0 | G72: 0 | H72: 0 | I72: 0 | J72: 0
B73: 99 | C73: 0 | D73: 0 | E73: 0 | F73: 0 | G73: 0 | H73: 0 | I73: 0 | J73: 0

Sheet Nationals
A1: PITCHERS | C1: Effectiveness | D1: Stamina | E1: 1 | F1: CF | G1: N Morgan | I1: 1 | J1: L Hernandez | M1: 1 | N1: CF | O1: N Morgan
A2: L Hernandez | C2: 52 | D2: 1 | E2: 2 | F2: 2B | G2: C Guzman | I2: 2 | J2: J Lannan | M2: 2 | N2: 2B | O2: C Guzman
A3: J Lannan | C3: 31 | D3: 1 | E3: 3 | F3: 3B | G3: R Zimmerman | I3: 3 | J3: C Stammen | M3: 3 | N3: 3B | O3: R Zimmerman
A4: C Stammen | C4: 36 | D4: 1 | E4: 4 | F4: 1B | G4: A Dunn | I4: 4 | J4: L Atilano | M4: 4 | N4: 1B | O4: A Dunn
A5: L Atilano | C5: 37 | D5: 1 | E5: 5 | F5: LF | G5: J Willingham | M5: 5 | N5: LF | O5: J Willingham
A6: S Olsen | C6: 38 | D6: 2 | E6: 6 | F6: RF | G6: M Morse | M6: 6 | N6: RF | O6: M Morse
A7: M Capps | C7: 54 | D7: 3 | E7: 7 | F7: C | G7: I Rodriguez | M7: 7 | N7: C | O7: I Rodriguez
A8: T Clippard | C8: 63 | D8: 3 | E8: 8 | F8: SS | G8: I Desmond | M8: 8 | N8: SS | O8: I Desmond
A9: M Batista | C9: 52 | D9: 2 | E9: 9 | F9: P | G9: L Hernandez | M9: 9 | N9: P | O9: M Capps | OP9: T Clippard
A10: S Burnett | C10: 69 | D10: 3
A11: D Storen | C11: 58 | D11: 3 | N11: P | O11: M Capps
A12: S Strasburg | C12: 75 | D12: 2
A13: CATCHERS | C13: Contact | D13: Power | E13: Speed | F13: Def/Arm | G13: Bunt | P13: IP | Q13: H | R13: R | S13: K | T13: ERA | W13: BB
A14: I Rodriguez | C14: 53 | D14: 39 | E14: 35 | F14: 65 | G14: 50 | N14: Starter | O14: L Hernandez | P14: =ROUND(6.33333333333333,2) -> 6.33 | Q14: 7 | R14: 3 | S14: 3 | T14: =ROUND(4.2654028436019,2) -> 4.27 | W14: 2 | X14: 0 | Y14: 0 | Z14: 0
A15: W Nieves | C15: 17 | D15: 32 | E15: 35 | F15: 60 | G15: 60 | O15: D Storen | P15: =ROUND(0.666666666666667,2) -> 0.67 | Q15: 0 | R15: 0 | S15: 0 | T15: =ROUND(0,2) -> 0 | W15: 0 | X15: 0 | Y15: 0 | Z15: 0
A16: INFIELDERS | O16: T Clippard | P16: =ROUND(1,2) -> 1 | Q16: 0 | R16: 0 | S16: 1 | T16: =ROUND(0,2) -> 0 | U16: W | W16: 0 | X16: 0 | Y16: 0 | Z16: 0
A17: A Dunn | C17: 49 | D17: 77 | E17: 55 | F17: 20 | G17: 60 | O17: M Capps | P17: =ROUND(1,2) -> 1 | Q17: 1 | R17: 0 | S17: 0 | T17: =ROUND(0,2) -> 0 | V17: S | W17: 0 | X17: 0 | Y17: 0 | Z17: 0
A18: A Kennedy | C18: 43 | D18: 35 | E18: 65 | F18: 20 | G18: 70 | T18: =IFERROR(IF(O18="","",R18*9/P18),"INF") -> 
A19: I Desmond | C19: 54 | D19: 48 | E19: 60 | F19: 20 | G19: 60
A20: R Zimmerman | C20: 76 | D20: 72 | E20: 50 | F20: 20 | G20: 65
A21: C Guzman | C21: 62 | D21: 42 | E21: 70 | F21: 20 | G21: 65 | T21: =IF(O21="","",R21*9/P21) -> 
A22: A Gonzalez | C22: 42 | D22: 30 | E22: 60 | F22: 20 | G22: 80
A23: OUTFIELDERS
A24: J Willingham | C24: 54 | D24: 62 | E24: 60 | F24: 60 | G24: 50
A25: N Morgan | C25: 46 | D25: 33 | E25: 70 | F25: 70 | G25: 20
A26: M Morse | C26: 66 | D26: 74 | E26: 75 | F26: 40 | G26: 75
A27: R Bernadina | C27: 42 | D27: 47 | E27: 40 | F27: 65 | G27: 30
A28: W Harris | C28: 6 | D28: 42 | E28: 50 | F28: 60 | G28: 35
A29: J Maxwell | C29: -16 | D29: 28 | E29: 75 | F29: 60 | G29: 25
C43: AB | D43: H | E43: RBI | F43: Run | G43: HR | H43: 3B | I43: 2B | J43: SB
A44: PITCHERS | C44: 0 | D44: 0 | E44: 0 | F44: 0 | G44: 0 | H44: 0 | I44: 0 | J44: 0
A45: L Hernandez | B45: 1 | C45: 0 | D45: 0 | E45: 0 | F45: 1 | G45: 0 | H45: 0 | I45: 0 | J45: 0
A46: J Lannan | C46: 0 | D46: 0 | E46: 0 | F46: 0 | G46: 0 | H46: 0 | I46: 0 | J46: 0
A47: C Stammen | C47: 0 | D47: 0 | E47: 0 | F47: 0 | G47: 0 | H47: 0 | I47: 0 | J47: 0
A48: L Atilano | C48: 0 | D48: 0 | E48: 0 | F48: 0 | G48: 0 | H48: 0 | I48: 0 | J48: 0
A49: S Olsen | C49: 0 | D49: 0 | E49: 0 | F49: 0 | G49: 0 | H49: 0 | I49: 0 | J49: 0
A50: M Capps | B50: 1 | C50: 0 | D50: 0 | E50: 0 | F50: 0 | G50: 0 | H50: 0 | I50: 0 | J50: 0
A51: T Clippard | B51: 1 | C51: 0 | D51: 0 | E51: 0 | F51: 0 | G51: 0 | H51: 0 | I51: 0 | J51: 0
A52: M Batista | C52: 0 | D52: 0 | E52: 0 | F52: 0 | G52: 0 | H52: 0 | I52: 0 | J52: 0
A53: S Burnett | C53: 0 | D53: 0 | E53: 0 | F53: 0 | G53: 0 | H53: 0 | I53: 0 | J53: 0
A54: D Storen | B54: 1 | C54: 0 | D54: 0 | E54: 0 | F54: 0 | G54: 0 | H54: 0 | I54: 0 | J54: 0
A55: S Strasburg | C55: 0 | D55: 0 | E55: 0 | F55: 0 | G55: 0 | H55: 0 | I55: 0 | J55: 0
A56: CATCHERS | C56: 0 | D56: 0 | E56: 0 | F56: 0 | G56: 0 | H56: 0 | I56: 0 | J56: 0
A57: I Rodriguez | B57: 1 | C57: 3 | D57: 1 | E57: 0 | F57: 0 | G57: 0 | H57: 0 | I57: 0 | J57: 0
A58: W Nieves | C58: 0 | D58: 0 | E58: 0 | F58: 0 | G58: 0 | H58: 0 | I58: 0 | J58: 0
A59: INFIELDERS | C59: 0 | D59: 0 | E59: 0 | F59: 0 | G59: 0 | H59: 0 | I59: 0 | J59: 0
A60: A Dunn | B60: 1 | C60: 4 | D60: 2 | E60: 2 | F60: 1 | G60: 1 | H60: 0 | I60: 0 | J60: 0
A61: A Kennedy | B61: 1 | C61: 1 | D61: 0 | E61: 0 | F61: 0 | G61: 0 | H61: 0 | I61: 0 | J61: 0
A62: I Desmond | B62: 1 | C62: 3 | D62: 0 | E62: 0 | F62: 0 | G62: 0 | H62: 0 | I62: 0 | J62: 0
A63: R Zimmerman | B63: 1 | C63: 4 | D63: 0 | E63: 0 | F63: 0 | G63: 0 | H63: 0 | I63: 0 | J63: 0
A64: C Guzman | B64: 1 | C64: 4 | D64: 1 | E64: 1 | F64: 1 | G64: 0 | H64: 0 | I64: 1 | J64: 0
A65: A Gonzalez | C65: 0 | D65: 0 | E65: 0 | F65: 0 | G65: 0 | H65: 0 | I65: 0 | J65: 0
A66: OUTFIELDERS | C66: 0 | D66: 0 | E66: 0 | F66: 0 | G66: 0 | H66: 0 | I66: 0 | J66: 0
A67: J Willingham | B67: 1 | C67: 4 | D67: 1 | E67: 1 | F67: 1 | G67: 1 | H67: 0 | I67: 0 | J67: 0
A68: N Morgan | B68: 1 | C68: 4 | D68: 1 | E68: 0 | F68: 0 | G68: 0 | H68: 0 | I68: 1 | J68: 0
A69: M Morse | B69: 1 | C69: 4 | D69: 0 | E69: 0 | F69: 0 | G69: 0 | H69: 0 | I69: 0 | J69: 0
A70: R Bernadina | C70: 0 | D70: 0 | E70: 0 | F70: 0 | G70: 0 | H70: 0 | I70: 0 | J70: 0
A71: W Harris | C71: 0 | D71: 0 | E71: 0 | F71: 0 | G71: 0 | H71: 0 | I71: 0 | J71: 0
A72: J Maxwell | C72: 0 | D72: 0 | E72: 0 | F72: 0 | G72: 0 | H72: 0 | I72: 0 | J72: 0
B73: 99 | C73: 0 | D73: 0 | E73: 0 | F73: 0 | G73: 0 | H73: 0 | I73: 0 | J73: 0

Sheet Orioles
A1: PITCHERS | C1: Effectiveness | D1: Stamina | E1: 1 | F1: 2B | G1: B Roberts | I1: 1 | J1: J Guthrie | M1: 1 | N1: 2B | O1: B Roberts
A2: J Guthrie | C2: 67 | D2: 1 | E2: 2 | F2: LF | G2: F Pie | I2: 2 | J2: K Millwood | M2: 2 | N2: LF | O2: F Pie
A3: K Millwood | C3: 35 | D3: 1 | E3: 3 | F3: 1B | G3: T Wigginton | I3: 3 | J3: B Matusz | M3: 3 | N3: 1B | O3: T Wigginton
A4: B Matusz | C4: 51 | D4: 1 | E4: 4 | F4: DH | G4: L Scott | I4: 4 | J4: B Bergeson | M4: 4 | N4: DH | O4: L Scott
A5: B Bergeson | C5: 42 | D5: 1 | E5: 5 | F5: CF | G5: A Jones | M5: 5 | N5: CF | O5: A Jones
A6: A Simon | C6: 33 | D6: 3 | E6: 6 | F6: RF | G6: N Markakis | M6: 6 | N6: RF | O6: N Markakis
A7: M Albers | C7: 38 | D7: 2 | E7: 7 | F7: 3B | G7: M Tejada | M7: 7 | N7: 3B | O7: M Tejada
A8: M Hendrickson | C8: 32 | D8: 2 | E8: 8 | F8: C | G8: M Wieters | M8: 8 | N8: C | O8: M Wieters
A9: K Uehara | C9: 86 | D9: 3 | E9: 9 | F9: SS | G9: C Izturis | M9: 9 | N9: SS | O9: C Izturis
A10: W Ohman | C10: 27 | D10: 3
A11: J Arrieta | C11: 33 | D11: 2 | N11: P | O11: K Millwood
A12: C Tillman | C12: 34 | D12: 2
A13: CATCHERS | C13: Contact | D13: Power | E13: Speed | F13: Def/Arm | G13: Bunt | P13: IP | Q13: H | R13: R | S13: K | T13: ERA | W13: BB
A14: M Wieters | C14: 43 | D14: 45 | E14: 50 | F14: 70 | G14: 60 | N14: Starter | O14: K Millwood | T14: =IFERROR(IF(O14="","",R14*9/P14),"INF") -> INF
A15: C Tatum | C15: 61 | D15: 33 | E15: 40 | F15: 60 | G15: 55
A16: INFIELDERS
A17: T Wigginton | C17: 43 | D17: 53 | E17: 50 | F17: 35 | G17: 65
A18: B Roberts | C18: 60 | D18: 48 | E18: 70 | F18: 20 | G18: 75
A19: C Izturis | C19: 33 | D19: 24 | E19: 60 | F19: 20 | G19: 65
A20: M Tejada | C20: 54 | D20: 42 | E20: 45 | F20: 20 | G20: 30
A21: J Lugo | C21: 43 | D21: 26 | E21: 60 | F21: 20 | G21: 60 | T21: =IF(O21="","",R21*9/P21) -> 
A22: J Bell | C22: 24 | D22: 30 | E22: 60 | F22: 20 | G22: 55
A23: OUTFIELDERS
A24: F Pie | C24: 57 | D24: 53 | E24: 75 | F24: 70 | G24: 60
A25: A Jones | C25: 63 | D25: 58 | E25: 65 | F25: 75 | G25: 40
A26: N Markakis | C26: 70 | D26: 57 | E26: 55 | F26: 70 | G26: 45
A27: L Scott | C27: 63 | D27: 77 | E27: 40 | F27: 45 | G27: 40
A28: C Patterson | C28: 54 | D28: 51 | E28: 70 | F28: 60 | G28: 70
A29: N Reimold | C29: 20 | D29: 36 | E29: 50 | F29: 60 | G29: 50
C43: AB | D43: H | E43: RBI | F43: Run | G43: HR | H43: 3B | I43: 2B | J43: SB
A44: PITCHERS | C44: 0 | D44: 0 | E44: 0 | F44: 0 | G44: 0 | H44: 0 | I44: 0 | J44: 0
A45: J Guthrie | C45: 0 | D45: 0 | E45: 0 | F45: 0 | G45: 0 | H45: 0 | I45: 0 | J45: 0
A46: K Millwood | B46: 1 | C46: 0 | D46: 0 | E46: 0 | F46: 0 | G46: 0 | H46: 0 | I46: 0 | J46: 0
A47: B Matusz | C47: 0 | D47: 0 | E47: 0 | F47: 0 | G47: 0 | H47: 0 | I47: 0 | J47: 0
A48: B Bergeson | C48: 0 | D48: 0 | E48: 0 | F48: 0 | G48: 0 | H48: 0 | I48: 0 | J48: 0
A49: A Simon | C49: 0 | D49: 0 | E49: 0 | F49: 0 | G49: 0 | H49: 0 | I49: 0 | J49: 0
A50: M Albers | C50: 0 | D50: 0 | E50: 0 | F50: 0 | G50: 0 | H50: 0 | I50: 0 | J50: 0
A51: M Hendrickson | C51: 0 | D51: 0 | E51: 0 | F51: 0 | G51: 0 | H51: 0 | I51: 0 | J51: 0
A52: K Uehara | C52: 0 | D52: 0 | E52: 0 | F52: 0 | G52: 0 | H52: 0 | I52: 0 | J52: 0
A53: W Ohman | C53: 0 | D53: 0 | E53: 0 | F53: 0 | G53: 0 | H53: 0 | I53: 0 | J53: 0
A54: J Arrieta | C54: 0 | D54: 0 | E54: 0 | F54: 0 | G54: 0 | H54: 0 | I54: 0 | J54: 0
A55: C Tillman | C55: 0 | D55: 0 | E55: 0 | F55: 0 | G55: 0 | H55: 0 | I55: 0 | J55: 0
A56: CATCHERS | C56: 0 | D56: 0 | E56: 0 | F56: 0 | G56: 0 | H56: 0 | I56: 0 | J56: 0
A57: M Wieters | B57: 1 | C57: 0 | D57: 0 | E57: 0 | F57: 0 | G57: 0 | H57: 0 | I57: 0 | J57: 0
A58: C Tatum | C58: 0 | D58: 0 | E58: 0 | F58: 0 | G58: 0 | H58: 0 | I58: 0 | J58: 0
A59: INFIELDERS | C59: 0 | D59: 0 | E59: 0 | F59: 0 | G59: 0 | H59: 0 | I59: 0 | J59: 0
A60: T Wigginton | B60: 1 | C60: 0 | D60: 0 | E60: 0 | F60: 0 | G60: 0 | H60: 0 | I60: 0 | J60: 0
A61: B Roberts | B61: 1 | C61: 0 | D61: 0 | E61: 0 | F61: 0 | G61: 0 | H61: 0 | I61: 0 | J61: 0
A62: C Izturis | B62: 1 | C62: 0 | D62: 0 | E62: 0 | F62: 0 | G62: 0 | H62: 0 | I62: 0 | J62: 0
A63: M Tejada | B63: 1 | C63: 0 | D63: 0 | E63: 0 | F63: 0 | G63: 0 | H63: 0 | I63: 0 | J63: 0
A64: J Lugo | C64: 0 | D64: 0 | E64: 0 | F64: 0 | G64: 0 | H64: 0 | I64: 0 | J64: 0
A65: J Bell | C65: 0 | D65: 0 | E65: 0 | F65: 0 | G65: 0 | H65: 0 | I65: 0 | J65: 0
A66: OUTFIELDERS | C66: 0 | D66: 0 | E66: 0 | F66: 0 | G66: 0 | H66: 0 | I66: 0 | J66: 0
A67: F Pie | B67: 1 | C67: 0 | D67: 0 | E67: 0 | F67: 0 | G67: 0 | H67: 0 | I67: 0 | J67: 0
A68: A Jones | B68: 1 | C68: 0 | D68: 0 | E68: 0 | F68: 0 | G68: 0 | H68: 0 | I68: 0 | J68: 0
A69: N Markakis | B69: 1 | C69: 0 | D69: 0 | E69: 0 | F69: 0 | G69: 0 | H69: 0 | I69: 0 | J69: 0
A70: L Scott | B70: 1 | C70: 0 | D70: 0 | E70: 0 | F70: 0 | G70: 0 | H70: 0 | I70: 0 | J70: 0
A71: C Patterson | C71: 0 | D71: 0 | E71: 0 | F71: 0 | G71: 0 | H71: 0 | I71: 0 | J71: 0
A72: N Reimold | C72: 0 | D72: 0 | E72: 0 | F72: 0 | G72: 0 | H72: 0 | I72: 0 | J72: 0
B73: 99 | C73: 0 | D73: 0 | E73: 0 | F73: 0 | G73: 0 | H73: 0 | I73: 0 | J73: 0

Sheet Padres
A1: PITCHERS | C1: Effectiveness | D1: Stamina | E1: 1 | F1: 2B | G1: D Eckstein | I1: 1 | J1: M Latos | M1: 1 | N1: 2B | O1: D Eckstein
A2: M Latos | C2: 74 | D2: 1 | E2: 2 | F2: 3B | G2: C Headley | I2: 2 | J2: C Richard | M2: 2 | N2: 3B | O2: C Headley
A3: C Richard | C3: 45 | D3: 1 | E3: 3 | F3: 1B | G3: A Gonzalez | I3: 3 | J3: J Garland | M3: 3 | N3: 1B | O3: A Gonzalez
A4: J Garland | C4: 53 | D4: 1 | E4: 4 | F4: LF | G4: S Hairston | I4: 4 | J4: W LeBlanc | M4: 4 | N4: LF | O4: S Hairston
A5: W LeBlanc | C5: 43 | D5: 1 | E5: 5 | F5: C | G5: Y Torrealba | M5: 5 | N5: C | O5: Y Torrealba
A6: H Bell | C6: 64 | D6: 3 | E6: 6 | F6: RF | G6: W Venable | M6: 6 | N6: RF | O6: W Venable
A7: L Gregerson | C7: 97 | D7: 3 | E7: 7 | F7: SS | G7: J Hairston | M7: 7 | N7: SS | O7: J Hairston
A8: E Mujica | C8: 88 | D8: 2 | E8: 8 | F8: CF | G8: T Gwynn | M8: 8 | N8: CF | O8: T Gwynn
A9: M Adams | C9: 76 | D9: 3 | E9: 9 | F9: P | G9: M Latos | M9: 9 | N9: P | O9: J Garland
A10: J Thatcher | C10: 95 | D10: 3
A11: K Correia | C11: 37 | D11: 2 | N11: P | O11: J Garland
A12: T Stauffer | C12: 75 | D12: 2
A13: CATCHERS | C13: Contact | D13: Power | E13: Speed | F13: Def/Arm | G13: Bunt | P13: IP | Q13: H | R13: R | S13: K | T13: ERA | W13: BB
A14: Y Torrealba | C14: 56 | D14: 46 | E14: 55 | F14: 70 | G14: 65 | N14: Starter | O14: J Garland | T14: =IFERROR(IF(O14="","",R14*9/P14),"INF") -> INF
A15: N Hundley | C15: 43 | D15: 54 | E15: 50 | F15: 60 | G15: 50
A16: INFIELDERS
A17: A Gonzalez | C17: 71 | D17: 72 | E17: 55 | F17: 20 | G17: 25
A18: D Eckstein | C18: 53 | D18: 35 | E18: 70 | F18: 20 | G18: 70
A19: M Tejada | C19: 54 | D19: 53 | E19: 60 | F19: 20 | G19: 45
A20: E Cabrera | C20: 20 | D20: 26 | E20: 70 | F20: 20 | G20: 60
A21: C Headley | C21: 52 | D21: 45 | E21: 55 | F21: 20 | G21: 55 | T21: =IF(O21="","",R21*9/P21) -> 
A22: J Hairston | C22: 21 | D22: 39 | E22: 65 | F22: 20 | G22: 65
A23: OUTFIELDERS
A24: S Hairston | C24: 21 | D24: 39 | E24: 65 | F24: 60 | G24: 60
A25: T Gwynn | C25: 18 | D25: 27 | E25: 65 | F25: 65 | G25: 60
A26: W Venable | C26: 41 | D26: 52 | E26: 75 | F26: 70 | G26: 40
A27: C Denorfia | C27: 56 | D27: 57 | E27: 60 | F27: 50 | G27: 45
A28: R Ludwick | C28: 22 | D28: 36 | E28: 60 | F28: 60 | G28: 45
A29: M Stairs | C29: 34 | D29: 65 | E29: 30 | F29: 30 | G29: 20
C43: AB | D43: H | E43: RBI | F43: Run | G43: HR | H43: 3B | I43: 2B | J43: SB
A44: PITCHERS | C44: 0 | D44: 0 | E44: 0 | F44: 0 | G44: 0 | H44: 0 | I44: 0 | J44: 0
A45: M Latos | C45: 0 | D45: 0 | E45: 0 | F45: 0 | G45: 0 | H45: 0 | I45: 0 | J45: 0
A46: C Richard | C46: 0 | D46: 0 | E46: 0 | F46: 0 | G46: 0 | H46: 0 | I46: 0 | J46: 0
A47: J Garland | B47: 1 | C47: 0 | D47: 0 | E47: 0 | F47: 0 | G47: 0 | H47: 0 | I47: 0 | J47: 0
A48: W LeBlanc | C48: 0 | D48: 0 | E48: 0 | F48: 0 | G48: 0 | H48: 0 | I48: 0 | J48: 0
A49: H Bell | C49: 0 | D49: 0 | E49: 0 | F49: 0 | G49: 0 | H49: 0 | I49: 0 | J49: 0
A50: L Gregerson | C50: 0 | D50: 0 | E50: 0 | F50: 0 | G50: 0 | H50: 0 | I50: 0 | J50: 0
A51: E Mujica | C51: 0 | D51: 0 | E51: 0 | F51: 0 | G51: 0 | H51: 0 | I51: 0 | J51: 0
A52: M Adams | C52: 0 | D52: 0 | E52: 0 | F52: 0 | G52: 0 | H52: 0 | I52: 0 | J52: 0
A53: J Thatcher | C53: 0 | D53: 0 | E53: 0 | F53: 0 | G53: 0 | H53: 0 | I53: 0 | J53: 0
A54: K Correia | C54: 0 | D54: 0 | E54: 0 | F54: 0 | G54: 0 | H54: 0 | I54: 0 | J54: 0
A55: T Stauffer | C55: 0 | D55: 0 | E55: 0 | F55: 0 | G55: 0 | H55: 0 | I55: 0 | J55: 0
A56: CATCHERS | C56: 0 | D56: 0 | E56: 0 | F56: 0 | G56: 0 | H56: 0 | I56: 0 | J56: 0
A57: Y Torrealba | B57: 1 | C57: 0 | D57: 0 | E57: 0 | F57: 0 | G57: 0 | H57: 0 | I57: 0 | J57: 0
A58: N Hundley | C58: 0 | D58: 0 | E58: 0 | F58: 0 | G58: 0 | H58: 0 | I58: 0 | J58: 0
A59: INFIELDERS | C59: 0 | D59: 0 | E59: 0 | F59: 0 | G59: 0 | H59: 0 | I59: 0 | J59: 0
A60: A Gonzalez | B60: 1 | C60: 0 | D60: 0 | E60: 0 | F60: 0 | G60: 0 | H60: 0 | I60: 0 | J60: 0
A61: D Eckstein | B61: 1 | C61: 0 | D61: 0 | E61: 0 | F61: 0 | G61: 0 | H61: 0 | I61: 0 | J61: 0
A62: M Tejada | C62: 0 | D62: 0 | E62: 0 | F62: 0 | G62: 0 | H62: 0 | I62: 0 | J62: 0
A63: E Cabrera | C63: 0 | D63: 0 | E63: 0 | F63: 0 | G63: 0 | H63: 0 | I63: 0 | J63: 0
A64: C Headley | B64: 1 | C64: 0 | D64: 0 | E64: 0 | F64: 0 | G64: 0 | H64: 0 | I64: 0 | J64: 0
A65: J Hairston | B65: 1 | C65: 0 | D65: 0 | E65: 0 | F65: 0 | G65: 0 | H65: 0 | I65: 0 | J65: 0
A66: OUTFIELDERS | C66: 0 | D66: 0 | E66: 0 | F66: 0 | G66: 0 | H66: 0 | I66: 0 | J66: 0
A67: S Hairston | B67: 1 | C67: 0 | D67: 0 | E67: 0 | F67: 0 | G67: 0 | H67: 0 | I67: 0 | J67: 0
A68: T Gwynn | B68: 1 | C68: 0 | D68: 0 | E68: 0 | F68: 0 | G68: 0 | H68: 0 | I68: 0 | J68: 0
A69: W Venable | B69: 1 | C69: 0 | D69: 0 | E69: 0 | F69: 0 | G69: 0 | H69: 0 | I69: 0 | J69: 0
A70: C Denorfia | C70: 0 | D70: 0 | E70: 0 | F70: 0 | G70: 0 | H70: 0 | I70: 0 | J70: 0
A71: R Ludwick | C71: 0 | D71: 0 | E71: 0 | F71: 0 | G71: 0 | H71: 0 | I71: 0 | J71: 0
A72: M Stairs | C72: 0 | D72: 0 | E72: 0 | F72: 0 | G72: 0 | H72: 0 | I72: 0 | J72: 0
B73: 99 | C73: 0 | D73: 0 | E73: 0 | F73: 0 | G73: 0 | H73: 0 | I73: 0 | J73: 0

Sheet Phillies
A1: PITCHERS | C1: Effectiveness | D1: Stamina | E1: 1 | F1: CF | G1: S Victorino | I1: 1 | J1: R Halladay | M1: 1 | N1: CF | O1: S Victorino
A2: R Halladay | C2: 78 | D2: 1 | E2: 2 | F2: 3B | G2: P Polanco | I2: 2 | J2: C Hamels | M2: 2 | N2: 3B | O2: P Polanco
A3: C Hamels | C3: 66 | D3: 1 | E3: 3 | F3: 2B | G3: C Utley | I3: 3 | J3: K Kendrick | M3: 3 | N3: 2B | O3: C Utley
A4: K Kendrick | C4: 48 | D4: 1 | E4: 4 | F4: 1B | G4: R Howard | I4: 4 | J4: J Moyer | M4: 4 | N4: 1B | O4: R Howard
A5: J Moyer | C5: 73 | D5: 1 | E5: 5 | F5: LF | G5: J Werth | M5: 5 | N5: LF | O5: J Werth
A6: B Lidge | C6: 61 | D6: 3 | E6: 6 | F6: C | G6: C Ruiz | M6: 6 | N6: C | O6: C Ruiz
A7: C Durbin | C7: 54 | D7: 3 | E7: 7 | F7: RF | G7: R Ibanez | M7: 7 | N7: RF | O7: R Ibanez
A8: J Contreras | C8: 62 | D8: 2 | E8: 8 | F8: SS | G8: J Rollins | M8: 8 | N8: SS | O8: J Rollins
A9: R Madson | C9: 78 | D9: 3 | E9: 9 | F9: P | G9: R Halladay | M9: 9 | N9: P | O9: K Kendrick
A10: J Romero | C10: 26 | D10: 3
A11: J Blanton | C11: 44 | D11: 2 | N11: P | O11: K Kendrick
A12: D Herndon | C12: 27 | D12: 2
A13: CATCHERS | C13: Contact | D13: Power | E13: Speed | F13: Def/Arm | G13: Bunt | P13: IP | Q13: H | R13: R | S13: K | T13: ERA | W13: BB
A14: C Ruiz | C14: 73 | D14: 59 | E14: 60 | F14: 70 | G14: 70 | N14: Starter | O14: K Kendrick | T14: =IFERROR(IF(O14="","",R14*9/P14),"INF") -> INF
A15: B Scneider | C15: 38 | D15: 47 | E15: 50 | F15: 60 | G15: 40
A16: INFIELDERS
A17: R Howard | C17: 58 | D17: 71 | E17: 55 | F17: 20 | G17: 30
A18: C Utley | C18: 58 | D18: 59 | E18: 70 | F18: 20 | G18: 65
A19: J Rollins | C19: 40 | D19: 45 | E19: 70 | F19: 20 | G19: 75
A20: P Polanco | C20: 71 | D20: 47 | E20: 65 | F20: 20 | G20: 75
A21: W Valdez | C21: 48 | D21: 42 | E21: 75 | F21: 20 | G21: 55 | T21: =IF(O21="","",R21*9/P21) -> 
A22: G Dobbs | C22: 13 | D22: 36 | E22: 40 | F22: 20 | G22: 60
A23: OUTFIELDERS
A24: R Ibanez | C24: 58 | D24: 59 | E24: 50 | F24: 55 | G24: 55
A25: S Victorino | C25: 49 | D25: 56 | E25: 80 | F25: 75 | G25: 75
A26: J Werth | C26: 70 | D26: 76 | E26: 65 | F26: 70 | G26: 45
A27: B Francisco | C27: 54 | D27: 58 | E27: 60 | F27: 60 | G27: 50
A28: R Gload | C28: 61 | D28: 67 | E28: 55 | F28: 55 | G28: 60
A29: D Brown | C29: 21 | D29: 41 | E29: 70 | F29: 60 | G29: 60
C43: AB | D43: H | E43: RBI | F43: Run | G43: HR | H43: 3B | I43: 2B | J43: SB
A44: PITCHERS | C44: 0 | D44: 0 | E44: 0 | F44: 0 | G44: 0 | H44: 0 | I44: 0 | J44: 0
A45: R Halladay | C45: 0 | D45: 0 | E45: 0 | F45: 0 | G45: 0 | H45: 0 | I45: 0 | J45: 0
A46: C Hamels | C46: 0 | D46: 0 | E46: 0 | F46: 0 | G46: 0 | H46: 0 | I46: 0 | J46: 0
A47: K Kendrick | B47: 1 | C47: 0 | D47: 0 | E47: 0 | F47: 0 | G47: 0 | H47: 0 | I47: 0 | J47: 0
A48: J Moyer | C48: 0 | D48: 0 | E48: 0 | F48: 0 | G48: 0 | H48: 0 | I48: 0 | J48: 0
A49: B Lidge | C49: 0 | D49: 0 | E49: 0 | F49: 0 | G49: 0 | H49: 0 | I49: 0 | J49: 0
A50: C Durbin | C50: 0 | D50: 0 | E50: 0 | F50: 0 | G50: 0 | H50: 0 | I50: 0 | J50: 0
A51: J Contreras | C51: 0 | D51: 0 | E51: 0 | F51: 0 | G51: 0 | H51: 0 | I51: 0 | J51: 0
A52: R Madson | C52: 0 | D52: 0 | E52: 0 | F52: 0 | G52: 0 | H52: 0 | I52: 0 | J52: 0
A53: J Romero | C53: 0 | D53: 0 | E53: 0 | F53: 0 | G53: 0 | H53: 0 | I53: 0 | J53: 0
A54: J Blanton | C54: 0 | D54: 0 | E54: 0 | F54: 0 | G54: 0 | H54: 0 | I54: 0 | J54: 0
A55: D Herndon | C55: 0 | D55: 0 | E55: 0 | F55: 0 | G55: 0 | H55: 0 | I55: 0 | J55: 0
A56: CATCHERS | C56: 0 | D56: 0 | E56: 0 | F56: 0 | G56: 0 | H56: 0 | I56: 0 | J56: 0
A57: C Ruiz | B57: 1 | C57: 0 | D57: 0 | E57: 0 | F57: 0 | G57: 0 | H57: 0 | I57: 0 | J57: 0
A58: B Scneider | C58: 0 | D58: 0 | E58: 0 | F58: 0 | G58: 0 | H58: 0 | I58: 0 | J58: 0
A59: INFIELDERS | C59: 0 | D59: 0 | E59: 0 | F59: 0 | G59: 0 | H59: 0 | I59: 0 | J59: 0
A60: R Howard | B60: 1 | C60: 0 | D60: 0 | E60: 0 | F60: 0 | G60: 0 | H60: 0 | I60: 0 | J60: 0
A61: C Utley | B61: 1 | C61: 0 | D61: 0 | E61: 0 | F61: 0 | G61: 0 | H61: 0 | I61: 0 | J61: 0
A62: J Rollins | B62: 1 | C62: 0 | D62: 0 | E62: 0 | F62: 0 | G62: 0 | H62: 0 | I62: 0 | J62: 0
A63: P Polanco | B63: 1 | C63: 0 | D63: 0 | E63: 0 | F63: 0 | G63: 0 | H63: 0 | I63: 0 | J63: 0
A64: W Valdez | C64: 0 | D64: 0 | E64: 0 | F64: 0 | G64: 0 | H64: 0 | I64: 0 | J64: 0
A65: G Dobbs | C65: 0 | D65: 0 | E65: 0 | F65: 0 | G65: 0 | H65: 0 | I65: 0 | J65: 0
A66: OUTFIELDERS | C66: 0 | D66: 0 | E66: 0 | F66: 0 | G66: 0 | H66: 0 | I66: 0 | J66: 0
A67: R Ibanez | B67: 1 | C67: 0 | D67: 0 | E67: 0 | F67: 0 | G67: 0 | H67: 0 | I67: 0 | J67: 0
A68: S Victorino | B68: 1 | C68: 0 | D68: 0 | E68: 0 | F68: 0 | G68: 0 | H68: 0 | I68: 0 | J68: 0
A69: J Werth | B69: 1 | C69: 0 | D69: 0 | E69: 0 | F69: 0 | G69: 0 | H69: 0 | I69: 0 | J69: 0
A70: B Francisco | C70: 0 | D70: 0 | E70: 0 | F70: 0 | G70: 0 | H70: 0 | I70: 0 | J70: 0
A71: R Gload | C71: 0 | D71: 0 | E71: 0 | F71: 0 | G71: 0 | H71: 0 | I71: 0 | J71: 0
A72: D Brown | C72: 0 | D72: 0 | E72: 0 | F72: 0 | G72: 0 | H72: 0 | I72: 0 | J72: 0
B73: 99 | C73: 0 | D73: 0 | E73: 0 | F73: 0 | G73: 0 | H73: 0 | I73: 0 | J73: 0

Sheet Pirates
A1: PITCHERS | C1: Effectiveness | D1: Stamina | E1: 1 | F1: CF | G1: A McCutchen | I1: 1 | J1: P Maholm | M1: 1 | N1: CF | O1: A McCutchen
A2: P Maholm | C2: 30 | D2: 1 | E2: 2 | F2: LF | G2: J Tabata | I2: 2 | J2: Z Duke | M2: 2 | N2: LF | O2: J Tabata
A3: Z Duke | C3: 22 | D3: 1 | E3: 3 | F3: 2B | G3: N Walker | I3: 3 | J3: J Karstens | M3: 3 | N3: 2B | O3: N Walker
A4: J Karstens | C4: 45 | D4: 1 | E4: 4 | F4: 1B | G4: G Jones | I4: 4 | J4: R Ohlendorf | M4: 4 | N4: 1B | O4: G Jones
A5: R Ohlendorf | C5: 47 | D5: 1 | E5: 5 | F5: C | G5: R Doumit | M5: 5 | N5: C | O5: R Doumit
A6: O Dotel | C6: 55 | D6: 3 | E6: 6 | F6: 3B | G6: P Alvarez | M6: 6 | N6: 3B | O6: P Alvarez
A7: E Meek | C7: 77 | D7: 3 | E7: 7 | F7: RF | G7: L Milledge | M7: 7 | N7: RF | O7: L Milledge
A8: J Hanrahan | C8: 63 | D8: 3 | E8: 8 | F8: SS | G8: R Cedeno | M8: 8 | N8: SS | O8: R Cedeno
A9: D Carrasco | C9: 55 | D9: 2 | E9: 9 | F9: P | G9: P Maholm | M9: 9 | N9: P | O9: Z Duke | OP9: J Davis
A10: J Lopez | C10: 39 | D10: 3
A11: C Morton | C11: 15 | D11: 2 | N11: P | O11: Z Duke
A12: B Burres | C12: 34 | D12: 2
A13: CATCHERS | C13: Contact | D13: Power | E13: Speed | F13: Def/Arm | G13: Bunt | P13: IP | Q13: H | R13: R | S13: K | T13: ERA | W13: BB
A14: R Doumit | C14: 44 | D14: 51 | E14: 35 | F14: 65 | G14: 40 | N14: Starter | O14: Z Duke | T14: =IFERROR(IF(O14="","",R14*9/P14),"INF") -> INF | Y14: 0 | Z14: 0
A15: C Snyder | C15: -2 | D15: 30 | E15: 40 | F15: 60 | G15: 60 | Y15: 0 | Z15: 0
A16: INFIELDERS | Y16: 0 | Z16: 0
A17: G Jones | C17: 42 | D17: 53 | E17: 25 | F17: 20 | G17: 45
A18: N Walker | C18: 70 | D18: 62 | E18: 35 | F18: 20 | G18: 60
A19: R Cedeno | C19: 47 | D19: 46 | E19: 60 | F19: 20 | G19: 65
A20: P Alvarez | C20: 47 | D20: 62 | E20: 25 | F20: 20 | G20: 15
A21: A LaRoche | C21: 19 | D21: 27 | E21: 60 | F21: 20 | G21: 55 | T21: =IF(O21="","",R21*9/P21) -> 
A22: A Iwamura | C22: 6 | D22: 23 | E22: 55 | F22: 20 | G22: 65
A23: B Crosby | C23: 29 | D23: 29 | E23: 70 | F23: 20 | G23: 80
A24: OUTFIELDERS
A25: J Tabata | C25: 71 | D25: 50 | E25: 75 | F25: 70 | G25: 60
A26: A McCutchen | C26: 64 | D26: 60 | E26: 60 | F26: 60 | G26: 70
A27: L Milledge | C27: 59 | D27: 46 | E27: 70 | F27: 50 | G27: 60
A28: D Young | C28: 36 | D28: 53 | E28: 55 | F28: 60 | G28: 40
A29: R Church | C29: 6 | D29: 23 | E29: 60 | F29: 65 | G29: 60
C43: AB | D43: H | E43: RBI | F43: Run | G43: HR | H43: 3B | I43: 2B | J43: SB
A44: PITCHERS | C44: 0 | D44: 0 | E44: 0 | F44: 0 | G44: 0 | H44: 0 | I44: 0 | J44: 0
A45: P Maholm | C45: 0 | D45: 0 | E45: 0 | F45: 0 | G45: 0 | H45: 0 | I45: 0 | J45: 0
A46: Z Duke | B46: 1 | C46: 0 | D46: 0 | E46: 0 | F46: 0 | G46: 0 | H46: 0 | I46: 0 | J46: 0
A47: J Karstens | C47: 0 | D47: 0 | E47: 0 | F47: 0 | G47: 0 | H47: 0 | I47: 0 | J47: 0
A48: R Ohlendorf | C48: 0 | D48: 0 | E48: 0 | F48: 0 | G48: 0 | H48: 0 | I48: 0 | J48: 0
A49: O Dotel | C49: 0 | D49: 0 | E49: 0 | F49: 0 | G49: 0 | H49: 0 | I49: 0 | J49: 0
A50: E Meek | C50: 0 | D50: 0 | E50: 0 | F50: 0 | G50: 0 | H50: 0 | I50: 0 | J50: 0
A51: J Hanrahan | C51: 0 | D51: 0 | E51: 0 | F51: 0 | G51: 0 | H51: 0 | I51: 0 | J51: 0
A52: D Carrasco | C52: 0 | D52: 0 | E52: 0 | F52: 0 | G52: 0 | H52: 0 | I52: 0 | J52: 0
A53: J Lopez | C53: 0 | D53: 0 | E53: 0 | F53: 0 | G53: 0 | H53: 0 | I53: 0 | J53: 0
A54: C Morton | C54: 0 | D54: 0 | E54: 0 | F54: 0 | G54: 0 | H54: 0 | I54: 0 | J54: 0
A55: B Burres | C55: 0 | D55: 0 | E55: 0 | F55: 0 | G55: 0 | H55: 0 | I55: 0 | J55: 0
A56: CATCHERS | C56: 0 | D56: 0 | E56: 0 | F56: 0 | G56: 0 | H56: 0 | I56: 0 | J56: 0
A57: R Doumit | B57: 1 | C57: 0 | D57: 0 | E57: 0 | F57: 0 | G57: 0 | H57: 0 | I57: 0 | J57: 0
A58: C Snyder | C58: 0 | D58: 0 | E58: 0 | F58: 0 | G58: 0 | H58: 0 | I58: 0 | J58: 0
A59: INFIELDERS | C59: 0 | D59: 0 | E59: 0 | F59: 0 | G59: 0 | H59: 0 | I59: 0 | J59: 0
A60: G Jones | B60: 1 | C60: 0 | D60: 0 | E60: 0 | F60: 0 | G60: 0 | H60: 0 | I60: 0 | J60: 0
A61: N Walker | B61: 1 | C61: 0 | D61: 0 | E61: 0 | F61: 0 | G61: 0 | H61: 0 | I61: 0 | J61: 0
A62: R Cedeno | B62: 1 | C62: 0 | D62: 0 | E62: 0 | F62: 0 | G62: 0 | H62: 0 | I62: 0 | J62: 0
A63: P Alvarez | B63: 1 | C63: 0 | D63: 0 | E63: 0 | F63: 0 | G63: 0 | H63: 0 | I63: 0 | J63: 0
A64: A LaRoche | C64: 0 | D64: 0 | E64: 0 | F64: 0 | G64: 0 | H64: 0 | I64: 0 | J64: 0
A65: A Iwamura | C65: 0 | D65: 0 | E65: 0 | F65: 0 | G65: 0 | H65: 0 | I65: 0 | J65: 0
A66: B Crosby | C66: 0 | D66: 0 | E66: 0 | F66: 0 | G66: 0 | H66: 0 | I66: 0 | J66: 0
A67: OUTFIELDERS | C67: 0 | D67: 0 | E67: 0 | F67: 0 | G67: 0 | H67: 0 | I67: 0 | J67: 0
A68: J Tabata | B68: 1 | C68: 0 | D68: 0 | E68: 0 | F68: 0 | G68: 0 | H68: 0 | I68: 0 | J68: 0
A69: A McCutchen | B69: 1 | C69: 0 | D69: 0 | E69: 0 | F69: 0 | G69: 0 | H69: 0 | I69: 0 | J69: 0
A70: L Milledge | B70: 1 | C70: 0 | D70: 0 | E70: 0 | F70: 0 | G70: 0 | H70: 0 | I70: 0 | J70: 0
A71: D Young | C71: 0 | D71: 0 | E71: 0 | F71: 0 | G71: 0 | H71: 0 | I71: 0 | J71: 0
A72: R Church | C72: 0 | D72: 0 | E72: 0 | F72: 0 | G72: 0 | H72: 0 | I72: 0 | J72: 0
B73: 99 | C73: 0 | D73: 0 | E73: 0 | F73: 0 | G73: 0 | H73: 0 | I73: 0 | J73: 0

Sheet Rangers
A1: PITCHERS | C1: Effectiveness | D1: Stamina | E1: 1 | F1: SS | G1: E Andrus | I1: 1 | J1: C Lee | M1: 1 | N1: SS | O1: E Andrus
A2: C Lee | C2: 77 | D2: 1 | E2: 2 | F2: 3B | G2: M Young | I2: 2 | J2: C Wilson | M2: 2 | N2: 3B | O2: M Young
A3: C Wilson | C3: 60 | D3: 1 | E3: 3 | F3: CF | G3: J Hamilton | I3: 3 | J3: C Lewis | M3: 3 | N3: CF | O3: J Hamilton
A4: C Lewis | C4: 65 | D4: 1 | E4: 4 | F4: DH | G4: V Guerrero | I4: 4 | J4: T Hunter | M4: 4 | N4: DH | O4: V Guerrero
A5: T Hunter | C5: 60 | D5: 1 | E5: 5 | F5: LF | G5: N Cruz | M5: 5 | N5: LF | O5: N Cruz
A6: N Feliz | C6: 93 | D6: 3 | E6: 6 | F6: 2B | G6: I Kinsler | M6: 6 | N6: 2B | O6: I Kinsler
A7: D O'Day | C7: 92 | D7: 3 | E7: 7 | F7: RF | G7: D Murphy | M7: 7 | N7: RF | O7: D Murphy
A8: D Oliver | C8: 72 | D8: 3 | E8: 8 | F8: C | G8: B Molina | M8: 8 | N8: C | O8: B Molina
A9: F Francisco | C9: 57 | D9: 3 | E9: 9 | F9: 1B | G9: M Moreland | M9: 9 | N9: 1B | O9: M Moreland
A10: A Ogando | C10: 70 | D10: 3
A11: M Harrison | C11: 35 | D11: 2 | N11: P | O11: C Lee
A12: S Feldman | C12: 27 | D12: 2
A13: CATCHERS | C13: Contact | D13: Power | E13: Speed | F13: Def/Arm | G13: Bunt | P13: IP | Q13: H | R13: R | S13: K | T13: ERA | W13: BB
A14: B Molina | C14: 38 | D14: 34 | E14: 25 | F14: 75 | G14: 60 | N14: Starter | O14: C Lee | T14: =IFERROR(IF(O14="","",R14*9/P14),"INF") -> INF
A15: M Treanor | C15: 22 | D15: 32 | E15: 45 | F15: 60 | G15: 55
A16: INFIELDERS
A17: M Moreland | C17: 47 | D17: 64 | E17: 40 | F17: 20 | G17: 45
A18: I Kinsler | C18: 64 | D18: 52 | E18: 70 | F18: 20 | G18: 65
A19: E Andrus | C19: 52 | D19: 30 | E19: 80 | F19: 20 | G19: 65
A20: M Young | C20: 63 | D20: 59 | E20: 65 | F20: 20 | G20: 70
A21: A Blanco | C21: 59 | D21: 40 | E21: 65 | F21: 20 | G21: 65 | T21: =IF(O21="","",R21*9/P21) -> 
A22: J Smoak | C22: 21 | D22: 41 | E22: 40 | F22: 20 | G22: 35
A23: J Cantu | C23: 35 | D23: 35 | E23: 55 | F23: 45 | G23: 55
A24: OUTFIELDERS
A25: D Murphy | C25: 67 | D25: 60 | E25: 60 | F25: 60 | G25: 55
A26: J Hamilton | C26: 105 | D26: 97 | E26: 70 | F26: 85 | G26: 50
A27: N Cruz | C27: 82 | D27: 85 | E27: 70 | F27: 75 | G27: 45
A28: J Francoeur | C28: 50 | D28: 68 | E28: 50 | F28: 80 | G28: 40
A29: V Guerrero | C29: 72 | D29: 69 | E29: 55 | F29: 60 | G29: 30
C43: AB | D43: H | E43: RBI | F43: Run | G43: HR | H43: 3B | I43: 2B | J43: SB
A44: PITCHERS | C44: 0 | D44: 0 | E44: 0 | F44: 0 | G44: 0 | H44: 0 | I44: 0 | J44: 0
A45: C Lee | B45: 1 | C45: 0 | D45: 0 | E45: 0 | F45: 0 | G45: 0 | H45: 0 | I45: 0 | J45: 0
A46: C Wilson | C46: 0 | D46: 0 | E46: 0 | F46: 0 | G46: 0 | H46: 0 | I46: 0 | J46: 0
A47: C Lewis | C47: 0 | D47: 0 | E47: 0 | F47: 0 | G47: 0 | H47: 0 | I47: 0 | J47: 0
A48: T Hunter | C48: 0 | D48: 0 | E48: 0 | F48: 0 | G48: 0 | H48: 0 | I48: 0 | J48: 0
A49: N Feliz | C49: 0 | D49: 0 | E49: 0 | F49: 0 | G49: 0 | H49: 0 | I49: 0 | J49: 0
A50: D O'Day | C50: 0 | D50: 0 | E50: 0 | F50: 0 | G50: 0 | H50: 0 | I50: 0 | J50: 0
A51: D Oliver | C51: 0 | D51: 0 | E51: 0 | F51: 0 | G51: 0 | H51: 0 | I51: 0 | J51: 0
A52: F Francisco | C52: 0 | D52: 0 | E52: 0 | F52: 0 | G52: 0 | H52: 0 | I52: 0 | J52: 0
A53: A Ogando | C53: 0 | D53: 0 | E53: 0 | F53: 0 | G53: 0 | H53: 0 | I53: 0 | J53: 0
A54: M Harrison | C54: 0 | D54: 0 | E54: 0 | F54: 0 | G54: 0 | H54: 0 | I54: 0 | J54: 0
A55: S Feldman | C55: 0 | D55: 0 | E55: 0 | F55: 0 | G55: 0 | H55: 0 | I55: 0 | J55: 0
A56: CATCHERS | C56: 0 | D56: 0 | E56: 0 | F56: 0 | G56: 0 | H56: 0 | I56: 0 | J56: 0
A57: B Molina | B57: 1 | C57: 0 | D57: 0 | E57: 0 | F57: 0 | G57: 0 | H57: 0 | I57: 0 | J57: 0
A58: M Treanor | C58: 0 | D58: 0 | E58: 0 | F58: 0 | G58: 0 | H58: 0 | I58: 0 | J58: 0
A59: INFIELDERS | C59: 0 | D59: 0 | E59: 0 | F59: 0 | G59: 0 | H59: 0 | I59: 0 | J59: 0
A60: M Moreland | B60: 1 | C60: 0 | D60: 0 | E60: 0 | F60: 0 | G60: 0 | H60: 0 | I60: 0 | J60: 0
A61: I Kinsler | B61: 1 | C61: 0 | D61: 0 | E61: 0 | F61: 0 | G61: 0 | H61: 0 | I61: 0 | J61: 0
A62: E Andrus | B62: 1 | C62: 0 | D62: 0 | E62: 0 | F62: 0 | G62: 0 | H62: 0 | I62: 0 | J62: 0
A63: M Young | B63: 1 | C63: 0 | D63: 0 | E63: 0 | F63: 0 | G63: 0 | H63: 0 | I63: 0 | J63: 0
A64: A Blanco | C64: 0 | D64: 0 | E64: 0 | F64: 0 | G64: 0 | H64: 0 | I64: 0 | J64: 0
A65: J Smoak | C65: 0 | D65: 0 | E65: 0 | F65: 0 | G65: 0 | H65: 0 | I65: 0 | J65: 0
A66: J Cantu | C66: 0 | D66: 0 | E66: 0 | F66: 0 | G66: 0 | H66: 0 | I66: 0 | J66: 0
A67: OUTFIELDERS | C67: 0 | D67: 0 | E67: 0 | F67: 0 | G67: 0 | H67: 0 | I67: 0 | J67: 0
A68: D Murphy | B68: 1 | C68: 0 | D68: 0 | E68: 0 | F68: 0 | G68: 0 | H68: 0 | I68: 0 | J68: 0
A69: J Hamilton | B69: 1 | C69: 0 | D69: 0 | E69: 0 | F69: 0 | G69: 0 | H69: 0 | I69: 0 | J69: 0
A70: N Cruz | B70: 1 | C70: 0 | D70: 0 | E70: 0 | F70: 0 | G70: 0 | H70: 0 | I70: 0 | J70: 0
A71: J Francoeur | C71: 0 | D71: 0 | E71: 0 | F71: 0 | G71: 0 | H71: 0 | I71: 0 | J71: 0
A72: V Guerrero | B72: 1 | C72: 0 | D72: 0 | E72: 0 | F72: 0 | G72: 0 | H72: 0 | I72: 0 | J72: 0
B73: 99 | C73: 0 | D73: 0 | E73: 0 | F73: 0 | G73: 0 | H73: 0 | I73: 0 | J73: 0

Sheet Rays
A1: PITCHERS | C1: Effectiveness | D1: Stamina | E1: 1 | F1: SS | G1: J Bartlett | I1: 1 | J1: D Price | M1: 1 | N1: SS | O1: J Bartlett
A2: D Price | C2: 64 | D2: 1 | E2: 2 | F2: CF | G2: B Upton | I2: 2 | J2: M Garza | M2: 2 | N2: CF | O2: B Upton
A3: M Garza | C3: 59 | D3: 1 | E3: 3 | F3: LF | G3: C Crawford | I3: 3 | J3: J Shields | M3: 3 | N3: LF | O3: C Crawford
A4: J Shields | C4: 40 | D4: 1 | E4: 4 | F4: 3B | G4: E Longoria | I4: 4 | J4: J Niemann | M4: 4 | N4: 3B | O4: E Longoria
A5: J Niemann | C5: 58 | D5: 1 | E5: 5 | F5: 1B | G5: C Pena | M5: 5 | N5: 1B | O5: C Pena
A6: R Soriano | C6: 100 | D6: 3 | E6: 6 | F6: RF | G6: B Zobrist | M6: 6 | N6: RF | O6: B Zobrist
A7: L Cormier | C7: 23 | D7: 3 | E7: 7 | F7: C | G7: J Jaso | M7: 7 | N7: C | O7: J Jaso
A8: J Benoit | C8: 111 | D8: 3 | E8: 8 | F8: 2B | G8: R Brignac | M8: 8 | N8: 2B | O8: R Brignac
A9: D Wheeler | C9: 75 | D9: 3 | E9: 9 | F9: DH | G9: M Joyce | M9: 9 | N9: DH | O9: M Joyce
A10: R Choate | C10: 55 | D10: 3
A11: W Davis | C11: 50 | D11: 2 | N11: P | O11: J Shields
A12: G Balfour | C12: 74 | D12: 3
A13: CATCHERS | C13: Contact | D13: Power | E13: Speed | F13: Def/Arm | G13: Bunt | P13: IP | Q13: H | R13: R | S13: K | T13: ERA | W13: BB
A14: J Jaso | C14: 51 | D14: 26 | E14: 30 | F14: 50 | G14: 40 | N14: Starter | O14: J Shields | T14: =IFERROR(IF(O14="","",R14*9/P14),"INF") -> INF
A15: K Shoppach | C15: 13 | D15: 38 | E15: 50 | F15: 60 | G15: 40
A16: INFIELDERS
A17: C Pena | C17: 13 | D17: 51 | E17: 75 | F17: 20 | G17: 60
A18: S Rodriguez | C18: 44 | D18: 49 | E18: 70 | F18: 20 | G18: 60
A19: J Bartlett | C19: 46 | D19: 40 | E19: 80 | F19: 20 | G19: 80
A20: E Longoria | C20: 69 | D20: 71 | E20: 55 | F20: 20 | G20: 60
A21: W Aybar | C21: 33 | D21: 39 | E21: 70 | F21: 20 | G21: 35 | T21: =IF(O21="","",R21*9/P21) -> 
A22: R Brignac | C22: 47 | D22: 47 | E22: 40 | F22: 20 | G22: 20
A23: OUTFIELDERS
A24: C Crawford | C24: 76 | D24: 69 | E24: 70 | F24: 70 | G24: 70
A25: B Upton | C25: 37 | D25: 55 | E25: 92 | F25: 55 | G25: 80
A26: B Zobrist | C26: 37 | D26: 41 | E26: 60 | F26: 75 | G26: 40
A27: M Joyce | C27: 39 | D27: 65 | E27: 50 | F27: 80 | G27: 50
A28: G Kapler | C28: 21 | D28: 28 | E28: 30 | F28: 60 | G28: 40
A29: R Baldelli | C29: 20 | D29: 45 | E29: 95 | F29: 60 | G29: 60
C43: AB | D43: H | E43: RBI | F43: Run | G43: HR | H43: 3B | I43: 2B | J43: SB
A44: PITCHERS | C44: 0 | D44: 0 | E44: 0 | F44: 0 | G44: 0 | H44: 0 | I44: 0 | J44: 0
A45: D Price | C45: 0 | D45: 0 | E45: 0 | F45: 0 | G45: 0 | H45: 0 | I45: 0 | J45: 0
A46: M Garza | C46: 0 | D46: 0 | E46: 0 | F46: 0 | G46: 0 | H46: 0 | I46: 0 | J46: 0
A47: J Shields | B47: 1 | C47: 0 | D47: 0 | E47: 0 | F47: 0 | G47: 0 | H47: 0 | I47: 0 | J47: 0
A48: J Niemann | C48: 0 | D48: 0 | E48: 0 | F48: 0 | G48: 0 | H48: 0 | I48: 0 | J48: 0
A49: R Soriano | C49: 0 | D49: 0 | E49: 0 | F49: 0 | G49: 0 | H49: 0 | I49: 0 | J49: 0
A50: L Cormier | C50: 0 | D50: 0 | E50: 0 | F50: 0 | G50: 0 | H50: 0 | I50: 0 | J50: 0
A51: J Benoit | C51: 0 | D51: 0 | E51: 0 | F51: 0 | G51: 0 | H51: 0 | I51: 0 | J51: 0
A52: D Wheeler | C52: 0 | D52: 0 | E52: 0 | F52: 0 | G52: 0 | H52: 0 | I52: 0 | J52: 0
A53: R Choate | C53: 0 | D53: 0 | E53: 0 | F53: 0 | G53: 0 | H53: 0 | I53: 0 | J53: 0
A54: W Davis | C54: 0 | D54: 0 | E54: 0 | F54: 0 | G54: 0 | H54: 0 | I54: 0 | J54: 0
A55: G Balfour | C55: 0 | D55: 0 | E55: 0 | F55: 0 | G55: 0 | H55: 0 | I55: 0 | J55: 0
A56: CATCHERS | C56: 0 | D56: 0 | E56: 0 | F56: 0 | G56: 0 | H56: 0 | I56: 0 | J56: 0
A57: J Jaso | B57: 1 | C57: 0 | D57: 0 | E57: 0 | F57: 0 | G57: 0 | H57: 0 | I57: 0 | J57: 0
A58: K Shoppach | C58: 0 | D58: 0 | E58: 0 | F58: 0 | G58: 0 | H58: 0 | I58: 0 | J58: 0
A59: INFIELDERS | C59: 0 | D59: 0 | E59: 0 | F59: 0 | G59: 0 | H59: 0 | I59: 0 | J59: 0
A60: C Pena | B60: 1 | C60: 0 | D60: 0 | E60: 0 | F60: 0 | G60: 0 | H60: 0 | I60: 0 | J60: 0
A61: S Rodriguez | C61: 0 | D61: 0 | E61: 0 | F61: 0 | G61: 0 | H61: 0 | I61: 0 | J61: 0
A62: J Bartlett | B62: 1 | C62: 0 | D62: 0 | E62: 0 | F62: 0 | G62: 0 | H62: 0 | I62: 0 | J62: 0
A63: E Longoria | B63: 1 | C63: 0 | D63: 0 | E63: 0 | F63: 0 | G63: 0 | H63: 0 | I63: 0 | J63: 0
A64: W Aybar | C64: 0 | D64: 0 | E64: 0 | F64: 0 | G64: 0 | H64: 0 | I64: 0 | J64: 0
A65: R Brignac | B65: 1 | C65: 0 | D65: 0 | E65: 0 | F65: 0 | G65: 0 | H65: 0 | I65: 0 | J65: 0
A66: OUTFIELDERS | C66: 0 | D66: 0 | E66: 0 | F66: 0 | G66: 0 | H66: 0 | I66: 0 | J66: 0
A67: C Crawford | B67: 1 | C67: 0 | D67: 0 | E67: 0 | F67: 0 | G67: 0 | H67: 0 | I67: 0 | J67: 0
A68: B Upton | B68: 1 | C68: 0 | D68: 0 | E68: 0 | F68: 0 | G68: 0 | H68: 0 | I68: 0 | J68: 0
A69: B Zobrist | B69: 1 | C69: 0 | D69: 0 | E69: 0 | F69: 0 | G69: 0 | H69: 0 | I69: 0 | J69: 0
A70: M Joyce | B70: 1 | C70: 0 | D70: 0 | E70: 0 | F70: 0 | G70: 0 | H70: 0 | I70: 0 | J70: 0
A71: G Kapler | C71: 0 | D71: 0 | E71: 0 | F71: 0 | G71: 0 | H71: 0 | I71: 0 | J71: 0
A72: R Baldelli | C72: 0 | D72: 0 | E72: 0 | F72: 0 | G72: 0 | H72: 0 | I72: 0 | J72: 0
B73: 99 | C73: 0 | D73: 0 | E73: 0 | F73: 0 | G73: 0 | H73: 0 | I73: 0 | J73: 0

Sheet RedSox
A1: PITCHERS | C1: Effectiveness | D1: Stamina | E1: 1 | F1: CF | G1: M Scutaro | I1: 1 | J1: J Lester | M1: 1 | N1: CF | O1: M Scutaro
A2: J Lester | C2: 63 | D2: 1 | E2: 2 | F2: 2B | G2: D Pedroia | I2: 2 | J2: J Lackey | M2: 2 | N2: 2B | O2: D Pedroia
A3: J Lackey | C3: 44 | D3: 1 | E3: 3 | F3: C | G3: V Martinez | I3: 3 | J3: C Buchholz | M3: 3 | N3: C | O3: V Martinez
A4: C Buchholz | C4: 63 | D4: 1 | E4: 4 | F4: 1B | G4: K Youkilis | I4: 4 | J4: D Matsuzaka | M4: 4 | N4: 1B | O4: K Youkilis
A5: D Matsuzaka | C5: 48 | D5: 1 | E5: 5 | F5: DH | G5: D Ortiz | M5: 5 | N5: DH | O5: D Ortiz
A6: J Papelbon | C6: 57 | D6: 3 | E6: 6 | F6: 3B | G6: A Beltre | M6: 6 | N6: 3B | O6: A Beltre
A7: D Bard | C7: 81 | D7: 3 | E7: 7 | F7: RF | G7: J Drew | M7: 7 | N7: RF | O7: J Drew
A8: H Okajima | C8: 17 | D8: 3 | E8: 8 | F8: LF | G8: D McDonald | M8: 8 | N8: LF | O8: D McDonald
A9: M Delcarmen | C9: 47 | D9: 3 | E9: 9 | F9: SS | G9: J Lowrie | M9: 9 | N9: SS | O9: J Lowrie
A10: R Ramirez | C10: 55 | D10: 3
A11: S Atchison | C11: 56 | D11: 2 | N11: P | O11: C Buchholz
A12: T Wakefield | C12: 50 | D12: 2
A13: CATCHERS | C13: Contact | D13: Power | E13: Speed | F13: Def/Arm | G13: Bunt | P13: IP | Q13: H | R13: R | S13: K | T13: ERA | W13: BB
A14: V Martinez | C14: 73 | D14: 69 | E14: 40 | F14: 55 | G14: 35 | N14: Starter | O14: C Buchholz | T14: =IFERROR(IF(O14="","",R14*9/P14),"INF") -> INF
A15: J Varitek | C15: 34 | D15: 65 | E15: 35 | F15: 65 | G15: 60
A16: INFIELDERS
A17: K Youkilis | C17: 76 | D17: 83 | E17: 50 | F17: 20 | G17: 60
A18: D Pedroia | C18: 65 | D18: 69 | E18: 70 | F18: 20 | G18: 75
A19: M Scutaro | C19: 58 | D19: 48 | E19: 65 | F19: 20 | G19: 70
A20: A Beltre | C20: 84 | D20: 81 | E20: 60 | F20: 20 | G20: 40
A21: D Ortiz | C21: 55 | D21: 76 | E21: 30 | F21: 20 | G21: 25
A22: M Lowell | C22: 38 | D22: 43 | E22: 25 | F22: 20 | G22: 50 | T22: =IF(O22="","",R22*9/P22) -> 
A23: J Lowrie | C23: 65 | D23: 75 | E23: 65 | F23: 20 | G23: 60
A24: OUTFIELDERS
A25: D Nava | C25: 39 | D25: 42 | E25: 60 | F25: 70 | G25: 60
A26: D McDonald | C26: 55 | D26: 56 | E26: 70 | F26: 65 | G26: 55
A27: J Drew | C27: 47 | D27: 60 | E27: 55 | F27: 60 | G27: 55
A28: M Cameron | C28: 49 | D28: 50 | E28: 70 | F28: 75 | G28: 60
A29: R Kalish | C29: 45 | D29: 51 | E29: 60 | F29: 75 | G29: 45
C43: AB | D43: H | E43: RBI | F43: Run | G43: HR | H43: 3B | I43: 2B | J43: SB
A44: PITCHERS | C44: 0 | D44: 0 | E44: 0 | F44: 0 | G44: 0 | H44: 0 | I44: 0 | J44: 0
A45: J Lester | C45: 0 | D45: 0 | E45: 0 | F45: 0 | G45: 0 | H45: 0 | I45: 0 | J45: 0
A46: J Lackey | C46: 0 | D46: 0 | E46: 0 | F46: 0 | G46: 0 | H46: 0 | I46: 0 | J46: 0
A47: C Buchholz | B47: 1 | C47: 0 | D47: 0 | E47: 0 | F47: 0 | G47: 0 | H47: 0 | I47: 0 | J47: 0
A48: D Matsuzaka | C48: 0 | D48: 0 | E48: 0 | F48: 0 | G48: 0 | H48: 0 | I48: 0 | J48: 0
A49: J Papelbon | C49: 0 | D49: 0 | E49: 0 | F49: 0 | G49: 0 | H49: 0 | I49: 0 | J49: 0
A50: D Bard | C50: 0 | D50: 0 | E50: 0 | F50: 0 | G50: 0 | H50: 0 | I50: 0 | J50: 0
A51: H Okajima | C51: 0 | D51: 0 | E51: 0 | F51: 0 | G51: 0 | H51: 0 | I51: 0 | J51: 0
A52: M Delcarmen | C52: 0 | D52: 0 | E52: 0 | F52: 0 | G52: 0 | H52: 0 | I52: 0 | J52: 0
A53: R Ramirez | C53: 0 | D53: 0 | E53: 0 | F53: 0 | G53: 0 | H53: 0 | I53: 0 | J53: 0
A54: S Atchison | C54: 0 | D54: 0 | E54: 0 | F54: 0 | G54: 0 | H54: 0 | I54: 0 | J54: 0
A55: T Wakefield | C55: 0 | D55: 0 | E55: 0 | F55: 0 | G55: 0 | H55: 0 | I55: 0 | J55: 0
A56: CATCHERS | C56: 0 | D56: 0 | E56: 0 | F56: 0 | G56: 0 | H56: 0 | I56: 0 | J56: 0
A57: V Martinez | B57: 1 | C57: 0 | D57: 0 | E57: 0 | F57: 0 | G57: 0 | H57: 0 | I57: 0 | J57: 0
A58: J Varitek | C58: 0 | D58: 0 | E58: 0 | F58: 0 | G58: 0 | H58: 0 | I58: 0 | J58: 0
A59: INFIELDERS | C59: 0 | D59: 0 | E59: 0 | F59: 0 | G59: 0 | H59: 0 | I59: 0 | J59: 0
A60: K Youkilis | B60: 1 | C60: 0 | D60: 0 | E60: 0 | F60: 0 | G60: 0 | H60: 0 | I60: 0 | J60: 0
A61: D Pedroia | B61: 1 | C61: 0 | D61: 0 | E61: 0 | F61: 0 | G61: 0 | H61: 0 | I61: 0 | J61: 0
A62: M Scutaro | B62: 1 | C62: 0 | D62: 0 | E62: 0 | F62: 0 | G62: 0 | H62: 0 | I62: 0 | J62: 0
A63: A Beltre | B63: 1 | C63: 0 | D63: 0 | E63: 0 | F63: 0 | G63: 0 | H63: 0 | I63: 0 | J63: 0
A64: D Ortiz | B64: 1 | C64: 0 | D64: 0 | E64: 0 | F64: 0 | G64: 0 | H64: 0 | I64: 0 | J64: 0
A65: M Lowell | C65: 0 | D65: 0 | E65: 0 | F65: 0 | G65: 0 | H65: 0 | I65: 0 | J65: 0
A66: J Lowrie | B66: 1 | C66: 0 | D66: 0 | E66: 0 | F66: 0 | G66: 0 | H66: 0 | I66: 0 | J66: 0
A67: OUTFIELDERS | C67: 0 | D67: 0 | E67: 0 | F67: 0 | G67: 0 | H67: 0 | I67: 0 | J67: 0
A68: D Nava | C68: 0 | D68: 0 | E68: 0 | F68: 0 | G68: 0 | H68: 0 | I68: 0 | J68: 0
A69: D McDonald | B69: 1 | C69: 0 | D69: 0 | E69: 0 | F69: 0 | G69: 0 | H69: 0 | I69: 0 | J69: 0
A70: J Drew | B70: 1 | C70: 0 | D70: 0 | E70: 0 | F70: 0 | G70: 0 | H70: 0 | I70: 0 | J70: 0
A71: M Cameron | C71: 0 | D71: 0 | E71: 0 | F71: 0 | G71: 0 | H71: 0 | I71: 0 | J71: 0
A72: R Kalish | C72: 0 | D72: 0 | E72: 0 | F72: 0 | G72: 0 | H72: 0 | I72: 0 | J72: 0
B73: 99 | C73: 0 | D73: 0 | E73: 0 | F73: 0 | G73: 0 | H73: 0 | I73: 0 | J73: 0

Sheet Reds
A1: PITCHERS | C1: Effectiveness | D1: Stamina | E1: 1 | F1: 2B | G1: B Phillips | I1: 1 | J1: B Arroyo | M1: 1 | N1: 2B | O1: B Phillips
A2: B Arroyo | C2: 69 | D2: 1 | E2: 2 | F2: SS | G2: O Cabrera | I2: 2 | J2: J Cueto | M2: 2 | N2: SS | O2: O Cabrera
A3: J Cueto | C3: 57 | D3: 1 | E3: 3 | F3: 1B | G3: J Votto | I3: 3 | J3: M Leake | M3: 3 | N3: 1B | O3: J Votto
A4: M Leake | C4: 37 | D4: 1 | E4: 4 | F4: 3B | G4: S Rolen | I4: 4 | J4: H Bailey | M4: 4 | N4: 3B | O4: S Rolen
A5: H Bailey | C5: 48 | D5: 1 | E5: 5 | F5: LF | G5: J Gomes | M5: 5 | N5: LF | O5: J Gomes
A6: F Cordero | C6: 43 | D6: 3 | E6: 6 | F6: RF | G6: J Bruce | M6: 6 | N6: RF | O6: J Bruce
A7: N Masset | C7: 58 | D7: 3 | E7: 7 | F7: CF | G7: D Stubbs | M7: 7 | N7: CF | O7: D Stubbs
A8: L Ondrusek | C8: 66 | D8: 3 | E8: 8 | F8: C | G8: R Hernandez | M8: 8 | N8: C | O8: R Hernandez
A9: A Rhodes | C9: 80 | D9: 3 | E9: 9 | F9: P | G9: B Arroyo | M9: 9 | N9: P | O9: J Cueto
A10: J Smith | C10: 52 | D10: 3
A11: A Harang | C11: 29 | D11: 2 | N11: P | O11: J Cueto
A12: E Volquez | C12: 36 | D12: 2
A13: CATCHERS | C13: Contact | D13: Power | E13: Speed | F13: Def/Arm | G13: Bunt | P13: IP | Q13: H | R13: R | S13: K | T13: ERA | W13: BB
A14: R Hernandez | C14: 70 | D14: 56 | E14: 60 | F14: 70 | G14: 65 | N14: Starter | O14: J Cueto | T14: =IFERROR(IF(O14="","",R14*9/P14),"INF") -> INF
A15: R Hanigan | C15: 72 | D15: 56 | E15: 60 | F15: 60 | G15: 50
A16: INFIELDERS
A17: J Votto | C17: 85 | D17: 90 | E17: 55 | F17: 20 | G17: 40
A18: B Phillips | C18: 58 | D18: 56 | E18: 75 | F18: 20 | G18: 70
A19: O Cabrera | C19: 51 | D19: 41 | E19: 65 | F19: 20 | G19: 75
A20: S Rolen | C20: 63 | D20: 69 | E20: 50 | F20: 20 | G20: 60
A21: P Janish | C21: 49 | D21: 47 | E21: 70 | F21: 20 | G21: 55 | T21: =IF(O21="","",R21*9/P21) -> 
A22: M Cairo | C22: 66 | D22: 52 | E22: 55 | F22: 20 | G22: 60
A23: J Francisco | C23: 57 | D23: 46 | E23: 65 | F23: 20 | G23: 60
A24: OUTFIELDERS
A25: J Gomes | C25: 53 | D25: 56 | E25: 55 | F25: 40 | G25: 55
A26: D Stubbs | C26: 47 | D26: 59 | E26: 70 | F26: 65 | G26: 65
A27: J Bruce | C27: 61 | D27: 69 | E27: 65 | F27: 70 | G27: 55
A28: C Heisey | C28: 46 | D28: 57 | E28: 55 | F28: 60 | G28: 60
A29: L Nix | C29: 67 | D29: 61 | E29: 60 | F29: 65 | G29: 60
C43: AB | D43: H | E43: RBI | F43: Run | G43: HR | H43: 3B | I43: 2B | J43: SB
A44: PITCHERS | C44: 0 | D44: 0 | E44: 0 | F44: 0 | G44: 0 | H44: 0 | I44: 0 | J44: 0
A45: B Arroyo | C45: 0 | D45: 0 | E45: 0 | F45: 0 | G45: 0 | H45: 0 | I45: 0 | J45: 0
A46: J Cueto | B46: 1 | C46: 0 | D46: 0 | E46: 0 | F46: 0 | G46: 0 | H46: 0 | I46: 0 | J46: 0
A47: M Leake | C47: 0 | D47: 0 | E47: 0 | F47: 0 | G47: 0 | H47: 0 | I47: 0 | J47: 0
A48: H Bailey | C48: 0 | D48: 0 | E48: 0 | F48: 0 | G48: 0 | H48: 0 | I48: 0 | J48: 0
A49: F Cordero | C49: 0 | D49: 0 | E49: 0 | F49: 0 | G49: 0 | H49: 0 | I49: 0 | J49: 0
A50: N Masset | C50: 0 | D50: 0 | E50: 0 | F50: 0 | G50: 0 | H50: 0 | I50: 0 | J50: 0
A51: L Ondrusek | C51: 0 | D51: 0 | E51: 0 | F51: 0 | G51: 0 | H51: 0 | I51: 0 | J51: 0
A52: A Rhodes | C52: 0 | D52: 0 | E52: 0 | F52: 0 | G52: 0 | H52: 0 | I52: 0 | J52: 0
A53: J Smith | C53: 0 | D53: 0 | E53: 0 | F53: 0 | G53: 0 | H53: 0 | I53: 0 | J53: 0
A54: A Harang | C54: 0 | D54: 0 | E54: 0 | F54: 0 | G54: 0 | H54: 0 | I54: 0 | J54: 0
A55: E Volquez | C55: 0 | D55: 0 | E55: 0 | F55: 0 | G55: 0 | H55: 0 | I55: 0 | J55: 0
A56: CATCHERS | C56: 0 | D56: 0 | E56: 0 | F56: 0 | G56: 0 | H56: 0 | I56: 0 | J56: 0
A57: R Hernandez | B57: 1 | C57: 0 | D57: 0 | E57: 0 | F57: 0 | G57: 0 | H57: 0 | I57: 0 | J57: 0
A58: R Hanigan | C58: 0 | D58: 0 | E58: 0 | F58: 0 | G58: 0 | H58: 0 | I58: 0 | J58: 0
A59: INFIELDERS | C59: 0 | D59: 0 | E59: 0 | F59: 0 | G59: 0 | H59: 0 | I59: 0 | J59: 0
A60: J Votto | B60: 1 | C60: 0 | D60: 0 | E60: 0 | F60: 0 | G60: 0 | H60: 0 | I60: 0 | J60: 0
A61: B Phillips | B61: 1 | C61: 0 | D61: 0 | E61: 0 | F61: 0 | G61: 0 | H61: 0 | I61: 0 | J61: 0
A62: O Cabrera | B62: 1 | C62: 0 | D62: 0 | E62: 0 | F62: 0 | G62: 0 | H62: 0 | I62: 0 | J62: 0
A63: S Rolen | B63: 1 | C63: 0 | D63: 0 | E63: 0 | F63: 0 | G63: 0 | H63: 0 | I63: 0 | J63: 0
A64: P Janish | C64: 0 | D64: 0 | E64: 0 | F64: 0 | G64: 0 | H64: 0 | I64: 0 | J64: 0
A65: M Cairo | C65: 0 | D65: 0 | E65: 0 | F65: 0 | G65: 0 | H65: 0 | I65: 0 | J65: 0
A66: J Francisco | C66: 0 | D66: 0 | E66: 0 | F66: 0 | G66: 0 | H66: 0 | I66: 0 | J66: 0
A67: OUTFIELDERS | C67: 0 | D67: 0 | E67: 0 | F67: 0 | G67: 0 | H67: 0 | I67: 0 | J67: 0
A68: J Gomes | B68: 1 | C68: 0 | D68: 0 | E68: 0 | F68: 0 | G68: 0 | H68: 0 | I68: 0 | J68: 0
A69: D Stubbs | B69: 1 | C69: 0 | D69: 0 | E69: 0 | F69: 0 | G69: 0 | H69: 0 | I69: 0 | J69: 0
A70: J Bruce | B70: 1 | C70: 0 | D70: 0 | E70: 0 | F70: 0 | G70: 0 | H70: 0 | I70: 0 | J70: 0
A71: C Heisey | C71: 0 | D71: 0 | E71: 0 | F71: 0 | G71: 0 | H71: 0 | I71: 0 | J71: 0
A72: L Nix | C72: 0 | D72: 0 | E72: 0 | F72: 0 | G72: 0 | H72: 0 | I72: 0 | J72: 0
B73: 99 | C73: 0 | D73: 0 | E73: 0 | F73: 0 | G73: 0 | H73: 0 | I73: 0 | J73: 0

Sheet Rockies
A1: PITCHERS | C1: Effectiveness | D1: Stamina | E1: 1 | F1: 2B | G1: J Herrera | I1: 1 | J1: U Jimenez | M1: 1 | N1: 2B | O1: J Herrera
A2: U Jimenez | C2: 68 | D2: 1 | E2: 2 | F2: CF | G2: D Fowler | I2: 2 | J2: J Hammel | M2: 2 | N2: CF | O2: D Fowler
A3: J Hammel | C3: 46 | D3: 1 | E3: 3 | F3: RF | G3: C Gonzalez | I3: 3 | J3: J Chacin | M3: 3 | N3: RF | O3: C Gonzalez
A4: J Chacin | C4: 57 | D4: 1 | E4: 4 | F4: SS | G4: T Tulowitzki | I4: 4 | J4: J De La Rosa | M4: 4 | N4: SS | O4: T Tulowitzki
A5: J De La Rosa | C5: 53 | D5: 1 | E5: 5 | F5: 3B | G5: M Mora | M5: 5 | N5: 3B | O5: M Mora
A6: H Street | C6: 77 | D6: 3 | E6: 6 | F6: 1B | G6: T Helton | M6: 6 | N6: 1B | O6: T Helton
A7: M Belisle | C7: 74 | D7: 3 | E7: 7 | F7: LF | G7: R Spilborghs | M7: 7 | N7: LF | O7: R Spilborghs
A8: M Corpas | C8: 44 | D8: 3 | E8: 8 | F8: C | G8: M Olivo | M8: 8 | N8: C | O8: M Olivo
A9: R Betancourt | C9: 85 | D9: 3 | E9: 9 | F9: P | G9: U Jimenez | M9: 9 | N9: P | O9: J Chacin
A10: J Beimel | C10: 49 | D10: 2
A11: J Francis | C11: 49 | D11: 2 | N11: P | O11: J Chacin
A12: E Rogers | C12: 21 | D12: 3
A13: CATCHERS | C13: Contact | D13: Power | E13: Speed | F13: Def/Arm | G13: Bunt | P13: IP | Q13: H | R13: R | S13: K | T13: ERA | W13: BB
A14: M Olivo | C14: 54 | D14: 60 | E14: 45 | F14: 70 | G14: 60 | N14: Starter | O14: J Chacin | T14: =IFERROR(IF(O14="","",R14*9/P14),"INF") -> INF
A15: C Iannetta | C15: 14 | D15: 47 | E15: 60 | F15: 55 | G15: 50
A16: INFIELDERS
A17: T Helton | C17: 47 | D17: 43 | E17: 50 | F17: 20 | G17: 45
A18: C Barmes | C18: 35 | D18: 40 | E18: 60 | F18: 20 | G18: 60
A19: T Tulowitzki | C19: 80 | D19: 84 | E19: 75 | F19: 20 | G19: 60
A20: I Stewart | C20: 47 | D20: 59 | E20: 60 | F20: 20 | G20: 65
A21: M Mora | C21: 63 | D21: 54 | E21: 55 | F21: 20 | G21: 45 | T21: =IF(O21="","",R21*9/P21) -> 
A22: J Herrera | C22: 63 | D22: 38 | E22: 75 | F22: 20 | G22: 65
A23: J Giambi | C23: 40 | D23: 50 | E23: 40 | F23: 20 | G23: 30
A24: OUTFIELDERS
A25: S Smith | C25: 42 | D25: 64 | E25: 60 | F25: 65 | G25: 35
A26: D Fowler | C26: 49 | D26: 52 | E26: 80 | F26: 75 | G26: 60
A27: B Hawpe | C27: 47 | D27: 56 | E27: 70 | F27: 30 | G27: 50
A28: C Gonzalez | C28: 92 | D28: 90 | E28: 80 | F28: 80 | G28: 60
A29: R Spilborghs | C29: 60 | D29: 57 | E29: 65 | F29: 65 | G29: 55
C43: AB | D43: H | E43: RBI | F43: Run | G43: HR | H43: 3B | I43: 2B | J43: SB
A44: PITCHERS | C44: 0 | D44: 0 | E44: 0 | F44: 0 | G44: 0 | H44: 0 | I44: 0 | J44: 0
A45: U Jimenez | C45: 0 | D45: 0 | E45: 0 | F45: 0 | G45: 0 | H45: 0 | I45: 0 | J45: 0
A46: J Hammel | C46: 0 | D46: 0 | E46: 0 | F46: 0 | G46: 0 | H46: 0 | I46: 0 | J46: 0
A47: J Chacin | B47: 1 | C47: 0 | D47: 0 | E47: 0 | F47: 0 | G47: 0 | H47: 0 | I47: 0 | J47: 0
A48: J De La Rosa | C48: 0 | D48: 0 | E48: 0 | F48: 0 | G48: 0 | H48: 0 | I48: 0 | J48: 0
A49: H Street | C49: 0 | D49: 0 | E49: 0 | F49: 0 | G49: 0 | H49: 0 | I49: 0 | J49: 0
A50: M Belisle | C50: 0 | D50: 0 | E50: 0 | F50: 0 | G50: 0 | H50: 0 | I50: 0 | J50: 0
A51: M Corpas | C51: 0 | D51: 0 | E51: 0 | F51: 0 | G51: 0 | H51: 0 | I51: 0 | J51: 0
A52: R Betancourt | C52: 0 | D52: 0 | E52: 0 | F52: 0 | G52: 0 | H52: 0 | I52: 0 | J52: 0
A53: J Beimel | C53: 0 | D53: 0 | E53: 0 | F53: 0 | G53: 0 | H53: 0 | I53: 0 | J53: 0
A54: J Francis | C54: 0 | D54: 0 | E54: 0 | F54: 0 | G54: 0 | H54: 0 | I54: 0 | J54: 0
A55: E Rogers | C55: 0 | D55: 0 | E55: 0 | F55: 0 | G55: 0 | H55: 0 | I55: 0 | J55: 0
A56: CATCHERS | C56: 0 | D56: 0 | E56: 0 | F56: 0 | G56: 0 | H56: 0 | I56: 0 | J56: 0
A57: M Olivo | B57: 1 | C57: 0 | D57: 0 | E57: 0 | F57: 0 | G57: 0 | H57: 0 | I57: 0 | J57: 0
A58: C Iannetta | C58: 0 | D58: 0 | E58: 0 | F58: 0 | G58: 0 | H58: 0 | I58: 0 | J58: 0
A59: INFIELDERS | C59: 0 | D59: 0 | E59: 0 | F59: 0 | G59: 0 | H59: 0 | I59: 0 | J59: 0
A60: T Helton | B60: 1 | C60: 0 | D60: 0 | E60: 0 | F60: 0 | G60: 0 | H60: 0 | I60: 0 | J60: 0
A61: C Barmes | C61: 0 | D61: 0 | E61: 0 | F61: 0 | G61: 0 | H61: 0 | I61: 0 | J61: 0
A62: T Tulowitzki | B62: 1 | C62: 0 | D62: 0 | E62: 0 | F62: 0 | G62: 0 | H62: 0 | I62: 0 | J62: 0
A63: I Stewart | C63: 0 | D63: 0 | E63: 0 | F63: 0 | G63: 0 | H63: 0 | I63: 0 | J63: 0
A64: M Mora | B64: 1 | C64: 0 | D64: 0 | E64: 0 | F64: 0 | G64: 0 | H64: 0 | I64: 0 | J64: 0
A65: J Herrera | B65: 1 | C65: 0 | D65: 0 | E65: 0 | F65: 0 | G65: 0 | H65: 0 | I65: 0 | J65: 0
A66: J Giambi | C66: 0 | D66: 0 | E66: 0 | F66: 0 | G66: 0 | H66: 0 | I66: 0 | J66: 0
A67: OUTFIELDERS | C67: 0 | D67: 0 | E67: 0 | F67: 0 | G67: 0 | H67: 0 | I67: 0 | J67: 0
A68: S Smith | C68: 0 | D68: 0 | E68: 0 | F68: 0 | G68: 0 | H68: 0 | I68: 0 | J68: 0
A69: D Fowler | B69: 1 | C69: 0 | D69: 0 | E69: 0 | F69: 0 | G69: 0 | H69: 0 | I69: 0 | J69: 0
A70: B Hawpe | C70: 0 | D70: 0 | E70: 0 | F70: 0 | G70: 0 | H70: 0 | I70: 0 | J70: 0
A71: C Gonzalez | B71: 1 | C71: 0 | D71: 0 | E71: 0 | F71: 0 | G71: 0 | H71: 0 | I71: 0 | J71: 0
A72: R Spilborghs | B72: 1 | C72: 0 | D72: 0 | E72: 0 | F72: 0 | G72: 0 | H72: 0 | I72: 0 | J72: 0
B73: 99 | C73: 0 | D73: 0 | E73: 0 | F73: 0 | G73: 0 | H73: 0 | I73: 0 | J73: 0

Sheet Royals
A1: PITCHERS | C1: Effectiveness | D1: Stamina | E1: 1 | F1: CF | G1: D DeJesus | I1: 1 | J1: Z Greinke | M1: 1 | N1: CF | O1: D DeJesus
A2: Z Greinke | C2: 60 | D2: 1 | E2: 2 | F2: C | G2: J Kendall | I2: 2 | J2: K Davies | M2: 2 | N2: C | O2: J Kendall
A3: K Davies | C3: 31 | D3: 1 | E3: 3 | F3: 1B | G3: B Butler | I3: 3 | J3: B Chen | M3: 3 | N3: 1B | O3: B Butler
A4: B Chen | C4: 48 | D4: 1 | E4: 4 | F4: 3B | G4: W Betemit | I4: 4 | J4: B Bannister | M4: 4 | N4: 3B | O4: W Betemit
A5: B Bannister | C5: 25 | D5: 1 | E5: 5 | F5: DH | G5: K Ka'aihue | M5: 5 | N5: DH | O5: K Ka'aihue
A6: J Soria | C6: 77 | D6: 3 | E6: 6 | F6: LF | G6: A Gordon | M6: 6 | N6: LF | O6: A Gordon
A7: R Tejeda | C7: 52 | D7: 3 | E7: 7 | F7: 2B | G7: M Aviles | M7: 7 | N7: 2B | O7: M Aviles
A8: D Hughes | C8: 39 | D8: 3 | E8: 8 | F8: RF | G8: M Maier | M8: 8 | N8: RF | O8: M Maier
A9: B Wood | C9: 34 | D9: 3 | E9: 9 | F9: SS | G9: Y Betancourt | M9: 9 | N9: SS | O9: Y Betancourt
A10: K Farnsworth | C10: 67 | D10: 3
A11: L Hochevar | C11: 43 | D11: 2 | N11: P | O11: Z Greinke
A12: S O'Sullivan | C12: 31 | D12: 2
A13: CATCHERS | C13: Contact | D13: Power | E13: Speed | F13: Def/Arm | G13: Bunt | P13: IP | Q13: H | R13: R | S13: K | T13: ERA | W13: BB
A14: J Kendall | C14: 47 | D14: 29 | E14: 55 | F14: 55 | G14: 70 | N14: Starter | O14: Z Greinke | T14: =IFERROR(IF(O14="","",R14*9/P14),"INF") -> INF
A15: B Pena | C15: 46 | D15: 37 | E15: 40 | F15: 55 | G15: 60
A16: INFIELDERS
A17: B Butler | C17: 82 | D17: 64 | E17: 50 | F17: 20 | G17: 40
A18: M Aviles | C18: 74 | D18: 53 | E18: 65 | F18: 20 | G18: 60
A19: Y Betancourt | C19: 49 | D19: 51 | E19: 65 | F19: 20 | G19: 45
A20: A Callaspo | C20: 58 | D20: 52 | E20: 65 | F20: 20 | G20: 65
A21: W Betemit | C21: 70 | D21: 72 | E21: 65 | F21: 40 | G21: 50 | T21: =IF(O21="","",R21*9/P21) -> 
A22: C Getz | C22: 37 | D22: 25 | E22: 60 | F22: 20 | G22: 60
A23: K Ka'aihue | C23: 25 | D23: 49 | E23: 45 | F23: 20 | G23: 40
A24: OUTFIELDERS
A25: S Podsednik | C25: 78 | D25: 50 | E25: 80 | F25: 40 | G25: 75
A26: M Maier | C26: 51 | D26: 45 | E26: 60 | F26: 65 | G26: 55
A27: D DeJesus | C27: 82 | D27: 59 | E27: 75 | F27: 80 | G27: 75
A28: J Guillen | C28: 47 | D28: 56 | E28: 60 | F28: 85 | G28: 35
A29: A Gordon | C29: 24 | D29: 41 | E29: 60 | F29: 60 | G29: 60
C43: AB | D43: H | E43: RBI | F43: Run | G43: HR | H43: 3B | I43: 2B | J43: SB
A44: PITCHERS | C44: 0 | D44: 0 | E44: 0 | F44: 0 | G44: 0 | H44: 0 | I44: 0 | J44: 0
A45: Z Greinke | B45: 1 | C45: 0 | D45: 0 | E45: 0 | F45: 0 | G45: 0 | H45: 0 | I45: 0 | J45: 0
A46: K Davies | C46: 0 | D46: 0 | E46: 0 | F46: 0 | G46: 0 | H46: 0 | I46: 0 | J46: 0
A47: B Chen | C47: 0 | D47: 0 | E47: 0 | F47: 0 | G47: 0 | H47: 0 | I47: 0 | J47: 0
A48: B Bannister | C48: 0 | D48: 0 | E48: 0 | F48: 0 | G48: 0 | H48: 0 | I48: 0 | J48: 0
A49: J Soria | C49: 0 | D49: 0 | E49: 0 | F49: 0 | G49: 0 | H49: 0 | I49: 0 | J49: 0
A50: R Tejeda | C50: 0 | D50: 0 | E50: 0 | F50: 0 | G50: 0 | H50: 0 | I50: 0 | J50: 0
A51: D Hughes | C51: 0 | D51: 0 | E51: 0 | F51: 0 | G51: 0 | H51: 0 | I51: 0 | J51: 0
A52: B Wood | C52: 0 | D52: 0 | E52: 0 | F52: 0 | G52: 0 | H52: 0 | I52: 0 | J52: 0
A53: K Farnsworth | C53: 0 | D53: 0 | E53: 0 | F53: 0 | G53: 0 | H53: 0 | I53: 0 | J53: 0
A54: L Hochevar | C54: 0 | D54: 0 | E54: 0 | F54: 0 | G54: 0 | H54: 0 | I54: 0 | J54: 0
A55: S O'Sullivan | C55: 0 | D55: 0 | E55: 0 | F55: 0 | G55: 0 | H55: 0 | I55: 0 | J55: 0
A56: CATCHERS | C56: 0 | D56: 0 | E56: 0 | F56: 0 | G56: 0 | H56: 0 | I56: 0 | J56: 0
A57: J Kendall | B57: 1 | C57: 0 | D57: 0 | E57: 0 | F57: 0 | G57: 0 | H57: 0 | I57: 0 | J57: 0
A58: B Pena | C58: 0 | D58: 0 | E58: 0 | F58: 0 | G58: 0 | H58: 0 | I58: 0 | J58: 0
A59: INFIELDERS | C59: 0 | D59: 0 | E59: 0 | F59: 0 | G59: 0 | H59: 0 | I59: 0 | J59: 0
A60: B Butler | B60: 1 | C60: 0 | D60: 0 | E60: 0 | F60: 0 | G60: 0 | H60: 0 | I60: 0 | J60: 0
A61: M Aviles | B61: 1 | C61: 0 | D61: 0 | E61: 0 | F61: 0 | G61: 0 | H61: 0 | I61: 0 | J61: 0
A62: Y Betancourt | B62: 1 | C62: 0 | D62: 0 | E62: 0 | F62: 0 | G62: 0 | H62: 0 | I62: 0 | J62: 0
A63: A Callaspo | C63: 0 | D63: 0 | E63: 0 | F63: 0 | G63: 0 | H63: 0 | I63: 0 | J63: 0
A64: W Betemit | B64: 1 | C64: 0 | D64: 0 | E64: 0 | F64: 0 | G64: 0 | H64: 0 | I64: 0 | J64: 0
A65: C Getz | C65: 0 | D65: 0 | E65: 0 | F65: 0 | G65: 0 | H65: 0 | I65: 0 | J65: 0
A66: K Ka'aihue | B66: 1 | C66: 0 | D66: 0 | E66: 0 | F66: 0 | G66: 0 | H66: 0 | I66: 0 | J66: 0
A67: OUTFIELDERS | C67: 0 | D67: 0 | E67: 0 | F67: 0 | G67: 0 | H67: 0 | I67: 0 | J67: 0
A68: S Podsednik | C68: 0 | D68: 0 | E68: 0 | F68: 0 | G68: 0 | H68: 0 | I68: 0 | J68: 0
A69: M Maier | B69: 1 | C69: 0 | D69: 0 | E69: 0 | F69: 0 | G69: 0 | H69: 0 | I69: 0 | J69: 0
A70: D DeJesus | B70: 1 | C70: 0 | D70: 0 | E70: 0 | F70: 0 | G70: 0 | H70: 0 | I70: 0 | J70: 0
A71: J Guillen | C71: 0 | D71: 0 | E71: 0 | F71: 0 | G71: 0 | H71: 0 | I71: 0 | J71: 0
A72: A Gordon | B72: 1 | C72: 0 | D72: 0 | E72: 0 | F72: 0 | G72: 0 | H72: 0 | I72: 0 | J72: 0
B73: 99 | C73: 0 | D73: 0 | E73: 0 | F73: 0 | G73: 0 | H73: 0 | I73: 0 | J73: 0

Sheet Tigers
A1: PITCHERS | C1: Effectiveness | D1: Stamina | E1: 1 | F1: CF | G1: A Jackson | I1: 1 | J1: J Verlander | M1: 1 | N1: CF | O1: A Jackson
A2: J Verlander | C2: 67 | D2: 1 | E2: 2 | F2: 2B | G2: W Rhymes | I2: 2 | J2: M Scherzer | M2: 2 | N2: 2B | O2: W Rhymes
A3: M Scherzer | C3: 59 | D3: 1 | E3: 3 | F3: 1B | G3: M Cabrera | I3: 3 | J3: J Bonderman | M3: 3 | N3: 1B | O3: M Cabrera
A4: J Bonderman | C4: 41 | D4: 1 | E4: 4 | F4: LF | G4: B Boesch | I4: 4 | J4: R Porcello | M4: 4 | N4: LF | O4: B Boesch
A5: R Porcello | C5: 46 | D5: 1 | E5: 5 | F5: 3B | G5: J Peralta | M5: 5 | N5: 3B | O5: J Peralta
A6: J Valverde | C6: 67 | D6: 3 | E6: 6 | F6: RF | G6: R Raburn | M6: 6 | N6: RF | O6: R Raburn
A7: B Thomas | C7: 34 | D7: 2 | E7: 7 | F7: DH | G7: C Guillen | M7: 7 | N7: DH | O7: C Guillen
A8: E Bonine | C8: 31 | D8: 2 | E8: 8 | F8: C | G8: A Avila | M8: 8 | N8: C | O8: A Avila
A9: P Coke | C9: 42 | D9: 3 | E9: 9 | F9: SS | G9: R Santiago | M9: 9 | N9: SS | O9: R Santiago
A10: R Perry | C10: 60 | D10: 3
A11: A Galarraga | C11: 51 | D11: 2 | N11: P | O11: J Bonderman
A12: J Zumaya | C12: 71 | D12: 3
A13: CATCHERS | C13: Contact | D13: Power | E13: Speed | F13: Def/Arm | G13: Bunt | P13: IP | Q13: H | R13: R | S13: K | T13: ERA | W13: BB
A14: A Avila | C14: 31 | D14: 38 | E14: 55 | F14: 65 | G14: 60 | N14: Starter | O14: J Bonderman | T14: =IFERROR(IF(O14="","",R14*9/P14),"INF") -> INF
A15: G Laird | C15: 20 | D15: 31 | E15: 40 | F15: 60 | G15: 65
A16: INFIELDERS
A17: M Cabrera | C17: 88 | D17: 94 | E17: 55 | F17: 55 | G17: 35
A18: W Rhymes | C18: 74 | D18: 53 | E18: 70 | F18: 20 | G18: 70
A19: R Santiago | C19: 51 | D19: 35 | E19: 70 | F19: 20 | G19: 75
A20: B Inge | C20: 42 | D20: 49 | E20: 65 | F20: 40 | G20: 60
A21: C Guillen | C21: 57 | D21: 54 | E21: 35 | F21: 20 | G21: 70 | T21: =IF(O21="","",R21*9/P21) -> 
A22: J Peralta | C22: 46 | D22: 49 | E22: 40 | F22: 20 | G22: 40
A23: S Sizemore | C23: 29 | D23: 37 | E23: 70 | F23: 20 | G23: 65
A24: OUTFIELDERS
A25: R Raburn | C25: 61 | D25: 65 | E25: 70 | F25: 70 | G25: 65
A26: M Ordonez | C26: 74 | D26: 65 | E26: 60 | F26: 60 | G26: 50
A27: J Damon | C27: 56 | D27: 50 | E27: 65 | F27: 30 | G27: 65
A28: B Boesch | C28: 47 | D28: 53 | E28: 65 | F28: 70 | G28: 60
A29: A Jackson | C29: 68 | D29: 50 | E29: 75 | F29: 75 | G29: 55
C43: AB | D43: H | E43: RBI | F43: Run | G43: HR | H43: 3B | I43: 2B | J43: SB
A44: PITCHERS | C44: 0 | D44: 0 | E44: 0 | F44: 0 | G44: 0 | H44: 0 | I44: 0 | J44: 0
A45: J Verlander | C45: 0 | D45: 0 | E45: 0 | F45: 0 | G45: 0 | H45: 0 | I45: 0 | J45: 0
A46: M Scherzer | C46: 0 | D46: 0 | E46: 0 | F46: 0 | G46: 0 | H46: 0 | I46: 0 | J46: 0
A47: J Bonderman | B47: 1 | C47: 0 | D47: 0 | E47: 0 | F47: 0 | G47: 0 | H47: 0 | I47: 0 | J47: 0
A48: R Porcello | C48: 0 | D48: 0 | E48: 0 | F48: 0 | G48: 0 | H48: 0 | I48: 0 | J48: 0
A49: J Valverde | C49: 0 | D49: 0 | E49: 0 | F49: 0 | G49: 0 | H49: 0 | I49: 0 | J49: 0
A50: B Thomas | C50: 0 | D50: 0 | E50: 0 | F50: 0 | G50: 0 | H50: 0 | I50: 0 | J50: 0
A51: E Bonine | C51: 0 | D51: 0 | E51: 0 | F51: 0 | G51: 0 | H51: 0 | I51: 0 | J51: 0
A52: P Coke | C52: 0 | D52: 0 | E52: 0 | F52: 0 | G52: 0 | H52: 0 | I52: 0 | J52: 0
A53: R Perry | C53: 0 | D53: 0 | E53: 0 | F53: 0 | G53: 0 | H53: 0 | I53: 0 | J53: 0
A54: A Galarraga | C54: 0 | D54: 0 | E54: 0 | F54: 0 | G54: 0 | H54: 0 | I54: 0 | J54: 0
A55: J Zumaya | C55: 0 | D55: 0 | E55: 0 | F55: 0 | G55: 0 | H55: 0 | I55: 0 | J55: 0
A56: CATCHERS | C56: 0 | D56: 0 | E56: 0 | F56: 0 | G56: 0 | H56: 0 | I56: 0 | J56: 0
A57: A Avila | B57: 1 | C57: 0 | D57: 0 | E57: 0 | F57: 0 | G57: 0 | H57: 0 | I57: 0 | J57: 0
A58: G Laird | C58: 0 | D58: 0 | E58: 0 | F58: 0 | G58: 0 | H58: 0 | I58: 0 | J58: 0
A59: INFIELDERS | C59: 0 | D59: 0 | E59: 0 | F59: 0 | G59: 0 | H59: 0 | I59: 0 | J59: 0
A60: M Cabrera | B60: 1 | C60: 0 | D60: 0 | E60: 0 | F60: 0 | G60: 0 | H60: 0 | I60: 0 | J60: 0
A61: W Rhymes | B61: 1 | C61: 0 | D61: 0 | E61: 0 | F61: 0 | G61: 0 | H61: 0 | I61: 0 | J61: 0
A62: R Santiago | B62: 1 | C62: 0 | D62: 0 | E62: 0 | F62: 0 | G62: 0 | H62: 0 | I62: 0 | J62: 0
A63: B Inge | C63: 0 | D63: 0 | E63: 0 | F63: 0 | G63: 0 | H63: 0 | I63: 0 | J63: 0
A64: C Guillen | B64: 1 | C64: 0 | D64: 0 | E64: 0 | F64: 0 | G64: 0 | H64: 0 | I64: 0 | J64: 0
A65: J Peralta | B65: 1 | C65: 0 | D65: 0 | E65: 0 | F65: 0 | G65: 0 | H65: 0 | I65: 0 | J65: 0
A66: S Sizemore | C66: 0 | D66: 0 | E66: 0 | F66: 0 | G66: 0 | H66: 0 | I66: 0 | J66: 0
A67: OUTFIELDERS | C67: 0 | D67: 0 | E67: 0 | F67: 0 | G67: 0 | H67: 0 | I67: 0 | J67: 0
A68: R Raburn | B68: 1 | C68: 0 | D68: 0 | E68: 0 | F68: 0 | G68: 0 | H68: 0 | I68: 0 | J68: 0
A69: M Ordonez | C69: 0 | D69: 0 | E69: 0 | F69: 0 | G69: 0 | H69: 0 | I69: 0 | J69: 0
A70: J Damon | C70: 0 | D70: 0 | E70: 0 | F70: 0 | G70: 0 | H70: 0 | I70: 0 | J70: 0
A71: B Boesch | B71: 1 | C71: 0 | D71: 0 | E71: 0 | F71: 0 | G71: 0 | H71: 0 | I71: 0 | J71: 0
A72: A Jackson | B72: 1 | C72: 0 | D72: 0 | E72: 0 | F72: 0 | G72: 0 | H72: 0 | I72: 0 | J72: 0
B73: 99 | C73: 0 | D73: 0 | E73: 0 | F73: 0 | G73: 0 | H73: 0 | I73: 0 | J73: 0

Sheet Twins
A1: PITCHERS | C1: Effectiveness | D1: Stamina | E1: 1 | F1: CF | G1: D Span | I1: 1 | J1: C Pavano | M1: 1 | N1: CF | O1: D Span
A2: C Pavano | C2: 64 | D2: 1 | E2: 2 | F2: 2B | G2: O Hudson | I2: 2 | J2: F Liriano | M2: 2 | N2: 2B | O2: O Hudson
A3: F Liriano | C3: 58 | D3: 1 | E3: 3 | F3: C | G3: J Mauer | I3: 3 | J3: S Baker | M3: 3 | N3: C | O3: J Mauer
A4: S Baker | C4: 51 | D4: 1 | E4: 4 | F4: 1B | G4: J Morneau | I4: 4 | J4: N Blackburn | M4: 4 | N4: 1B | O4: J Morneau
A5: N Blackburn | C5: 41 | D5: 1 | E5: 5 | F5: LF | G5: D Young | M5: 5 | N5: LF | O5: D Young
A6: M Capps | C6: 65 | D6: 3 | E6: 6 | F6: DH | G6: J Thome | M6: 6 | N6: DH | O6: J Thome
A7: J Rauch | C7: 54 | D7: 3 | E7: 7 | F7: 3B | G7: D Valencia | M7: 7 | N7: 3B | O7: D Valencia
A8: B Duensing | C8: 63 | D8: 2 | E8: 8 | F8: SS | G8: J Hardy | M8: 8 | N8: SS | O8: J Hardy
A9: M Guerrier | C9: 73 | D9: 3 | E9: 9 | F9: RF | G9: M Cuddyer | M9: 9 | N9: RF | O9: M Cuddyer
A10: J Crain | C10: 66 | D10: 3
A11: J Mijares | C11: 53 | D11: 3 | N11: P | O11: S Baker
A12: R Mahay | C12: 63 | D12: 3
A13: CATCHERS | C13: Contact | D13: Power | E13: Speed | F13: Def/Arm | G13: Bunt | P13: IP | Q13: H | R13: R | S13: K | T13: ERA | W13: BB
A14: J Mauer | C14: 87 | D14: 64 | E14: 60 | F14: 75 | G14: 60 | N14: Starter | O14: S Baker | T14: =IFERROR(IF(O14="","",R14*9/P14),"INF") -> INF
A15: D Butera | C15: 14 | D15: 29 | E15: 50 | F15: 60 | G15: 55
A16: INFIELDERS
A17: O Hudson | C17: 54 | D17: 44 | E17: 75 | F17: 20 | G17: 75
A18: J Hardy | C18: 54 | D18: 49 | E18: 60 | F18: 20 | G18: 60
A19: D Valencia | C19: 78 | D19: 60 | E19: 60 | F19: 20 | G19: 55
A20: J Thome | C20: 62 | D20: 95 | E20: 30 | F20: 20 | G20: 20
A21: J Morneau | C21: 97 | D21: 94 | E21: 50 | F21: 20 | G21: 25 | T21: =IF(O21="","",R21*9/P21) -> 
A22: N Punto | C22: 37 | D22: 30 | E22: 70 | F22: 20 | G22: 80
A23: A Casilla | C23: 58 | D23: 49 | E23: 70 | F23: 20 | G23: 75
A24: OUTFIELDERS
A25: M Cuddyer | C25: 56 | D25: 53 | E25: 60 | F25: 60 | G25: 70
A26: D Young | C26: 71 | D26: 69 | E26: 65 | F26: 70 | G26: 60
A27: D Span | C27: 52 | D27: 40 | E27: 75 | F27: 70 | G27: 75
A28: J Kubel | C28: 43 | D28: 55 | E28: 50 | F28: 65 | G28: 40
A29: J Repko | C29: 31 | D29: 39 | E29: 70 | F29: 50 | G29: 60
C43: AB | D43: H | E43: RBI | F43: Run | G43: HR
A44: PITCHERS | C44: 0 | D44: 0 | E44: 0 | F44: 0 | G44: 0 | H44: 0 | I44: 0 | J44: 0
A45: C Pavano | C45: 0 | D45: 0 | E45: 0 | F45: 0 | G45: 0 | H45: 0 | I45: 0 | J45: 0
A46: F Liriano | C46: 0 | D46: 0 | E46: 0 | F46: 0 | G46: 0 | H46: 0 | I46: 0 | J46: 0
A47: S Baker | B47: 1 | C47: 0 | D47: 0 | E47: 0 | F47: 0 | G47: 0 | H47: 0 | I47: 0 | J47: 0
A48: N Blackburn | C48: 0 | D48: 0 | E48: 0 | F48: 0 | G48: 0 | H48: 0 | I48: 0 | J48: 0
A49: M Capps | C49: 0 | D49: 0 | E49: 0 | F49: 0 | G49: 0 | H49: 0 | I49: 0 | J49: 0
A50: J Rauch | C50: 0 | D50: 0 | E50: 0 | F50: 0 | G50: 0 | H50: 0 | I50: 0 | J50: 0
A51: B Duensing | C51: 0 | D51: 0 | E51: 0 | F51: 0 | G51: 0 | H51: 0 | I51: 0 | J51: 0
A52: M Guerrier | C52: 0 | D52: 0 | E52: 0 | F52: 0 | G52: 0 | H52: 0 | I52: 0 | J52: 0
A53: J Crain | C53: 0 | D53: 0 | E53: 0 | F53: 0 | G53: 0 | H53: 0 | I53: 0 | J53: 0
A54: J Mijares | C54: 0 | D54: 0 | E54: 0 | F54: 0 | G54: 0 | H54: 0 | I54: 0 | J54: 0
A55: R Mahay | C55: 0 | D55: 0 | E55: 0 | F55: 0 | G55: 0 | H55: 0 | I55: 0 | J55: 0
A56: CATCHERS | C56: 0 | D56: 0 | E56: 0 | F56: 0 | G56: 0 | H56: 0 | I56: 0 | J56: 0
A57: J Mauer | B57: 1 | C57: 0 | D57: 0 | E57: 0 | F57: 0 | G57: 0 | H57: 0 | I57: 0 | J57: 0
A58: D Butera | C58: 0 | D58: 0 | E58: 0 | F58: 0 | G58: 0 | H58: 0 | I58: 0 | J58: 0
A59: INFIELDERS | C59: 0 | D59: 0 | E59: 0 | F59: 0 | G59: 0 | H59: 0 | I59: 0 | J59: 0
A60: M Cuddyer | B60: 1 | C60: 0 | D60: 0 | E60: 0 | F60: 0 | G60: 0 | H60: 0 | I60: 0 | J60: 0
A61: O Hudson | B61: 1 | C61: 0 | D61: 0 | E61: 0 | F61: 0 | G61: 0 | H61: 0 | I61: 0 | J61: 0
A62: J Hardy | B62: 1 | C62: 0 | D62: 0 | E62: 0 | F62: 0 | G62: 0 | H62: 0 | I62: 0 | J62: 0
A63: D Valencia | B63: 1 | C63: 0 | D63: 0 | E63: 0 | F63: 0 | G63: 0 | H63: 0 | I63: 0 | J63: 0
A64: J Thome | B64: 1 | C64: 0 | D64: 0 | E64: 0 | F64: 0 | G64: 0 | H64: 0 | I64: 0 | J64: 0
A65: J Morneau | B65: 1 | C65: 0 | D65: 0 | E65: 0 | F65: 0 | G65: 0 | H65: 0 | I65: 0 | J65: 0
A66: N Punto | C66: 0 | D66: 0 | E66: 0 | F66: 0 | G66: 0 | H66: 0 | I66: 0 | J66: 0
A67: A Casilla | C67: 0 | D67: 0 | E67: 0 | F67: 0 | G67: 0 | H67: 0 | I67: 0 | J67: 0
A68: OUTFIELDERS | C68: 0 | D68: 0 | E68: 0 | F68: 0 | G68: 0 | H68: 0 | I68: 0 | J68: 0
A69: D Young | B69: 1 | C69: 0 | D69: 0 | E69: 0 | F69: 0 | G69: 0 | H69: 0 | I69: 0 | J69: 0
A70: D Span | B70: 1 | C70: 0 | D70: 0 | E70: 0 | F70: 0 | G70: 0 | H70: 0 | I70: 0 | J70: 0
A71: J Kubel | C71: 0 | D71: 0 | E71: 0 | F71: 0 | G71: 0 | H71: 0 | I71: 0 | J71: 0
A72: J Repko | C72: 0 | D72: 0 | E72: 0 | F72: 0 | G72: 0 | H72: 0 | I72: 0 | J72: 0
B73: 99 | C73: 0 | D73: 0 | E73: 0 | F73: 0 | G73: 0 | H73: 0 | I73: 0 | J73: 0

Sheet WhiteSox
A1: PITCHERS | C1: Effectiveness | D1: Stamina | E1: 1 | F1: LF | G1: J Pierre | I1: 1 | J1: J Danks | M1: 1 | N1: LF | O1: J Pierre
A2: J Danks | C2: 62 | D2: 1 | E2: 2 | F2: SS | G2: A Ramirez | I2: 2 | J2: M Buehrle | M2: 2 | N2: SS | O2: A Ramirez
A3: M Buehrle | C3: 45 | D3: 1 | E3: 3 | F3: CF | G3: A Rios | I3: 3 | J3: G Floyd | M3: 3 | N3: CF | O3: A Rios
A4: G Floyd | C4: 48 | D4: 1 | E4: 4 | F4: 1B | G4: P Konerko | I4: 4 | J4: F Garcia | M4: 4 | N4: 1B | O4: P Konerko
A5: F Garcia | C5: 48 | D5: 1 | E5: 5 | F5: RF | G5: A Jones | M5: 5 | N5: RF | O5: A Jones
A6: B Jenks | C6: 48 | D6: 3 | E6: 6 | F6: C | G6: A Pierzynski | M6: 6 | N6: C | O6: A Pierzynski
A7: T Pena | C7: 35 | D7: 2 | E7: 7 | F7: 3B | G7: D Viciedo | M7: 7 | N7: 3B | O7: D Viciedo
A8: M Thornton | C8: 81 | D8: 3 | E8: 8 | F8: 2B | G8: G Beckham | M8: 8 | N8: 2B | O8: G Beckham
A9: J Putz | C9: 78 | D9: 3 | E9: 9 | F9: DH | G9: C Quentin | M9: 9 | N9: DH | O9: C Quentin
A10: S Santos | C10: 34 | D10: 3
A11: S Linebrink | C11: 52 | D11: 3 | N11: P | O11: M Buehrle
A12: J Peavy | C12: 61 | D12: 2
A13: CATCHERS | C13: Contact | D13: Power | E13: Speed | F13: Def/Arm | G13: Bunt | P13: IP | Q13: H | R13: R | S13: K | T13: ERA | W13: BB
A14: A Pierzynski | C14: 55 | D14: 48 | E14: 55 | F14: 40 | G14: 60 | N14: Starter | O14: M Buehrle | Q14: 1 | T14: =IFERROR(IF(O14="","",R14*9/P14),"INF") -> INF
A15: R Castro | C15: 60 | D15: 71 | E15: 30 | F15: 60 | G15: 60
A16: INFIELDERS
A17: P Konerko | C17: 79 | D17: 87 | E17: 35 | F17: 20 | G17: 30
A18: G Beckham | C18: 45 | D18: 46 | E18: 65 | F18: 20 | G18: 65
A19: A Ramirez | C19: 62 | D19: 56 | E19: 65 | F19: 20 | G19: 55
A20: O Vizquel | C20: 58 | D20: 36 | E20: 50 | F20: 20 | G20: 70
A21: M Teahen | C21: 48 | D21: 46 | E21: 60 | F21: 20 | G21: 60 | T21: =IF(O21="","",R21*9/P21) -> 
A22: D Viciedo | C22: 76 | D22: 74 | E22: 55 | F22: 20 | G22: 60
A23: M Kotsay | C23: 38 | D23: 45 | E23: 60 | F23: 70 | G23: 45
A24: OUTFIELDERS
A25: J Pierre | C25: 58 | D25: 33 | E25: 90 | F25: 40 | G25: 70
A26: A Rios | C26: 63 | D26: 61 | E26: 75 | F26: 80 | G26: 55
A27: C Quentin | C27: 40 | D27: 66 | E27: 40 | F27: 50 | G27: 35
A28: A Jones | C28: 33 | D28: 67 | E28: 60 | F28: 65 | G28: 40
A29: M Ramirez | C29: 50 | D29: 34 | E29: 40 | F29: 40 | G29: 25
C43: AB | D43: H | E43: RBI | F43: Run | G43: HR | H43: 3B | I43: 2B | J43: SB
A44: PITCHERS | C44: 0 | D44: 0 | E44: 0 | F44: 0 | G44: 0 | H44: 0 | I44: 0 | J44: 0
A45: J Danks | C45: 0 | D45: 0 | E45: 0 | F45: 0 | G45: 0 | H45: 0 | I45: 0 | J45: 0
A46: M Buehrle | B46: 1 | C46: 0 | D46: 0 | E46: 0 | F46: 0 | G46: 0 | H46: 0 | I46: 0 | J46: 0
A47: G Floyd | C47: 0 | D47: 0 | E47: 0 | F47: 0 | G47: 0 | H47: 0 | I47: 0 | J47: 0
A48: F Garcia | C48: 0 | D48: 0 | E48: 0 | F48: 0 | G48: 0 | H48: 0 | I48: 0 | J48: 0
A49: B Jenks | C49: 0 | D49: 0 | E49: 0 | F49: 0 | G49: 0 | H49: 0 | I49: 0 | J49: 0
A50: T Pena | C50: 0 | D50: 0 | E50: 0 | F50: 0 | G50: 0 | H50: 0 | I50: 0 | J50: 0
A51: M Thornton | C51: 0 | D51: 0 | E51: 0 | F51: 0 | G51: 0 | H51: 0 | I51: 0 | J51: 0
A52: J Putz | C52: 0 | D52: 0 | E52: 0 | F52: 0 | G52: 0 | H52: 0 | I52: 0 | J52: 0
A53: S Santos | C53: 0 | D53: 0 | E53: 0 | F53: 0 | G53: 0 | H53: 0 | I53: 0 | J53: 0
A54: S Linebrink | C54: 0 | D54: 0 | E54: 0 | F54: 0 | G54: 0 | H54: 0 | I54: 0 | J54: 0
A55: J Peavy | C55: 0 | D55: 0 | E55: 0 | F55: 0 | G55: 0 | H55: 0 | I55: 0 | J55: 0
A56: CATCHERS | C56: 0 | D56: 0 | E56: 0 | F56: 0 | G56: 0 | H56: 0 | I56: 0 | J56: 0
A57: A Pierzynski | B57: 1 | C57: 0 | D57: 0 | E57: 0 | F57: 0 | G57: 0 | H57: 0 | I57: 0 | J57: 0
A58: R Castro | C58: 0 | D58: 0 | E58: 0 | F58: 0 | G58: 0 | H58: 0 | I58: 0 | J58: 0
A59: INFIELDERS | C59: 0 | D59: 0 | E59: 0 | F59: 0 | G59: 0 | H59: 0 | I59: 0 | J59: 0
A60: P Konerko | B60: 1 | C60: 0 | D60: 0 | E60: 0 | F60: 0 | G60: 0 | H60: 0 | I60: 0 | J60: 0
A61: G Beckham | B61: 1 | C61: 0 | D61: 0 | E61: 0 | F61: 0 | G61: 0 | H61: 0 | I61: 0 | J61: 0
A62: A Ramirez | B62: 1 | C62: 0 | D62: 0 | E62: 0 | F62: 0 | G62: 0 | H62: 0 | I62: 0 | J62: 0
A63: O Vizquel | C63: 0 | D63: 0 | E63: 0 | F63: 0 | G63: 0 | H63: 0 | I63: 0 | J63: 0
A64: M Teahen | C64: 0 | D64: 0 | E64: 0 | F64: 0 | G64: 0 | H64: 0 | I64: 0 | J64: 0
A65: D Viciedo | B65: 1 | C65: 0 | D65: 0 | E65: 0 | F65: 0 | G65: 0 | H65: 0 | I65: 0 | J65: 0
A66: M Kotsay | C66: 0 | D66: 0 | E66: 0 | F66: 0 | G66: 0 | H66: 0 | I66: 0 | J66: 0
A67: OUTFIELDERS | C67: 0 | D67: 0 | E67: 0 | F67: 0 | G67: 0 | H67: 0 | I67: 0 | J67: 0
A68: J Pierre | B68: 1 | C68: 0 | D68: 0 | E68: 0 | F68: 0 | G68: 0 | H68: 0 | I68: 0 | J68: 0
A69: A Rios | B69: 1 | C69: 0 | D69: 0 | E69: 0 | F69: 0 | G69: 0 | H69: 0 | I69: 0 | J69: 0
A70: C Quentin | B70: 1 | C70: 0 | D70: 0 | E70: 0 | F70: 0 | G70: 0 | H70: 0 | I70: 0 | J70: 0
A71: A Jones | B71: 1 | C71: 0 | D71: 0 | E71: 0 | F71: 0 | G71: 0 | H71: 0 | I71: 0 | J71: 0
A72: M Ramirez | C72: 0 | D72: 0 | E72: 0 | F72: 0 | G72: 0 | H72: 0 | I72: 0 | J72: 0
B73: 99 | C73: 0 | D73: 0 | E73: 0 | F73: 0 | G73: 0 | H73: 0 | I73: 0 | J73: 0

Sheet Yankees
A1: PITCHERS | C1: Effectiveness | D1: Stamina | E1: 1 | F1: SS | G1: D Jeter | I1: 1 | J1: C Sabathia | M1: 1 | N1: SS | O1: D Jeter
A2: C Sabathia | C2: 64 | D2: 1 | E2: 2 | F2: RF | G2: N Swisher | I2: 2 | J2: A Burnett | M2: 2 | N2: RF | O2: N Swisher
A3: A Burnett | C3: 35 | D3: 1 | E3: 3 | F3: 1B | G3: M Teixeira | I3: 3 | J3: P Hughes | M3: 3 | N3: 1B | O3: M Teixeira
A4: P Hughes | C4: 59 | D4: 1 | E4: 4 | F4: 3B | G4: A Rodriguez | I4: 4 | J4: A Pettitte | M4: 4 | N4: 3B | O4: A Rodriguez
A5: A Pettitte | C5: 57 | D5: 1 | E5: 5 | F5: 2B | G5: R Cano | M5: 5 | N5: 2B | O5: R Cano
A6: M Rivera | C6: 97 | D6: 3 | E6: 6 | F6: DH | G6: M Thames | M6: 6 | N6: DH | O6: M Thames
A7: J Chamberlin | C7: 55 | D7: 3 | E7: 7 | F7: C | G7: J Posada | M7: 7 | N7: C | O7: J Posada
A8: D Robertson | C8: 36 | D8: 3 | E8: 8 | F8: CF | G8: C Granderson | M8: 8 | N8: CF | O8: C Granderson
A9: C Gaudin | C9: 48 | D9: 2 | E9: 9 | F9: LF | G9: B Gardner | M9: 9 | N9: LF | O9: B Gardner
A10: B Logan | C10: 50 | D10: 3
A11: J Vazquez | C11: 46 | D11: 2 | N11: P | O11: A Burnett
A12: D Moseley | C12: 43 | D12: 2
A13: CATCHERS | C13: Contact | D13: Power | E13: Speed | F13: Def/Arm | G13: Bunt | P13: IP | Q13: H | R13: R | S13: K | T13: ERA | W13: BB
A14: J Posada | C14: 43 | D14: 61 | E14: 30 | F14: 65 | G14: 65 | N14: Starter | O14: A Burnett | T14: =IFERROR(IF(O14="","",R14*9/P14),"INF") -> INF
A15: F Cervelli | C15: 56 | D15: 37 | E15: 45 | F15: 60 | G15: 60
A16: INFIELDERS
A17: M Teixeira | C17: 47 | D17: 66 | E17: 50 | F17: 20 | G17: 35
A18: R Cano | C18: 83 | D18: 77 | E18: 60 | F18: 20 | G18: 55
A19: D Jeter | C19: 55 | D19: 44 | E19: 70 | F19: 20 | G19: 70
A20: A Rodriguez | C20: 55 | D20: 71 | E20: 60 | F20: 20 | G20: 40
A21: R Pena | C21: 31 | D21: 19 | E21: 70 | F21: 20 | G21: 60 | T21: =IF(O21="","",R21*9/P21) -> 
A22: L Berkman | C22: 47 | D22: 40 | E22: 35 | F22: 50 | G22: 35
A23: N Johnson | C23: -3 | D23: 31 | E23: 30 | F23: 20 | G23: 30
A24: OUTFIELDERS
A25: B Gardner | C25: 59 | D25: 46 | E25: 75 | F25: 65 | G25: 70
A26: C Granderson | C26: 42 | D26: 64 | E26: 75 | F26: 70 | G26: 60
A27: N Swisher | C27: 65 | D27: 72 | E27: 60 | F27: 60 | G27: 30
A28: M Thames | C28: 65 | D28: 68 | E28: 55 | F28: 55 | G28: 50
A29: A Kearns | C29: 35 | D29: 35 | E29: 50 | F29: 60 | G29: 45
C43: AB | D43: H | E43: RBI | F43: Run | G43: HR | H43: 3B | I43: 2B | J43: SB
A44: PITCHERS | C44: 0 | D44: 0 | E44: 0 | F44: 0 | G44: 0 | H44: 0 | I44: 0 | J44: 0
A45: C Sabathia | C45: 0 | D45: 0 | E45: 0 | F45: 0 | G45: 0 | H45: 0 | I45: 0 | J45: 0
A46: A Burnett | B46: 1 | C46: 0 | D46: 0 | E46: 0 | F46: 0 | G46: 0 | H46: 0 | I46: 0 | J46: 0
A47: P Hughes | C47: 0 | D47: 0 | E47: 0 | F47: 0 | G47: 0 | H47: 0 | I47: 0 | J47: 0
A48: A Pettitte | C48: 0 | D48: 0 | E48: 0 | F48: 0 | G48: 0 | H48: 0 | I48: 0 | J48: 0
A49: M Rivera | C49: 0 | D49: 0 | E49: 0 | F49: 0 | G49: 0 | H49: 0 | I49: 0 | J49: 0
A50: J Chamberlin | C50: 0 | D50: 0 | E50: 0 | F50: 0 | G50: 0 | H50: 0 | I50: 0 | J50: 0
A51: D Robertson | C51: 0 | D51: 0 | E51: 0 | F51: 0 | G51: 0 | H51: 0 | I51: 0 | J51: 0
A52: C Gaudin | C52: 0 | D52: 0 | E52: 0 | F52: 0 | G52: 0 | H52: 0 | I52: 0 | J52: 0
A53: B Logan | C53: 0 | D53: 0 | E53: 0 | F53: 0 | G53: 0 | H53: 0 | I53: 0 | J53: 0
A54: J Vazquez | C54: 0 | D54: 0 | E54: 0 | F54: 0 | G54: 0 | H54: 0 | I54: 0 | J54: 0
A55: D Moseley | C55: 0 | D55: 0 | E55: 0 | F55: 0 | G55: 0 | H55: 0 | I55: 0 | J55: 0
A56: CATCHERS | C56: 0 | D56: 0 | E56: 0 | F56: 0 | G56: 0 | H56: 0 | I56: 0 | J56: 0
A57: J Posada | B57: 1 | C57: 0 | D57: 0 | E57: 0 | F57: 0 | G57: 0 | H57: 0 | I57: 0 | J57: 0
A58: F Cervelli | C58: 0 | D58: 0 | E58: 0 | F58: 0 | G58: 0 | H58: 0 | I58: 0 | J58: 0
A59: INFIELDERS | C59: 0 | D59: 0 | E59: 0 | F59: 0 | G59: 0 | H59: 0 | I59: 0 | J59: 0
A60: M Teixeira | B60: 1 | C60: 0 | D60: 0 | E60: 0 | F60: 0 | G60: 0 | H60: 0 | I60: 0 | J60: 0
A61: R Cano | B61: 1 | C61: 0 | D61: 0 | E61: 0 | F61: 0 | G61: 0 | H61: 0 | I61: 0 | J61: 0
A62: D Jeter | B62: 1 | C62: 1 | D62: 1 | E62: 0 | F62: 0 | G62: 0 | H62: 0 | I62: 0 | J62: 0
A63: A Rodriguez | B63: 1 | C63: 0 | D63: 0 | E63: 0 | F63: 0 | G63: 0 | H63: 0 | I63: 0 | J63: 0
A64: R Pena | C64: 0 | D64: 0 | E64: 0 | F64: 0 | G64: 0 | H64: 0 | I64: 0 | J64: 0
A65: L Berkman | C65: 0 | D65: 0 | E65: 0 | F65: 0 | G65: 0 | H65: 0 | I65: 0 | J65: 0
A66: N Johnson | C66: 0 | D66: 0 | E66: 0 | F66: 0 | G66: 0 | H66: 0 | I66: 0 | J66: 0
A67: OUTFIELDERS | C67: 0 | D67: 0 | E67: 0 | F67: 0 | G67: 0 | H67: 0 | I67: 0 | J67: 0
A68: B Gardner | B68: 1 | C68: 0 | D68: 0 | E68: 0 | F68: 0 | G68: 0 | H68: 0 | I68: 0 | J68: 0
A69: C Granderson | B69: 1 | C69: 0 | D69: 0 | E69: 0 | F69: 0 | G69: 0 | H69: 0 | I69: 0 | J69: 0
A70: N Swisher | B70: 1 | C70: 0 | D70: 0 | E70: 0 | F70: 0 | G70: 0 | H70: 0 | I70: 0 | J70: 0
A71: M Thames | B71: 1 | C71: 0 | D71: 0 | E71: 0 | F71: 0 | G71: 0 | H71: 0 | I71: 0 | J71: 0
A72: A Kearns | C72: 0 | D72: 0 | E72: 0 | F72: 0 | G72: 0 | H72: 0 | I72: 0 | J72: 0
B73: 99 | C73: 0 | D73: 0 | E73: 0 | F73: 0 | G73: 0 | H73: 0 | I73: 0 | J73: 0

Sheet Production (hidden)
A21: Date | B21: Units | C21: Shipped to | D21: Units Sold | E21: Profit | F21: Valuable transaction?
A22: 2007-01-14 | B22: 302 | C22: 4 | D22: 278 | E22: =(B22-D22)*31.58 -> 757.92 | F22: =IF(E22>5000,"Y","N") -> N
A23: 2007-03-18 | B23: 286 | C23: 10 | D23: 91 | E23: =(B23-D23)*31.58 -> 6158.1 | F23: =IF(E23>5000,"Y","N") -> Y
A24: 2007-04-25 | B24: 646 | C24: 3 | D24: 480 | E24: 5242.28 | F24: Y
A25: 2007-07-05 | B25: 580 | C25: 7 | D25: 331 | E25: 7863.42 | F25: Y
A26: 2007-07-13 | B26: 627 | C26: 10 | D26: 455 | E26: 5431.76 | F26: Y
A27: 2007-08-14 | B27: 520 | C27: 2 | D27: 269 | E27: 7926.58 | F27: Y
A28: 2007-08-20 | B28: 541 | C28: 7 | D28: 346 | E28: 6158.1 | F28: Y
A29: 2007-10-08 | B29: 515 | C29: 8 | D29: 226 | E29: 9126.62 | F29: Y
A30: 2008-03-04 | B30: 199 | C30: 7 | D30: -89 | E30: 9095.04 | F30: Y
A31: 2008-04-05 | B31: 224 | C31: 11 | D31: 16 | E31: 6568.64 | F31: Y
A32: 2008-04-28 | B32: 378 | C32: 10 | D32: 327 | E32: 1610.58 | F32: N
A33: 2008-06-06 | B33: 423 | C33: 11 | D33: 305 | E33: 3726.44 | F33: N
A34: 2008-08-24 | B34: 308 | C34: 5 | D34: 256 | E34: 1642.16 | F34: N
A35: 2008-08-29 | B35: 563 | C35: 3 | D35: 386 | E35: 5589.66 | F35: Y
A36: 2008-09-26 | B36: 562 | C36: 8 | D36: 336 | E36: 7137.08 | F36: Y
A37: 2008-09-27 | B37: 660 | C37: 9 | D37: 550 | E37: 3473.8 | F37: N
A38: 2008-10-24 | B38: 400 | C38: 1 | D38: 130 | E38: 8526.6 | F38: Y
